{"text_format":"1","workbook":"xlsx","n_sheets":10,"sheets":["Boat1","Boat2","Boat3","Dahab","Thistelgorm","Sharks bay","Stella","H.W.F","Fanar","Milton"],"not_rendered":{"charts":0,"images":1,"macros":1,"external_links":0,"defined_names":10,"comments":0,"pivot_tables":0},"unopened":[],"bounds":{"document_bytes":16777216,"sheet_cells":100000,"rows_first":2000,"rows_last":500,"rows_between":2000,"halvings":0,"cell_chars":16384,"cell_head_chars":4096},"cells_cut":0,"cells_raw":0,"read":"whole","date_system":"1900"}

{"sheet":"Boat1","index":0,"n_rows":57,"n_cols":28,"rows_kept":57,"cut":false,"hidden":false,"merged":[[52,6,52,7],[52,13,56,17],[53,6,53,7],[54,6,54,7],[54,10,54,11],[55,6,55,7],[56,6,56,7],[0,13,1,14],[2,13,2,14],[0,2,1,2],[50,1,50,7],[51,1,51,7],[51,10,51,11],[51,13,51,17],[0,10,1,11],[2,10,2,11],[0,3,1,3],[0,4,1,4],[0,5,0,6],[0,7,1,8],[0,9,1,9],[8,7,8,8],[2,7,2,8],[6,0,9,1],[10,7,10,8],[10,10,10,11],[5,10,5,11],[6,10,6,11],[7,10,7,11],[8,10,8,11],[9,10,9,11],[5,7,5,8],[6,7,6,8],[7,7,7,8],[11,10,11,11],[11,7,11,8],[3,2,3,5],[3,6,3,11],[9,7,9,8],[4,10,4,11],[4,7,4,8]]}
[null,null,"التاريخ","اتجاه الرحله","ميناء القيام","الحموله",null,"تاريخ انتهاء الترخيص",null,"رقم التسجيل","اسم اللنش",null,null,"تليفون اللنش"]
[null,null,null,null,null,"عدد الركاب","عدد الطقم"]
[null,null,"2022-08-01",null,null,{"$f":"VLOOKUP($K$3,#REF!,4,FALSE)","v":{"$error":"#REF!"}},{"$f":"VLOOKUP($K$3,#REF!,5,FALSE)","v":{"$error":"#REF!"}},{"$f":"VLOOKUP($K$3,#REF!,3,FALSE)","v":{"$error":"#REF!"}},null,{"$f":"VLOOKUP($K$3,#REF!,2,FALSE)","v":{"$error":"#REF!"}},null,null,null,{"$f":"VLOOKUP($K$3,#REF!,6,FALSE)","v":{"$error":"#REF!"}},{"$f":"VLOOKUP($K$3,#REF!,2,FALSE)","v":{"$error":"#REF!"}}]
[null,null,"طاقم المركب",null,null,null,"المدربين/المرشدين/المصورين",null,null,null,null,null,null,"SNORK"]
[null,null,"تليفون","رقم مزاوله المهنه","الوظيفه","اسماء الطاقم","تليفون","رقم مزاوله المهنه",null,"الوظيفه","الاسماء",null,null,{"$f":"COUNTIF(boat1[Activity\nالنشاط],N4)","v":0},{"$f":"COUNTIF(boat1[Activity\nالنشاط],O4)","v":0},{"$f":"COUNTIF(boat1[Activity\nالنشاط],P4)","v":0},{"$f":"COUNTIF(boat1[Activity\nالنشاط],Q4)","v":0},{"$f":"COUNTIF(boat1[Activity\nالنشاط],R4)","v":0},{"$f":"COUNTIF(boat1[Activity\nالنشاط],S4)","v":0},{"$f":"COUNTIF(boat1[Activity\nالنشاط],T4)","v":0},{"$f":"COUNTIF(boat1[Activity\nالنشاط],U4)","v":0},{"$f":"COUNTIF(boat1[Activity\nالنشاط],\"*DIVE*\")","v":0},{"$f":"COUNTIF(boat1[Activity\nالنشاط],\"*3 DIVES*\")","v":0}]
[null,null,{"$f":"VLOOKUP($K$3,#REF!,10,FALSE)","v":{"$error":"#REF!"}},{"$f":"VLOOKUP($K$3,#REF!,9,FALSE)","v":{"$error":"#REF!"}},{"$f":"VLOOKUP($K$3,#REF!,8,FALSE)","v":{"$error":"#REF!"}},{"$f":"VLOOKUP($K$3,#REF!,7,FALSE)","v":{"$error":"#REF!"}},{"$f":"VLOOKUP($K6,#REF!,4,FALSE)","v":{"$error":"#REF!"}},{"$f":"VLOOKUP($K6,#REF!,3,FALSE)","v":{"$error":"#REF!"}},null,{"$f":"VLOOKUP($K6,#REF!,2,FALSE)","v":{"$error":"#REF!"}}]
["مركز غوص ديزرت روز \n رخصه 341 \n تليفون:01220004757",null,{"$f":"VLOOKUP($K$3,#REF!,14,FALSE)","v":{"$error":"#REF!"}},{"$f":"VLOOKUP($K$3,#REF!,13,FALSE)","v":{"$error":"#REF!"}},{"$f":"VLOOKUP($K$3,#REF!,12,FALSE)","v":{"$error":"#REF!"}},{"$f":"VLOOKUP($K$3,#REF!,11,FALSE)","v":{"$error":"#REF!"}},{"$f":"VLOOKUP($K7,#REF!,4,FALSE)","v":{"$error":"#REF!"}},{"$f":"VLOOKUP($K7,#REF!,3,FALSE)","v":{"$error":"#REF!"}},null,{"$f":"VLOOKUP($K7,#REF!,2,FALSE)","v":{"$error":"#REF!"}}]
[null,null,{"$f":"VLOOKUP($K$3,#REF!,18,FALSE)","v":{"$error":"#REF!"}},{"$f":"VLOOKUP($K$3,#REF!,17,FALSE)","v":{"$error":"#REF!"}},{"$f":"VLOOKUP($K$3,#REF!,16,FALSE)","v":{"$error":"#REF!"}},{"$f":"VLOOKUP($K$3,#REF!,15,FALSE)","v":{"$error":"#REF!"}},{"$f":"VLOOKUP($K8,#REF!,4,FALSE)","v":{"$error":"#REF!"}},{"$f":"VLOOKUP($K8,#REF!,3,FALSE)","v":{"$error":"#REF!"}},null,{"$f":"VLOOKUP($K8,#REF!,2,FALSE)","v":{"$error":"#REF!"}}]
[null,null,{"$f":"VLOOKUP($K$3,#REF!,22,FALSE)","v":{"$error":"#REF!"}},{"$f":"VLOOKUP($K$3,#REF!,21,FALSE)","v":{"$error":"#REF!"}},{"$f":"VLOOKUP($K$3,#REF!,20,FALSE)","v":{"$error":"#REF!"}},{"$f":"VLOOKUP($K$3,#REF!,19,FALSE)","v":{"$error":"#REF!"}},{"$f":"VLOOKUP($K9,#REF!,4,FALSE)","v":{"$error":"#REF!"}},{"$f":"VLOOKUP($K9,#REF!,3,FALSE)","v":{"$error":"#REF!"}},null,{"$f":"VLOOKUP($K9,#REF!,2,FALSE)","v":{"$error":"#REF!"}}]
[null,null,null,null,null,null,{"$f":"VLOOKUP($K10,#REF!,4,FALSE)","v":{"$error":"#REF!"}},{"$f":"VLOOKUP($K10,#REF!,3,FALSE)","v":{"$error":"#REF!"}},null,{"$f":"VLOOKUP($K10,#REF!,2,FALSE)","v":{"$error":"#REF!"}}]
[null,null,null,null,null,null,{"$f":"VLOOKUP($K11,#REF!,4,FALSE)","v":{"$error":"#REF!"}},{"$f":"VLOOKUP($K11,#REF!,3,FALSE)","v":{"$error":"#REF!"}},null,{"$f":"VLOOKUP($K11,#REF!,2,FALSE)","v":{"$error":"#REF!"}}]
[null,null,"Sharing Company",null,{"$f":"VLOOKUP($D$12,#REF!,2,FALSE)","v":{"$error":"#REF!"}},null,{"$f":"VLOOKUP($K12,#REF!,4,FALSE)","v":{"$error":"#REF!"}},{"$f":"VLOOKUP($K12,#REF!,3,FALSE)","v":{"$error":"#REF!"}},null,{"$f":"VLOOKUP($K12,#REF!,2,FALSE)","v":{"$error":"#REF!"}}]
[]
["NO","Name\nالاسم","Last Name\nالعائلي","Nationality\nالجنسيه","Passport\nجواز السفر","Hotel\nالفندق","Room No.\nالحجره","Adult\nكبير","CHD\nطفل","Activity\nالنشاط","LEVEL\nرخصه ","Eval\nمستوي","Box\nصندوق","Fins\nزعانف","Com\nملاحظات","Check in","Bill","Time","Transf","Rest","Guide","Reg#","BCD#","Suit#","Fins#","Mask#","BOOT","Partner"]
[1,null,null,null,null,null,null,null,null,null,null,null,3]
[2]
[3]
[4,null,null,null,null,null,null,null,null,null,null,"وليكن عند كتابة رقم 2 فى هذا العمود وكتابة نفس الرقم فى نفس العمود فى ورقة boat2 او boat3 او dahab يتم تحذيرى بأن الارقام متشابهة هنا وهناك ",2]
[5]
[6]
[7]
[8]
[9]
[10]
[11]
[12]
[13]
[14]
[15]
[16]
[17]
[18]
[19]
[20]
[21]
[22]
[23]
[24]
[25]
[26]
[27]
[28]
[29]
[30]
[31]
[32]
[33]
[34]
[null,null,null,null,null,null,null,{"$f":"SUM(H15:H48)","v":0},{"$f":"SUM(I15:I48)","v":0},"Total\nاجمالي"]
[]
[null,"PLEASE DON’T FORGET PASSPORT "]
[null,"PICK UP ",null,null,null,null,null,null,null,null,"Nitrox 32%",null,null,"NOTE"]
[null,"Guide","Assembly time","Place of assembly","Carrier","Tel.","DRIVER",null,null,null,"12 L"]
[null,null,null,null,{"$f":"VLOOKUP($G54,#REF!,2,FALSE)","v":{"$error":"#REF!"}},{"$f":"VLOOKUP($G54,#REF!,3,FALSE)","v":{"$error":"#REF!"}},null,null,null,null,"15 L"]
[null,null,null,null,{"$f":"VLOOKUP($G55,#REF!,2,FALSE)","v":{"$error":"#REF!"}},{"$f":"VLOOKUP($G55,#REF!,3,FALSE)","v":{"$error":"#REF!"}},null,null,null,null,"Air"]
[null,null,null,null,{"$f":"VLOOKUP($G56,#REF!,2,FALSE)","v":{"$error":"#REF!"}},{"$f":"VLOOKUP($G56,#REF!,3,FALSE)","v":{"$error":"#REF!"}},null,null,null,null,"8 L"]
[null,null,null,null,{"$f":"VLOOKUP($G57,#REF!,2,FALSE)","v":{"$error":"#REF!"}},{"$f":"VLOOKUP($G57,#REF!,3,FALSE)","v":{"$error":"#REF!"}},null,null,null,null,"15 L"]

{"sheet":"Boat2","index":1,"n_rows":57,"n_cols":28,"rows_kept":57,"cut":false,"hidden":false,"merged":[[51,13,51,17],[52,6,52,7],[52,13,56,17],[53,6,53,7],[54,6,54,7],[54,10,54,11],[55,6,55,7],[56,6,56,7],[9,7,9,8],[9,10,9,11],[10,7,10,8],[10,10,10,11],[51,1,51,7],[51,10,51,11],[11,7,11,8],[11,10,11,11],[0,13,1,14],[2,7,2,8],[2,10,2,11],[2,13,2,14],[50,1,50,7],[4,7,4,8],[4,10,4,11],[5,7,5,8],[5,10,5,11],[6,0,9,1],[6,7,6,8],[6,10,6,11],[7,7,7,8],[7,10,7,11],[8,7,8,8],[8,10,8,11],[3,2,3,5],[3,6,3,11],[0,2,1,2],[0,3,1,3],[0,4,1,4],[0,5,0,6],[0,7,1,8],[0,9,1,9],[0,10,1,11]]}
[null,null,"التاريخ","اتجاه الرحله","ميناء القيام","الحموله",null,"تاريخ انتهاء الترخيص",null,"رقم التسجيل","اسم اللنش",null,null,"تليفون اللنش"]
[null,null,null,null,null,"عدد الركاب","عدد الطقم"]
[null,null,{"$f":"Boat1!C3","v":"2022-08-01"},null,null,{"$f":"VLOOKUP($K$3,#REF!,4,FALSE)","v":{"$error":"#REF!"}},{"$f":"VLOOKUP($K$3,#REF!,5,FALSE)","v":{"$error":"#REF!"}},{"$f":"VLOOKUP($K$3,#REF!,3,FALSE)","v":{"$error":"#REF!"}},null,{"$f":"VLOOKUP($K$3,#REF!,2,FALSE)","v":{"$error":"#REF!"}},null,null,null,{"$f":"VLOOKUP($K$3,#REF!,6,FALSE)","v":{"$error":"#REF!"}},{"$f":"VLOOKUP($K$3,#REF!,2,FALSE)","v":{"$error":"#REF!"}}]
[null,null,"طاقم المركب",null,null,null,"المدربين/المرشدين/المصورين",null,null,null,null,null,null,"SNORK"]
[null,null,"تليفون","رقم مزاوله المهنه","الوظيفه","اسماء الطاقم","تليفون","رقم مزاوله المهنه",null,"الوظيفه","الاسماء",null,null,{"$f":"COUNTIF(boat2[Activity\nالنشاط],N4)","v":0},{"$f":"COUNTIF(boat2[Activity\nالنشاط],O4)","v":0},{"$f":"COUNTIF(boat2[Activity\nالنشاط],P4)","v":0},{"$f":"COUNTIF(boat2[Activity\nالنشاط],Q4)","v":0},{"$f":"COUNTIF(boat2[Activity\nالنشاط],R4)","v":0},{"$f":"COUNTIF(boat2[Activity\nالنشاط],S4)","v":0},{"$f":"COUNTIF(boat2[Activity\nالنشاط],T4)","v":0},{"$f":"COUNTIF(boat2[Activity\nالنشاط],U4)","v":0},{"$f":"COUNTIF(boat2[Activity\nالنشاط],\"*DIVE*\")","v":0},{"$f":"COUNTIF(boat2[Activity\nالنشاط],\"*3 DIVES*\")","v":0}]
[null,null,{"$f":"VLOOKUP($K$3,#REF!,10,FALSE)","v":{"$error":"#REF!"}},{"$f":"VLOOKUP($K$3,#REF!,9,FALSE)","v":{"$error":"#REF!"}},{"$f":"VLOOKUP($K$3,#REF!,8,FALSE)","v":{"$error":"#REF!"}},{"$f":"VLOOKUP($K$3,#REF!,7,FALSE)","v":{"$error":"#REF!"}},{"$f":"VLOOKUP($K6,#REF!,4,FALSE)","v":{"$error":"#REF!"}},{"$f":"VLOOKUP($K6,#REF!,3,FALSE)","v":{"$error":"#REF!"}},null,{"$f":"VLOOKUP($K6,#REF!,2,FALSE)","v":{"$error":"#REF!"}}]
["مركز غوص ديزرت روز \n رخصه 341 \n تليفون:01220004757",null,{"$f":"VLOOKUP($K$3,#REF!,14,FALSE)","v":{"$error":"#REF!"}},{"$f":"VLOOKUP($K$3,#REF!,13,FALSE)","v":{"$error":"#REF!"}},{"$f":"VLOOKUP($K$3,#REF!,12,FALSE)","v":{"$error":"#REF!"}},{"$f":"VLOOKUP($K$3,#REF!,11,FALSE)","v":{"$error":"#REF!"}},{"$f":"VLOOKUP($K7,#REF!,4,FALSE)","v":{"$error":"#REF!"}},{"$f":"VLOOKUP($K7,#REF!,3,FALSE)","v":{"$error":"#REF!"}},null,{"$f":"VLOOKUP($K7,#REF!,2,FALSE)","v":{"$error":"#REF!"}}]
[null,null,{"$f":"VLOOKUP($K$3,#REF!,18,FALSE)","v":{"$error":"#REF!"}},{"$f":"VLOOKUP($K$3,#REF!,17,FALSE)","v":{"$error":"#REF!"}},{"$f":"VLOOKUP($K$3,#REF!,16,FALSE)","v":{"$error":"#REF!"}},{"$f":"VLOOKUP($K$3,#REF!,15,FALSE)","v":{"$error":"#REF!"}},{"$f":"VLOOKUP($K8,#REF!,4,FALSE)","v":{"$error":"#REF!"}},{"$f":"VLOOKUP($K8,#REF!,3,FALSE)","v":{"$error":"#REF!"}},null,{"$f":"VLOOKUP($K8,#REF!,2,FALSE)","v":{"$error":"#REF!"}}]
[null,null,{"$f":"VLOOKUP($K$3,#REF!,22,FALSE)","v":{"$error":"#REF!"}},{"$f":"VLOOKUP($K$3,#REF!,21,FALSE)","v":{"$error":"#REF!"}},{"$f":"VLOOKUP($K$3,#REF!,20,FALSE)","v":{"$error":"#REF!"}},{"$f":"VLOOKUP($K$3,#REF!,19,FALSE)","v":{"$error":"#REF!"}},{"$f":"VLOOKUP($K9,#REF!,4,FALSE)","v":{"$error":"#REF!"}},{"$f":"VLOOKUP($K9,#REF!,3,FALSE)","v":{"$error":"#REF!"}},null,{"$f":"VLOOKUP($K9,#REF!,2,FALSE)","v":{"$error":"#REF!"}}]
[null,null,null,null,null,null,{"$f":"VLOOKUP($K10,#REF!,4,FALSE)","v":{"$error":"#REF!"}},{"$f":"VLOOKUP($K10,#REF!,3,FALSE)","v":{"$error":"#REF!"}},null,{"$f":"VLOOKUP($K10,#REF!,2,FALSE)","v":{"$error":"#REF!"}}]
[null,null,null,null,null,null,{"$f":"VLOOKUP($K11,#REF!,4,FALSE)","v":{"$error":"#REF!"}},{"$f":"VLOOKUP($K11,#REF!,3,FALSE)","v":{"$error":"#REF!"}},null,{"$f":"VLOOKUP($K11,#REF!,2,FALSE)","v":{"$error":"#REF!"}}]
[null,null,"Sharing Company",null,{"$f":"VLOOKUP($D$12,#REF!,2,FALSE)","v":{"$error":"#REF!"}},null,{"$f":"VLOOKUP($K12,#REF!,4,FALSE)","v":{"$error":"#REF!"}},{"$f":"VLOOKUP($K12,#REF!,3,FALSE)","v":{"$error":"#REF!"}},null,{"$f":"VLOOKUP($K12,#REF!,2,FALSE)","v":{"$error":"#REF!"}}]
[]
["NO","Name\nالاسم","Last Name\nالعائلي","Nationality\nالجنسيه","Passport\nجواز السفر","Hotel\nالفندق","Room No.\nالحجره","Adult\nكبير","CHD\nطفل","Activity\nالنشاط","LEVEL\nرخصه ","Eval\nمستوي","Box\nصندوق","Fins\nزعانف","Com\nملاحظات","Check in","Bill","Time","Transf","Rest","Guide","Reg#","BCD#","Suit#","Fins#","Mask#","BOOT","Partner"]
[1,null,null,null,null,null,null,null,null,null,null,null,5]
[2,null,null,null,null,null,null,null,null,null,null,null,3]
[3]
[4]
[5]
[6]
[7]
[8]
[9]
[10]
[11]
[12]
[13]
[14]
[15]
[16]
[17]
[18]
[19]
[20]
[21]
[22]
[23]
[24]
[25]
[26]
[27]
[28]
[29]
[30]
[31]
[32]
[33]
[34]
[null,null,null,null,null,null,null,{"$f":"SUM(H15:H48)","v":0},{"$f":"SUM(I15:I48)","v":0},"Total\nاجمالي"]
[]
[null,"PLEASE DON’T FORGET PASSPORT "]
[null,"PICK UP ",null,null,null,null,null,null,null,null,"Nitrox 32%",null,null,"NOTE"]
[null,"Guide","Assembly time","Place of assembly","Carrier","Tel.","DRIVER",null,null,null,"12 L"]
[null,null,null,null,{"$f":"VLOOKUP($G54,#REF!,2,FALSE)","v":{"$error":"#REF!"}},{"$f":"VLOOKUP($G54,#REF!,3,FALSE)","v":{"$error":"#REF!"}},null,null,null,null,"15 L"]
[null,null,null,null,{"$f":"VLOOKUP($G55,#REF!,2,FALSE)","v":{"$error":"#REF!"}},{"$f":"VLOOKUP($G55,#REF!,3,FALSE)","v":{"$error":"#REF!"}},null,null,null,null,"Air"]
[null,null,null,null,{"$f":"VLOOKUP($G56,#REF!,2,FALSE)","v":{"$error":"#REF!"}},{"$f":"VLOOKUP($G56,#REF!,3,FALSE)","v":{"$error":"#REF!"}},null,null,null,null,"8 L"]
[null,null,null,null,{"$f":"VLOOKUP($G57,#REF!,2,FALSE)","v":{"$error":"#REF!"}},{"$f":"VLOOKUP($G57,#REF!,3,FALSE)","v":{"$error":"#REF!"}},null,null,null,null,"15 L"]

{"sheet":"Boat3","index":2,"n_rows":303,"n_cols":28,"rows_kept":303,"cut":false,"hidden":false,"merged":[[51,13,51,17],[52,6,52,7],[52,13,56,17],[53,6,53,7],[54,6,54,7],[54,10,54,11],[55,6,55,7],[56,6,56,7],[9,7,9,8],[9,10,9,11],[10,7,10,8],[10,10,10,11],[51,1,51,7],[51,10,51,11],[11,7,11,8],[11,10,11,11],[0,13,1,14],[2,7,2,8],[2,10,2,11],[2,13,2,14],[50,1,50,7],[4,7,4,8],[4,10,4,11],[5,7,5,8],[5,10,5,11],[6,0,9,1],[6,7,6,8],[6,10,6,11],[7,7,7,8],[7,10,7,11],[8,7,8,8],[8,10,8,11],[3,2,3,5],[3,6,3,11],[0,2,1,2],[0,3,1,3],[0,4,1,4],[0,5,0,6],[0,7,1,8],[0,9,1,9],[0,10,1,11]]}
[null,null,"التاريخ","اتجاه الرحله","ميناء القيام","الحموله",null,"تاريخ انتهاء الترخيص",null,"رقم التسجيل","اسم اللنش",null,null,"تليفون اللنش"]
[null,null,null,null,null,"عدد الركاب","عدد الطقم"]
[null,null,{"$f":"Boat1!C3","v":"2022-08-01"},null,null,{"$f":"VLOOKUP($K$3,#REF!,4,FALSE)","v":{"$error":"#REF!"}},{"$f":"VLOOKUP($K$3,#REF!,5,FALSE)","v":{"$error":"#REF!"}},{"$f":"VLOOKUP($K$3,#REF!,3,FALSE)","v":{"$error":"#REF!"}},null,{"$f":"VLOOKUP($K$3,#REF!,2,FALSE)","v":{"$error":"#REF!"}},null,null,null,{"$f":"VLOOKUP($K$3,#REF!,6,FALSE)","v":{"$error":"#REF!"}},{"$f":"VLOOKUP($K$3,#REF!,2,FALSE)","v":{"$error":"#REF!"}}]
[null,null,"طاقم المركب",null,null,null,"المدربين/المرشدين/المصورين",null,null,null,null,null,null,"SNORK"]
[null,null,"تليفون","رقم مزاوله المهنه","الوظيفه","اسماء الطاقم","تليفون","رقم مزاوله المهنه",null,"الوظيفه","الاسماء"]
[null,null,{"$f":"VLOOKUP($K$3,#REF!,10,FALSE)","v":{"$error":"#REF!"}},{"$f":"VLOOKUP($K$3,#REF!,9,FALSE)","v":{"$error":"#REF!"}},{"$f":"VLOOKUP($K$3,#REF!,8,FALSE)","v":{"$error":"#REF!"}},{"$f":"VLOOKUP($K$3,#REF!,7,FALSE)","v":{"$error":"#REF!"}},{"$f":"VLOOKUP($K6,#REF!,4,FALSE)","v":{"$error":"#REF!"}},{"$f":"VLOOKUP($K6,#REF!,3,FALSE)","v":{"$error":"#REF!"}},null,{"$f":"VLOOKUP($K6,#REF!,2,FALSE)","v":{"$error":"#REF!"}}]
["مركز غوص ديزرت روز \n رخصه 341 \n تليفون:01220004757",null,{"$f":"VLOOKUP($K$3,#REF!,14,FALSE)","v":{"$error":"#REF!"}},{"$f":"VLOOKUP($K$3,#REF!,13,FALSE)","v":{"$error":"#REF!"}},{"$f":"VLOOKUP($K$3,#REF!,12,FALSE)","v":{"$error":"#REF!"}},{"$f":"VLOOKUP($K$3,#REF!,11,FALSE)","v":{"$error":"#REF!"}},{"$f":"VLOOKUP($K7,#REF!,4,FALSE)","v":{"$error":"#REF!"}},{"$f":"VLOOKUP($K7,#REF!,3,FALSE)","v":{"$error":"#REF!"}},null,{"$f":"VLOOKUP($K7,#REF!,2,FALSE)","v":{"$error":"#REF!"}}]
[null,null,{"$f":"VLOOKUP($K$3,#REF!,18,FALSE)","v":{"$error":"#REF!"}},{"$f":"VLOOKUP($K$3,#REF!,17,FALSE)","v":{"$error":"#REF!"}},{"$f":"VLOOKUP($K$3,#REF!,16,FALSE)","v":{"$error":"#REF!"}},{"$f":"VLOOKUP($K$3,#REF!,15,FALSE)","v":{"$error":"#REF!"}},{"$f":"VLOOKUP($K8,#REF!,4,FALSE)","v":{"$error":"#REF!"}},{"$f":"VLOOKUP($K8,#REF!,3,FALSE)","v":{"$error":"#REF!"}},null,{"$f":"VLOOKUP($K8,#REF!,2,FALSE)","v":{"$error":"#REF!"}}]
[null,null,{"$f":"VLOOKUP($K$3,#REF!,22,FALSE)","v":{"$error":"#REF!"}},{"$f":"VLOOKUP($K$3,#REF!,21,FALSE)","v":{"$error":"#REF!"}},{"$f":"VLOOKUP($K$3,#REF!,20,FALSE)","v":{"$error":"#REF!"}},{"$f":"VLOOKUP($K$3,#REF!,19,FALSE)","v":{"$error":"#REF!"}},{"$f":"VLOOKUP($K9,#REF!,4,FALSE)","v":{"$error":"#REF!"}},{"$f":"VLOOKUP($K9,#REF!,3,FALSE)","v":{"$error":"#REF!"}},null,{"$f":"VLOOKUP($K9,#REF!,2,FALSE)","v":{"$error":"#REF!"}}]
[null,null,null,null,null,null,{"$f":"VLOOKUP($K10,#REF!,4,FALSE)","v":{"$error":"#REF!"}},{"$f":"VLOOKUP($K10,#REF!,3,FALSE)","v":{"$error":"#REF!"}},null,{"$f":"VLOOKUP($K10,#REF!,2,FALSE)","v":{"$error":"#REF!"}}]
[null,null,null,null,null,null,{"$f":"VLOOKUP($K11,#REF!,4,FALSE)","v":{"$error":"#REF!"}},{"$f":"VLOOKUP($K11,#REF!,3,FALSE)","v":{"$error":"#REF!"}},null,{"$f":"VLOOKUP($K11,#REF!,2,FALSE)","v":{"$error":"#REF!"}}]
[null,null,"Sharing Company",null,{"$f":"VLOOKUP($D$12,#REF!,2,FALSE)","v":{"$error":"#REF!"}},null,{"$f":"VLOOKUP($K12,#REF!,4,FALSE)","v":{"$error":"#REF!"}},{"$f":"VLOOKUP($K12,#REF!,3,FALSE)","v":{"$error":"#REF!"}},null,{"$f":"VLOOKUP($K12,#REF!,2,FALSE)","v":{"$error":"#REF!"}}]
[]
["NO","Name\nالاسم","Last Name\nالعائلي","Nationality\nالجنسيه","Passport\nجواز السفر","Hotel\nالفندق","Room No.\nالحجره","Adult\nكبير","CHD\nطفل","Activity\nالنشاط","LEVEL\nرخصه ","Eval\nمستوي","Box\nصندوق","Fins\nزعانف","Com\nملاحظات","Check in","Bill","Time","Transf","Rest","Guide","Reg#","BCD#","Suit#","Fins#","Mask#","BOOT","Partner"]
[1,null,null,null,null,null,null,null,null,null,null,null,2]
[2]
[3]
[4]
[5]
[6]
[7]
[8]
[9]
[10]
[11]
[12]
[13]
[14]
[15]
[16]
[17]
[18]
[19]
[20]
[21]
[22]
[23]
[24]
[25]
[26]
[27]
[28]
[29]
[30]
[31]
[32]
[33]
[34]
[null,null,null,null,null,null,null,{"$f":"SUM(H15:H48)","v":0},{"$f":"SUM(I15:I48)","v":0},"Total\nاجمالي"]
[]
[null,"PLEASE DON’T FORGET PASSPORT "]
[null,"PICK UP ",null,null,null,null,null,null,null,null,"Nitrox 32%",null,null,"NOTE"]
[null,"Guide","Assembly time","Place of assembly","Carrier","Tel.","DRIVER",null,null,null,"12 L"]
[null,null,null,null,{"$f":"VLOOKUP($G54,#REF!,2,FALSE)","v":{"$error":"#REF!"}},{"$f":"VLOOKUP($G54,#REF!,3,FALSE)","v":{"$error":"#REF!"}},null,null,null,null,"15 L"]
[null,null,null,null,{"$f":"VLOOKUP($G55,#REF!,2,FALSE)","v":{"$error":"#REF!"}},{"$f":"VLOOKUP($G55,#REF!,3,FALSE)","v":{"$error":"#REF!"}},null,null,null,null,"Air"]
[null,null,null,null,{"$f":"VLOOKUP($G56,#REF!,2,FALSE)","v":{"$error":"#REF!"}},{"$f":"VLOOKUP($G56,#REF!,3,FALSE)","v":{"$error":"#REF!"}},null,null,null,null,"8 L"]
[null,null,null,null,{"$f":"VLOOKUP($G57,#REF!,2,FALSE)","v":{"$error":"#REF!"}},{"$f":"VLOOKUP($G57,#REF!,3,FALSE)","v":{"$error":"#REF!"}},null,null,null,null,"15 L"]
[]
[]
[]
[]
[]
[]
[null,null,null,null,null,null,null,null,null,null,null,null,{"$f":"Boat1!M19","v":0}]
[null,null,null,null,null,null,null,null,null,null,null,null,{"$f":"Boat1!M20","v":0}]
[null,null,null,null,null,null,null,null,null,null,null,null,{"$f":"Boat1!M21","v":0}]
[null,null,null,null,null,null,null,null,null,null,null,null,{"$f":"Boat1!M22","v":0}]
[null,null,null,null,null,null,null,null,null,null,null,null,{"$f":"Boat1!M23","v":0}]
[null,null,null,null,null,null,null,null,null,null,null,null,{"$f":"Boat1!M24","v":0}]
[null,null,null,null,null,null,null,null,null,null,null,null,{"$f":"Boat1!M25","v":0}]
[null,null,null,null,null,null,null,null,null,null,null,null,{"$f":"Boat1!M26","v":0}]
[null,null,null,null,null,null,null,null,null,null,null,null,{"$f":"Boat1!M27","v":0}]
[null,null,null,null,null,null,null,null,null,null,null,null,{"$f":"Boat1!M28","v":0}]
[null,null,null,null,null,null,null,null,null,null,null,null,{"$f":"Boat1!M29","v":0}]
[null,null,null,null,null,null,null,null,null,null,null,null,{"$f":"Boat1!M30","v":0}]
[null,null,null,null,null,null,null,null,null,null,null,null,{"$f":"Boat1!M31","v":0}]
[null,null,null,null,null,null,null,null,null,null,null,null,{"$f":"Boat1!M32","v":0}]
[null,null,null,null,null,null,null,null,null,null,null,null,{"$f":"Boat1!M33","v":0}]
[null,null,null,null,null,null,null,null,null,null,null,null,{"$f":"Boat1!M34","v":0}]
[null,null,null,null,null,null,null,null,null,null,null,null,{"$f":"Boat1!M35","v":0}]
[null,null,null,null,null,null,null,null,null,null,null,null,{"$f":"Boat1!M36","v":0}]
[null,null,null,null,null,null,null,null,null,null,null,null,{"$f":"Boat1!M37","v":0}]
[null,null,null,null,null,null,null,null,null,null,null,null,{"$f":"Boat1!M38","v":0}]
[null,null,null,null,null,null,null,null,null,null,null,null,{"$f":"Boat1!M39","v":0}]
[null,null,null,null,null,null,null,null,null,null,null,null,{"$f":"Boat1!M40","v":0}]
[null,null,null,null,null,null,null,null,null,null,null,null,{"$f":"Boat1!M41","v":0}]
[null,null,null,null,null,null,null,null,null,null,null,null,{"$f":"Boat1!M42","v":0}]
[null,null,null,null,null,null,null,null,null,null,null,null,{"$f":"Boat1!M43","v":0}]
[null,null,null,null,null,null,null,null,null,null,null,null,{"$f":"Boat1!M44","v":0}]
[null,null,null,null,null,null,null,null,null,null,null,null,{"$f":"Boat1!M45","v":0}]
[null,null,null,null,null,null,null,null,null,null,null,null,{"$f":"Boat1!M46","v":0}]
[null,null,null,null,null,null,null,null,null,null,null,null,{"$f":"Boat1!M47","v":0}]
[]
[]
[]
[]
[]
[null,null,null,null,null,null,null,null,null,null,null,null,{"$f":"Boat2!M18","v":0}]
[null,null,null,null,null,null,null,null,null,null,null,null,{"$f":"Boat2!M19","v":0}]
[null,null,null,null,null,null,null,null,null,null,null,null,{"$f":"Boat2!M20","v":0}]
[null,null,null,null,null,null,null,null,null,null,null,null,{"$f":"Boat2!M21","v":0}]
[null,null,null,null,null,null,null,null,null,null,null,null,{"$f":"Boat2!M22","v":0}]
[null,null,null,null,null,null,null,null,null,null,null,null,{"$f":"Boat2!M23","v":0}]
[null,null,null,null,null,null,null,null,null,null,null,null,{"$f":"Boat2!M24","v":0}]
[null,null,null,null,null,null,null,null,null,null,null,null,{"$f":"Boat2!M25","v":0}]
[null,null,null,null,null,null,null,null,null,null,null,null,{"$f":"Boat2!M26","v":0}]
[null,null,null,null,null,null,null,null,null,null,null,null,{"$f":"Boat2!M27","v":0}]
[null,null,null,null,null,null,null,null,null,null,null,null,{"$f":"Boat2!M28","v":0}]
[null,null,null,null,null,null,null,null,null,null,null,null,{"$f":"Boat2!M29","v":0}]
[null,null,null,null,null,null,null,null,null,null,null,null,{"$f":"Boat2!M30","v":0}]
[null,null,null,null,null,null,null,null,null,null,null,null,{"$f":"Boat2!M31","v":0}]
[null,null,null,null,null,null,null,null,null,null,null,null,{"$f":"Boat2!M32","v":0}]
[null,null,null,null,null,null,null,null,null,null,null,null,{"$f":"Boat2!M33","v":0}]
[null,null,null,null,null,null,null,null,null,null,null,null,{"$f":"Boat2!M34","v":0}]
[null,null,null,null,null,null,null,null,null,null,null,null,{"$f":"Boat2!M35","v":0}]
[null,null,null,null,null,null,null,null,null,null,null,null,{"$f":"Boat2!M36","v":0}]
[null,null,null,null,null,null,null,null,null,null,null,null,{"$f":"Boat2!M37","v":0}]
[null,null,null,null,null,null,null,null,null,null,null,null,{"$f":"Boat2!M38","v":0}]
[null,null,null,null,null,null,null,null,null,null,null,null,{"$f":"Boat2!M39","v":0}]
[null,null,null,null,null,null,null,null,null,null,null,null,{"$f":"Boat2!M40","v":0}]
[null,null,null,null,null,null,null,null,null,null,null,null,{"$f":"Boat2!M41","v":0}]
[null,null,null,null,null,null,null,null,null,null,null,null,{"$f":"Boat2!M42","v":0}]
[null,null,null,null,null,null,null,null,null,null,null,null,{"$f":"Boat2!M43","v":0}]
[null,null,null,null,null,null,null,null,null,null,null,null,{"$f":"Boat2!M44","v":0}]
[null,null,null,null,null,null,null,null,null,null,null,null,{"$f":"Boat2!M45","v":0}]
[null,null,null,null,null,null,null,null,null,null,null,null,{"$f":"Boat2!M46","v":0}]
[null,null,null,null,null,null,null,null,null,null,null,null,{"$f":"Boat2!M47","v":0}]
[null,null,null,null,null,null,null,null,null,null,null,null,{"$f":"Boat2!M48","v":0}]
[]
[]
[null,null,null,null,null,null,null,null,null,null,null,null,{"$f":"Dahab!M16","v":0}]
[null,null,null,null,null,null,null,null,null,null,null,null,{"$f":"Dahab!M17","v":0}]
[null,null,null,null,null,null,null,null,null,null,null,null,{"$f":"Dahab!M18","v":0}]
[null,null,null,null,null,null,null,null,null,null,null,null,{"$f":"Dahab!M19","v":0}]
[null,null,null,null,null,null,null,null,null,null,null,null,{"$f":"Dahab!M20","v":0}]
[null,null,null,null,null,null,null,null,null,null,null,null,{"$f":"Dahab!M21","v":0}]
[null,null,null,null,null,null,null,null,null,null,null,null,{"$f":"Dahab!M22","v":0}]
[null,null,null,null,null,null,null,null,null,null,null,null,{"$f":"Dahab!M23","v":0}]
[null,null,null,null,null,null,null,null,null,null,null,null,{"$f":"Dahab!M24","v":0}]
[null,null,null,null,null,null,null,null,null,null,null,null,{"$f":"Dahab!M25","v":0}]
[null,null,null,null,null,null,null,null,null,null,null,null,{"$f":"Dahab!M26","v":0}]
[null,null,null,null,null,null,null,null,null,null,null,null,{"$f":"Dahab!M27","v":0}]
[null,null,null,null,null,null,null,null,null,null,null,null,{"$f":"Dahab!M28","v":0}]
[null,null,null,null,null,null,null,null,null,null,null,null,{"$f":"Dahab!M29","v":0}]
[null,null,null,null,null,null,null,null,null,null,null,null,{"$f":"Dahab!M30","v":0}]
[null,null,null,null,null,null,null,null,null,null,null,null,{"$f":"Dahab!M31","v":0}]
[null,null,null,null,null,null,null,null,null,null,null,null,{"$f":"Dahab!M32","v":0}]
[null,null,null,null,null,null,null,null,null,null,null,null,{"$f":"Dahab!M33","v":0}]
[null,null,null,null,null,null,null,null,null,null,null,null,{"$f":"Dahab!M34","v":0}]
[null,null,null,null,null,null,null,null,null,null,null,null,{"$f":"Dahab!M35","v":0}]
[null,null,null,null,null,null,null,null,null,null,null,null,{"$f":"Dahab!M36","v":0}]
[null,null,null,null,null,null,null,null,null,null,null,null,{"$f":"Dahab!M37","v":0}]
[null,null,null,null,null,null,null,null,null,null,null,null,{"$f":"Dahab!M38","v":0}]
[null,null,null,null,null,null,null,null,null,null,null,null,{"$f":"Dahab!M39","v":0}]
[null,null,null,null,null,null,null,null,null,null,null,null,{"$f":"Dahab!M40","v":0}]
[null,null,null,null,null,null,null,null,null,null,null,null,{"$f":"Dahab!M41","v":0}]
[null,null,null,null,null,null,null,null,null,null,null,null,{"$f":"Dahab!M42","v":0}]
[null,null,null,null,null,null,null,null,null,null,null,null,{"$f":"Dahab!M43","v":0}]
[null,null,null,null,null,null,null,null,null,null,null,null,{"$f":"Dahab!M44","v":0}]
[null,null,null,null,null,null,null,null,null,null,null,null,{"$f":"Dahab!M45","v":0}]
[null,null,null,null,null,null,null,null,null,null,null,null,{"$f":"Dahab!M46","v":0}]
[null,null,null,null,null,null,null,null,null,null,null,null,{"$f":"Dahab!M47","v":0}]
[null,null,null,null,null,null,null,null,null,null,null,null,{"$f":"Dahab!M48","v":0}]
[]
[null,null,null,null,null,null,null,null,null,null,null,null,{"$f":"Thistelgorm!M15","v":0}]
[null,null,null,null,null,null,null,null,null,null,null,null,{"$f":"Thistelgorm!M16","v":0}]
[null,null,null,null,null,null,null,null,null,null,null,null,{"$f":"Thistelgorm!M17","v":0}]
[null,null,null,null,null,null,null,null,null,null,null,null,{"$f":"Thistelgorm!M18","v":0}]
[null,null,null,null,null,null,null,null,null,null,null,null,{"$f":"Thistelgorm!M19","v":0}]
[null,null,null,null,null,null,null,null,null,null,null,null,{"$f":"Thistelgorm!M20","v":0}]
[null,null,null,null,null,null,null,null,null,null,null,null,{"$f":"Thistelgorm!M21","v":0}]
[null,null,null,null,null,null,null,null,null,null,null,null,{"$f":"Thistelgorm!M22","v":0}]
[null,null,null,null,null,null,null,null,null,null,null,null,{"$f":"Thistelgorm!M23","v":0}]
[null,null,null,null,null,null,null,null,null,null,null,null,{"$f":"Thistelgorm!M24","v":0}]
[null,null,null,null,null,null,null,null,null,null,null,null,{"$f":"Thistelgorm!M25","v":0}]
[null,null,null,null,null,null,null,null,null,null,null,null,{"$f":"Thistelgorm!M26","v":0}]
[null,null,null,null,null,null,null,null,null,null,null,null,{"$f":"Thistelgorm!M27","v":0}]
[null,null,null,null,null,null,null,null,null,null,null,null,{"$f":"Thistelgorm!M28","v":0}]
[null,null,null,null,null,null,null,null,null,null,null,null,{"$f":"Thistelgorm!M29","v":0}]
[null,null,null,null,null,null,null,null,null,null,null,null,{"$f":"Thistelgorm!M30","v":0}]
[null,null,null,null,null,null,null,null,null,null,null,null,{"$f":"Thistelgorm!M31","v":0}]
[null,null,null,null,null,null,null,null,null,null,null,null,{"$f":"Thistelgorm!M32","v":0}]
[null,null,null,null,null,null,null,null,null,null,null,null,{"$f":"Thistelgorm!M33","v":0}]
[null,null,null,null,null,null,null,null,null,null,null,null,{"$f":"Thistelgorm!M34","v":0}]
[null,null,null,null,null,null,null,null,null,null,null,null,{"$f":"Thistelgorm!M35","v":0}]
[null,null,null,null,null,null,null,null,null,null,null,null,{"$f":"Thistelgorm!M36","v":0}]
[null,null,null,null,null,null,null,null,null,null,null,null,{"$f":"Thistelgorm!M37","v":0}]
[null,null,null,null,null,null,null,null,null,null,null,null,{"$f":"Thistelgorm!M38","v":0}]
[null,null,null,null,null,null,null,null,null,null,null,null,{"$f":"Thistelgorm!M39","v":0}]
[null,null,null,null,null,null,null,null,null,null,null,null,{"$f":"Thistelgorm!M40","v":0}]
[null,null,null,null,null,null,null,null,null,null,null,null,{"$f":"Thistelgorm!M41","v":0}]
[null,null,null,null,null,null,null,null,null,null,null,null,{"$f":"Thistelgorm!M42","v":0}]
[null,null,null,null,null,null,null,null,null,null,null,null,{"$f":"Thistelgorm!M43","v":0}]
[null,null,null,null,null,null,null,null,null,null,null,null,{"$f":"Thistelgorm!M44","v":0}]
[null,null,null,null,null,null,null,null,null,null,null,null,{"$f":"Thistelgorm!M45","v":0}]
[null,null,null,null,null,null,null,null,null,null,null,null,{"$f":"Thistelgorm!M46","v":0}]
[null,null,null,null,null,null,null,null,null,null,null,null,{"$f":"Thistelgorm!M47","v":0}]
[null,null,null,null,null,null,null,null,null,null,null,null,{"$f":"Thistelgorm!M48","v":0}]
[null,null,null,null,null,null,null,null,null,null,null,null,"sharks bay"]
[null,null,null,null,null,null,null,null,null,null,null,null,{"$f":"'Sharks bay'!M15","v":0}]
[null,null,null,null,null,null,null,null,null,null,null,null,{"$f":"'Sharks bay'!M16","v":0}]
[null,null,null,null,null,null,null,null,null,null,null,null,{"$f":"'Sharks bay'!M17","v":0}]
[null,null,null,null,null,null,null,null,null,null,null,null,{"$f":"'Sharks bay'!M18","v":0}]
[null,null,null,null,null,null,null,null,null,null,null,null,{"$f":"'Sharks bay'!M19","v":0}]
[null,null,null,null,null,null,null,null,null,null,null,null,{"$f":"'Sharks bay'!M20","v":0}]
[null,null,null,null,null,null,null,null,null,null,null,null,{"$f":"'Sharks bay'!M21","v":0}]
[null,null,null,null,null,null,null,null,null,null,null,null,{"$f":"'Sharks bay'!M22","v":0}]
[null,null,null,null,null,null,null,null,null,null,null,null,{"$f":"'Sharks bay'!M23","v":0}]
[null,null,null,null,null,null,null,null,null,null,null,null,{"$f":"'Sharks bay'!M24","v":0}]
[null,null,null,null,null,null,null,null,null,null,null,null,{"$f":"'Sharks bay'!M25","v":0}]
[null,null,null,null,null,null,null,null,null,null,null,null,{"$f":"'Sharks bay'!M26","v":0}]
[null,null,null,null,null,null,null,null,null,null,null,null,{"$f":"'Sharks bay'!M27","v":0}]
[null,null,null,null,null,null,null,null,null,null,null,null,{"$f":"'Sharks bay'!M28","v":0}]
[null,null,null,null,null,null,null,null,null,null,null,null,{"$f":"'Sharks bay'!M29","v":0}]
[null,null,null,null,null,null,null,null,null,null,null,null,{"$f":"'Sharks bay'!M30","v":0}]
[null,null,null,null,null,null,null,null,null,null,null,null,{"$f":"'Sharks bay'!M31","v":0}]
[null,null,null,null,null,null,null,null,null,null,null,null,{"$f":"'Sharks bay'!M32","v":0}]
[null,null,null,null,null,null,null,null,null,null,null,null,{"$f":"'Sharks bay'!M33","v":0}]
[null,null,null,null,null,null,null,null,null,null,null,null,{"$f":"'Sharks bay'!M34","v":0}]
[null,null,null,null,null,null,null,null,null,null,null,null,{"$f":"'Sharks bay'!M35","v":0}]
[null,null,null,null,null,null,null,null,null,null,null,null,{"$f":"'Sharks bay'!M36","v":0}]
[null,null,null,null,null,null,null,null,null,null,null,null,{"$f":"'Sharks bay'!M37","v":0}]
[null,null,null,null,null,null,null,null,null,null,null,null,{"$f":"'Sharks bay'!M38","v":0}]
[null,null,null,null,null,null,null,null,null,null,null,null,{"$f":"'Sharks bay'!M39","v":0}]
[null,null,null,null,null,null,null,null,null,null,null,null,{"$f":"'Sharks bay'!M40","v":0}]
[null,null,null,null,null,null,null,null,null,null,null,null,{"$f":"'Sharks bay'!M41","v":0}]
[null,null,null,null,null,null,null,null,null,null,null,null,{"$f":"'Sharks bay'!M42","v":0}]
[null,null,null,null,null,null,null,null,null,null,null,null,{"$f":"'Sharks bay'!M43","v":0}]
[null,null,null,null,null,null,null,null,null,null,null,null,{"$f":"'Sharks bay'!M44","v":0}]
[null,null,null,null,null,null,null,null,null,null,null,null,{"$f":"'Sharks bay'!M45","v":0}]
[null,null,null,null,null,null,null,null,null,null,null,null,{"$f":"'Sharks bay'!M46","v":0}]
[null,null,null,null,null,null,null,null,null,null,null,null,{"$f":"'Sharks bay'!M47","v":0}]
[null,null,null,null,null,null,null,null,null,null,null,null,{"$f":"'Sharks bay'!M48","v":0}]
[null,null,null,null,null,null,null,null,null,null,null,null,"stella"]
[null,null,null,null,null,null,null,null,null,null,null,null,{"$f":"Stella!M15","v":0}]
[null,null,null,null,null,null,null,null,null,null,null,null,{"$f":"Stella!M16","v":0}]
[null,null,null,null,null,null,null,null,null,null,null,null,{"$f":"Stella!M17","v":0}]
[null,null,null,null,null,null,null,null,null,null,null,null,{"$f":"Stella!M18","v":0}]
[null,null,null,null,null,null,null,null,null,null,null,null,{"$f":"Stella!M19","v":0}]
[null,null,null,null,null,null,null,null,null,null,null,null,{"$f":"Stella!M20","v":0}]
[null,null,null,null,null,null,null,null,null,null,null,null,{"$f":"Stella!M21","v":0}]
[null,null,null,null,null,null,null,null,null,null,null,null,{"$f":"Stella!M22","v":0}]
[null,null,null,null,null,null,null,null,null,null,null,null,{"$f":"Stella!M23","v":0}]
[null,null,null,null,null,null,null,null,null,null,null,null,{"$f":"Stella!M24","v":0}]
[null,null,null,null,null,null,null,null,null,null,null,null,{"$f":"Stella!M25","v":0}]
[null,null,null,null,null,null,null,null,null,null,null,null,{"$f":"Stella!M26","v":0}]
[null,null,null,null,null,null,null,null,null,null,null,null,{"$f":"Stella!M27","v":0}]
[null,null,null,null,null,null,null,null,null,null,null,null,{"$f":"Stella!M28","v":0}]
[null,null,null,null,null,null,null,null,null,null,null,null,{"$f":"Stella!M29","v":0}]
[null,null,null,null,null,null,null,null,null,null,null,null,{"$f":"Stella!M30","v":0}]
[null,null,null,null,null,null,null,null,null,null,null,null,{"$f":"Stella!M31","v":0}]
[null,null,null,null,null,null,null,null,null,null,null,null,{"$f":"Stella!M32","v":0}]
[null,null,null,null,null,null,null,null,null,null,null,null,{"$f":"Stella!M33","v":0}]
[null,null,null,null,null,null,null,null,null,null,null,null,{"$f":"Stella!M34","v":0}]
[null,null,null,null,null,null,null,null,null,null,null,null,{"$f":"Stella!M35","v":0}]
[null,null,null,null,null,null,null,null,null,null,null,null,{"$f":"Stella!M36","v":0}]
[null,null,null,null,null,null,null,null,null,null,null,null,{"$f":"Stella!M37","v":0}]
[null,null,null,null,null,null,null,null,null,null,null,null,{"$f":"Stella!M38","v":0}]
[null,null,null,null,null,null,null,null,null,null,null,null,{"$f":"Stella!M39","v":0}]
[null,null,null,null,null,null,null,null,null,null,null,null,{"$f":"Stella!M40","v":0}]
[null,null,null,null,null,null,null,null,null,null,null,null,{"$f":"Stella!M41","v":0}]
[null,null,null,null,null,null,null,null,null,null,null,null,{"$f":"Stella!M42","v":0}]
[null,null,null,null,null,null,null,null,null,null,null,null,{"$f":"Stella!M43","v":0}]
[null,null,null,null,null,null,null,null,null,null,null,null,{"$f":"Stella!M44","v":0}]
[null,null,null,null,null,null,null,null,null,null,null,null,{"$f":"Stella!M45","v":0}]
[null,null,null,null,null,null,null,null,null,null,null,null,{"$f":"Stella!M46","v":0}]
[null,null,null,null,null,null,null,null,null,null,null,null,{"$f":"Stella!M47","v":0}]
[null,null,null,null,null,null,null,null,null,null,null,null,{"$f":"Stella!M48","v":0}]
[null,null,null,null,null,null,null,null,null,null,null,null,"fanar"]
[null,null,null,null,null,null,null,null,null,null,null,null,{"$f":"Fanar!M15","v":0}]
[null,null,null,null,null,null,null,null,null,null,null,null,{"$f":"Fanar!M16","v":0}]
[null,null,null,null,null,null,null,null,null,null,null,null,{"$f":"Fanar!M17","v":0}]
[null,null,null,null,null,null,null,null,null,null,null,null,{"$f":"Fanar!M18","v":0}]
[null,null,null,null,null,null,null,null,null,null,null,null,{"$f":"Fanar!M19","v":0}]
[null,null,null,null,null,null,null,null,null,null,null,null,{"$f":"Fanar!M20","v":0}]
[null,null,null,null,null,null,null,null,null,null,null,null,{"$f":"Fanar!M21","v":0}]
[null,null,null,null,null,null,null,null,null,null,null,null,{"$f":"Fanar!M22","v":0}]
[null,null,null,null,null,null,null,null,null,null,null,null,{"$f":"Fanar!M23","v":0}]
[null,null,null,null,null,null,null,null,null,null,null,null,{"$f":"Fanar!M24","v":0}]
[null,null,null,null,null,null,null,null,null,null,null,null,{"$f":"Fanar!M25","v":0}]
[null,null,null,null,null,null,null,null,null,null,null,null,{"$f":"Fanar!M26","v":0}]
[null,null,null,null,null,null,null,null,null,null,null,null,{"$f":"Fanar!M27","v":0}]
[null,null,null,null,null,null,null,null,null,null,null,null,{"$f":"Fanar!M28","v":0}]
[null,null,null,null,null,null,null,null,null,null,null,null,{"$f":"Fanar!M29","v":0}]
[null,null,null,null,null,null,null,null,null,null,null,null,{"$f":"Fanar!M30","v":0}]
[null,null,null,null,null,null,null,null,null,null,null,null,{"$f":"Fanar!M31","v":0}]
[null,null,null,null,null,null,null,null,null,null,null,null,{"$f":"Fanar!M32","v":0}]
[null,null,null,null,null,null,null,null,null,null,null,null,{"$f":"Fanar!M33","v":0}]
[null,null,null,null,null,null,null,null,null,null,null,null,{"$f":"Fanar!M34","v":0}]
[null,null,null,null,null,null,null,null,null,null,null,null,{"$f":"Fanar!M35","v":0}]
[null,null,null,null,null,null,null,null,null,null,null,null,{"$f":"Fanar!M36","v":0}]
[null,null,null,null,null,null,null,null,null,null,null,null,{"$f":"Fanar!M37","v":0}]
[null,null,null,null,null,null,null,null,null,null,null,null,{"$f":"Fanar!M38","v":0}]
[null,null,null,null,null,null,null,null,null,null,null,null,{"$f":"Fanar!M39","v":0}]
[null,null,null,null,null,null,null,null,null,null,null,null,{"$f":"Fanar!M40","v":0}]
[null,null,null,null,null,null,null,null,null,null,null,null,{"$f":"Fanar!M41","v":0}]
[null,null,null,null,null,null,null,null,null,null,null,null,{"$f":"Fanar!M42","v":0}]
[null,null,null,null,null,null,null,null,null,null,null,null,{"$f":"Fanar!M43","v":0}]
[null,null,null,null,null,null,null,null,null,null,null,null,{"$f":"Fanar!M44","v":0}]
[null,null,null,null,null,null,null,null,null,null,null,null,{"$f":"Fanar!M45","v":0}]
[null,null,null,null,null,null,null,null,null,null,null,null,{"$f":"Fanar!M46","v":0}]
[null,null,null,null,null,null,null,null,null,null,null,null,{"$f":"Fanar!M47","v":0}]
[null,null,null,null,null,null,null,null,null,null,null,null,{"$f":"Fanar!M48","v":0}]

{"sheet":"Dahab","index":3,"n_rows":304,"n_cols":28,"rows_kept":304,"cut":false,"hidden":false,"merged":[[51,13,51,17],[52,6,52,7],[52,13,56,17],[53,6,53,7],[54,6,54,7],[54,10,54,11],[55,6,55,7],[56,6,56,7],[9,7,9,8],[9,10,9,11],[10,7,10,8],[10,10,10,11],[51,1,51,7],[51,10,51,11],[11,7,11,8],[11,10,11,11],[0,13,1,14],[2,7,2,8],[2,10,2,11],[2,13,2,14],[50,1,50,7],[4,7,4,8],[4,10,4,11],[5,7,5,8],[5,10,5,11],[6,0,9,1],[6,7,6,8],[6,10,6,11],[7,7,7,8],[7,10,7,11],[8,7,8,8],[8,10,8,11],[3,2,3,5],[3,6,3,11],[0,2,1,2],[0,3,1,3],[0,4,1,4],[0,5,0,6],[0,7,1,8],[0,9,1,9],[0,10,1,11]]}
[null,null,"التاريخ","اتجاه الرحله","ميناء القيام","الحموله",null,"تاريخ انتهاء الترخيص",null,"رقم التسجيل","اسم اللنش",null,null,"تليفون اللنش"]
[null,null,null,null,null,"عدد الركاب","عدد الطقم"]
[null,null,{"$f":"Boat1!C3","v":"2022-08-01"},"Dahab",null,{"$f":"VLOOKUP($K$3,#REF!,4,FALSE)","v":{"$error":"#REF!"}},{"$f":"VLOOKUP($K$3,#REF!,5,FALSE)","v":{"$error":"#REF!"}},{"$f":"VLOOKUP($K$3,#REF!,3,FALSE)","v":{"$error":"#REF!"}},null,{"$f":"VLOOKUP($K$3,#REF!,2,FALSE)","v":{"$error":"#REF!"}},null,null,null,{"$f":"VLOOKUP($K$3,#REF!,6,FALSE)","v":{"$error":"#REF!"}},{"$f":"VLOOKUP($K$3,#REF!,2,FALSE)","v":{"$error":"#REF!"}}]
[null,null,"طاقم المركب",null,null,null,"المدربين/المرشدين/المصورين",null,null,null,null,null,null,"GUIDING"]
[null,null,"تليفون","رقم مزاوله المهنه","الوظيفه","اسماء الطاقم","تليفون","رقم مزاوله المهنه",null,"الوظيفه","الاسماء"]
[null,null,{"$f":"VLOOKUP($K$3,#REF!,10,FALSE)","v":{"$error":"#REF!"}},{"$f":"VLOOKUP($K$3,#REF!,9,FALSE)","v":{"$error":"#REF!"}},{"$f":"VLOOKUP($K$3,#REF!,8,FALSE)","v":{"$error":"#REF!"}},{"$f":"VLOOKUP($K$3,#REF!,7,FALSE)","v":{"$error":"#REF!"}},{"$f":"VLOOKUP($K6,#REF!,4,FALSE)","v":{"$error":"#REF!"}},{"$f":"VLOOKUP($K6,#REF!,3,FALSE)","v":{"$error":"#REF!"}},null,{"$f":"VLOOKUP($K6,#REF!,2,FALSE)","v":{"$error":"#REF!"}}]
["مركز غوص ديزرت روز \n رخصه 341 \n تليفون:01220004757",null,{"$f":"VLOOKUP($K$3,#REF!,14,FALSE)","v":{"$error":"#REF!"}},{"$f":"VLOOKUP($K$3,#REF!,13,FALSE)","v":{"$error":"#REF!"}},{"$f":"VLOOKUP($K$3,#REF!,12,FALSE)","v":{"$error":"#REF!"}},{"$f":"VLOOKUP($K$3,#REF!,11,FALSE)","v":{"$error":"#REF!"}},{"$f":"VLOOKUP($K7,#REF!,4,FALSE)","v":{"$error":"#REF!"}},{"$f":"VLOOKUP($K7,#REF!,3,FALSE)","v":{"$error":"#REF!"}},null,{"$f":"VLOOKUP($K7,#REF!,2,FALSE)","v":{"$error":"#REF!"}}]
[null,null,{"$f":"VLOOKUP($K$3,#REF!,18,FALSE)","v":{"$error":"#REF!"}},{"$f":"VLOOKUP($K$3,#REF!,17,FALSE)","v":{"$error":"#REF!"}},{"$f":"VLOOKUP($K$3,#REF!,16,FALSE)","v":{"$error":"#REF!"}},{"$f":"VLOOKUP($K$3,#REF!,15,FALSE)","v":{"$error":"#REF!"}},{"$f":"VLOOKUP($K8,#REF!,4,FALSE)","v":{"$error":"#REF!"}},{"$f":"VLOOKUP($K8,#REF!,3,FALSE)","v":{"$error":"#REF!"}},null,{"$f":"VLOOKUP($K8,#REF!,2,FALSE)","v":{"$error":"#REF!"}}]
[null,null,{"$f":"VLOOKUP($K$3,#REF!,22,FALSE)","v":{"$error":"#REF!"}},{"$f":"VLOOKUP($K$3,#REF!,21,FALSE)","v":{"$error":"#REF!"}},{"$f":"VLOOKUP($K$3,#REF!,20,FALSE)","v":{"$error":"#REF!"}},{"$f":"VLOOKUP($K$3,#REF!,19,FALSE)","v":{"$error":"#REF!"}},{"$f":"VLOOKUP($K9,#REF!,4,FALSE)","v":{"$error":"#REF!"}},{"$f":"VLOOKUP($K9,#REF!,3,FALSE)","v":{"$error":"#REF!"}},null,{"$f":"VLOOKUP($K9,#REF!,2,FALSE)","v":{"$error":"#REF!"}}]
[null,null,null,null,null,null,{"$f":"VLOOKUP($K10,#REF!,4,FALSE)","v":{"$error":"#REF!"}},{"$f":"VLOOKUP($K10,#REF!,3,FALSE)","v":{"$error":"#REF!"}},null,{"$f":"VLOOKUP($K10,#REF!,2,FALSE)","v":{"$error":"#REF!"}}]
[null,null,null,null,null,null,{"$f":"VLOOKUP($K11,#REF!,4,FALSE)","v":{"$error":"#REF!"}},{"$f":"VLOOKUP($K11,#REF!,3,FALSE)","v":{"$error":"#REF!"}},null,{"$f":"VLOOKUP($K11,#REF!,2,FALSE)","v":{"$error":"#REF!"}}]
[null,null,"Sharing Company",null,{"$f":"VLOOKUP($D$12,#REF!,2,FALSE)","v":{"$error":"#REF!"}},null,{"$f":"VLOOKUP($K12,#REF!,4,FALSE)","v":{"$error":"#REF!"}},{"$f":"VLOOKUP($K12,#REF!,3,FALSE)","v":{"$error":"#REF!"}},null,{"$f":"VLOOKUP($K12,#REF!,2,FALSE)","v":{"$error":"#REF!"}}]
[]
["NO","Name\nالاسم","Last Name\nالعائلي","Nationality\nالجنسيه","Passport\nجواز السفر","Hotel\nالفندق","Room No.\nالحجره","Adult\nكبير","CHD\nطفل","Activity\nالنشاط","LEVEL\nرخصه ","Eval\nمستوي","Box\nصندوق","Fins\nزعانف","Com\nملاحظات","Check in","Bill","Time","Transf","Rest","Guide","Reg#","BCD#","Suit#","Fins#","Mask#","BOOT","Partner"]
[1,null,null,null,null,null,null,null,null,null,null,null,2]
[2]
[3]
[4]
[5]
[6]
[7]
[8]
[9]
[10]
[11]
[12]
[13]
[14]
[15]
[16]
[17]
[18]
[19]
[20]
[21]
[22]
[23]
[24]
[25]
[26]
[27]
[28]
[29]
[30]
[31]
[32]
[33]
[34]
[null,null,null,null,null,null,null,{"$f":"SUM(H15:H48)","v":0},{"$f":"SUM(I15:I48)","v":0},"Total\nاجمالي"]
[]
[null,"PLEASE DON’T FORGET PASSPORT "]
[null,"PICK UP ",null,null,null,null,null,null,null,null,"Nitrox 32%",null,null,"NOTE"]
[null,"Guide","Assembly time","Place of assembly","Carrier","Tel.","DRIVER",null,null,null,"12 L"]
[null,null,null,null,{"$f":"VLOOKUP($G54,#REF!,2,FALSE)","v":{"$error":"#REF!"}},{"$f":"VLOOKUP($G54,#REF!,3,FALSE)","v":{"$error":"#REF!"}},null,null,null,null,"15 L"]
[null,null,null,null,{"$f":"VLOOKUP($G55,#REF!,2,FALSE)","v":{"$error":"#REF!"}},{"$f":"VLOOKUP($G55,#REF!,3,FALSE)","v":{"$error":"#REF!"}},null,null,null,null,"Air"]
[null,null,null,null,{"$f":"VLOOKUP($G56,#REF!,2,FALSE)","v":{"$error":"#REF!"}},{"$f":"VLOOKUP($G56,#REF!,3,FALSE)","v":{"$error":"#REF!"}},null,null,null,null,"8 L"]
[null,null,null,null,{"$f":"VLOOKUP($G57,#REF!,2,FALSE)","v":{"$error":"#REF!"}},{"$f":"VLOOKUP($G57,#REF!,3,FALSE)","v":{"$error":"#REF!"}},null,null,null,null,"15 L"]
[]
[]
[]
[]
[]
[]
[]
[null,null,null,null,null,null,null,null,null,null,null,null,{"$f":"Boat1!M19","v":0}]
[null,null,null,null,null,null,null,null,null,null,null,null,{"$f":"Boat1!M20","v":0}]
[null,null,null,null,null,null,null,null,null,null,null,null,{"$f":"Boat1!M21","v":0}]
[null,null,null,null,null,null,null,null,null,null,null,null,{"$f":"Boat1!M22","v":0}]
[null,null,null,null,null,null,null,null,null,null,null,null,{"$f":"Boat1!M23","v":0}]
[null,null,null,null,null,null,null,null,null,null,null,null,{"$f":"Boat1!M24","v":0}]
[null,null,null,null,null,null,null,null,null,null,null,null,{"$f":"Boat1!M25","v":0}]
[null,null,null,null,null,null,null,null,null,null,null,null,{"$f":"Boat1!M26","v":0}]
[null,null,null,null,null,null,null,null,null,null,null,null,{"$f":"Boat1!M27","v":0}]
[null,null,null,null,null,null,null,null,null,null,null,null,{"$f":"Boat1!M28","v":0}]
[null,null,null,null,null,null,null,null,null,null,null,null,{"$f":"Boat1!M29","v":0}]
[null,null,null,null,null,null,null,null,null,null,null,null,{"$f":"Boat1!M30","v":0}]
[null,null,null,null,null,null,null,null,null,null,null,null,{"$f":"Boat1!M31","v":0}]
[null,null,null,null,null,null,null,null,null,null,null,null,{"$f":"Boat1!M32","v":0}]
[null,null,null,null,null,null,null,null,null,null,null,null,{"$f":"Boat1!M33","v":0}]
[null,null,null,null,null,null,null,null,null,null,null,null,{"$f":"Boat1!M34","v":0}]
[null,null,null,null,null,null,null,null,null,null,null,null,{"$f":"Boat1!M35","v":0}]
[null,null,null,null,null,null,null,null,null,null,null,null,{"$f":"Boat1!M36","v":0}]
[null,null,null,null,null,null,null,null,null,null,null,null,{"$f":"Boat1!M37","v":0}]
[null,null,null,null,null,null,null,null,null,null,null,null,{"$f":"Boat1!M38","v":0}]
[null,null,null,null,null,null,null,null,null,null,null,null,{"$f":"Boat1!M39","v":0}]
[null,null,null,null,null,null,null,null,null,null,null,null,{"$f":"Boat1!M40","v":0}]
[null,null,null,null,null,null,null,null,null,null,null,null,{"$f":"Boat1!M41","v":0}]
[null,null,null,null,null,null,null,null,null,null,null,null,{"$f":"Boat1!M42","v":0}]
[null,null,null,null,null,null,null,null,null,null,null,null,{"$f":"Boat1!M43","v":0}]
[null,null,null,null,null,null,null,null,null,null,null,null,{"$f":"Boat1!M44","v":0}]
[null,null,null,null,null,null,null,null,null,null,null,null,{"$f":"Boat1!M45","v":0}]
[null,null,null,null,null,null,null,null,null,null,null,null,{"$f":"Boat1!M46","v":0}]
[null,null,null,null,null,null,null,null,null,null,null,null,{"$f":"Boat1!M47","v":0}]
[null,null,null,null,null,null,null,null,null,null,null,null,{"$f":"Boat1!M48","v":0}]
[null,null,null,null,null,null,null,null,null,null,null,null,"boat2"]
[null,null,null,null,null,null,null,null,null,null,null,null,{"$f":"Boat2!M15","v":5}]
[null,null,null,null,null,null,null,null,null,null,null,null,{"$f":"Boat2!M16","v":3}]
[null,null,null,null,null,null,null,null,null,null,null,null,{"$f":"Boat2!M17","v":0}]
[null,null,null,null,null,null,null,null,null,null,null,null,{"$f":"Boat2!M18","v":0}]
[null,null,null,null,null,null,null,null,null,null,null,null,{"$f":"Boat2!M19","v":0}]
[null,null,null,null,null,null,null,null,null,null,null,null,{"$f":"Boat2!M20","v":0}]
[null,null,null,null,null,null,null,null,null,null,null,null,{"$f":"Boat2!M21","v":0}]
[null,null,null,null,null,null,null,null,null,null,null,null,{"$f":"Boat2!M22","v":0}]
[null,null,null,null,null,null,null,null,null,null,null,null,{"$f":"Boat2!M23","v":0}]
[null,null,null,null,null,null,null,null,null,null,null,null,{"$f":"Boat2!M24","v":0}]
[null,null,null,null,null,null,null,null,null,null,null,null,{"$f":"Boat2!M25","v":0}]
[null,null,null,null,null,null,null,null,null,null,null,null,{"$f":"Boat2!M26","v":0}]
[null,null,null,null,null,null,null,null,null,null,null,null,{"$f":"Boat2!M27","v":0}]
[null,null,null,null,null,null,null,null,null,null,null,null,{"$f":"Boat2!M28","v":0}]
[null,null,null,null,null,null,null,null,null,null,null,null,{"$f":"Boat2!M29","v":0}]
[null,null,null,null,null,null,null,null,null,null,null,null,{"$f":"Boat2!M30","v":0}]
[null,null,null,null,null,null,null,null,null,null,null,null,{"$f":"Boat2!M31","v":0}]
[null,null,null,null,null,null,null,null,null,null,null,null,{"$f":"Boat2!M32","v":0}]
[null,null,null,null,null,null,null,null,null,null,null,null,{"$f":"Boat2!M33","v":0}]
[null,null,null,null,null,null,null,null,null,null,null,null,{"$f":"Boat2!M34","v":0}]
[null,null,null,null,null,null,null,null,null,null,null,null,{"$f":"Boat2!M35","v":0}]
[null,null,null,null,null,null,null,null,null,null,null,null,{"$f":"Boat2!M36","v":0}]
[null,null,null,null,null,null,null,null,null,null,null,null,{"$f":"Boat2!M37","v":0}]
[null,null,null,null,null,null,null,null,null,null,null,null,{"$f":"Boat2!M38","v":0}]
[null,null,null,null,null,null,null,null,null,null,null,null,{"$f":"Boat2!M39","v":0}]
[null,null,null,null,null,null,null,null,null,null,null,null,{"$f":"Boat2!M40","v":0}]
[null,null,null,null,null,null,null,null,null,null,null,null,{"$f":"Boat2!M41","v":0}]
[null,null,null,null,null,null,null,null,null,null,null,null,{"$f":"Boat2!M42","v":0}]
[null,null,null,null,null,null,null,null,null,null,null,null,{"$f":"Boat2!M43","v":0}]
[null,null,null,null,null,null,null,null,null,null,null,null,{"$f":"Boat2!M44","v":0}]
[null,null,null,null,null,null,null,null,null,null,null,null,{"$f":"Boat2!M45","v":0}]
[null,null,null,null,null,null,null,null,null,null,null,null,{"$f":"Boat2!M46","v":0}]
[null,null,null,null,null,null,null,null,null,null,null,null,{"$f":"Boat2!M47","v":0}]
[null,null,null,null,null,null,null,null,null,null,null,null,{"$f":"Boat2!M48","v":0}]
[null,null,null,null,null,null,null,null,null,null,null,null,"boat3"]
[null,null,null,null,null,null,null,null,null,null,null,null,{"$f":"Boat3!M15","v":2}]
[null,null,null,null,null,null,null,null,null,null,null,null,{"$f":"Boat3!M16","v":0}]
[null,null,null,null,null,null,null,null,null,null,null,null,{"$f":"Boat3!M17","v":0}]
[null,null,null,null,null,null,null,null,null,null,null,null,{"$f":"Boat3!M18","v":0}]
[null,null,null,null,null,null,null,null,null,null,null,null,{"$f":"Boat3!M19","v":0}]
[null,null,null,null,null,null,null,null,null,null,null,null,{"$f":"Boat3!M20","v":0}]
[null,null,null,null,null,null,null,null,null,null,null,null,{"$f":"Boat3!M21","v":0}]
[null,null,null,null,null,null,null,null,null,null,null,null,{"$f":"Boat3!M22","v":0}]
[null,null,null,null,null,null,null,null,null,null,null,null,{"$f":"Boat3!M23","v":0}]
[null,null,null,null,null,null,null,null,null,null,null,null,{"$f":"Boat3!M24","v":0}]
[null,null,null,null,null,null,null,null,null,null,null,null,{"$f":"Boat3!M25","v":0}]
[null,null,null,null,null,null,null,null,null,null,null,null,{"$f":"Boat3!M26","v":0}]
[null,null,null,null,null,null,null,null,null,null,null,null,{"$f":"Boat3!M27","v":0}]
[null,null,null,null,null,null,null,null,null,null,null,null,{"$f":"Boat3!M28","v":0}]
[null,null,null,null,null,null,null,null,null,null,null,null,{"$f":"Boat3!M29","v":0}]
[null,null,null,null,null,null,null,null,null,null,null,null,{"$f":"Boat3!M30","v":0}]
[null,null,null,null,null,null,null,null,null,null,null,null,{"$f":"Boat3!M31","v":0}]
[null,null,null,null,null,null,null,null,null,null,null,null,{"$f":"Boat3!M32","v":0}]
[null,null,null,null,null,null,null,null,null,null,null,null,{"$f":"Boat3!M33","v":0}]
[null,null,null,null,null,null,null,null,null,null,null,null,{"$f":"Boat3!M34","v":0}]
[null,null,null,null,null,null,null,null,null,null,null,null,{"$f":"Boat3!M35","v":0}]
[null,null,null,null,null,null,null,null,null,null,null,null,{"$f":"Boat3!M36","v":0}]
[null,null,null,null,null,null,null,null,null,null,null,null,{"$f":"Boat3!M37","v":0}]
[null,null,null,null,null,null,null,null,null,null,null,null,{"$f":"Boat3!M38","v":0}]
[null,null,null,null,null,null,null,null,null,null,null,null,{"$f":"Boat3!M39","v":0}]
[null,null,null,null,null,null,null,null,null,null,null,null,{"$f":"Boat3!M40","v":0}]
[null,null,null,null,null,null,null,null,null,null,null,null,{"$f":"Boat3!M41","v":0}]
[null,null,null,null,null,null,null,null,null,null,null,null,{"$f":"Boat3!M42","v":0}]
[null,null,null,null,null,null,null,null,null,null,null,null,{"$f":"Boat3!M43","v":0}]
[null,null,null,null,null,null,null,null,null,null,null,null,{"$f":"Boat3!M44","v":0}]
[null,null,null,null,null,null,null,null,null,null,null,null,{"$f":"Boat3!M45","v":0}]
[null,null,null,null,null,null,null,null,null,null,null,null,{"$f":"Boat3!M46","v":0}]
[null,null,null,null,null,null,null,null,null,null,null,null,{"$f":"Boat3!M47","v":0}]
[null,null,null,null,null,null,null,null,null,null,null,null,{"$f":"Boat3!M48","v":0}]
[null,null,null,null,null,null,null,null,null,null,null,null,"thistlegorm"]
[null,null,null,null,null,null,null,null,null,null,null,null,{"$f":"Thistelgorm!M15","v":0}]
[null,null,null,null,null,null,null,null,null,null,null,null,{"$f":"Thistelgorm!M16","v":0}]
[null,null,null,null,null,null,null,null,null,null,null,null,{"$f":"Thistelgorm!M17","v":0}]
[null,null,null,null,null,null,null,null,null,null,null,null,{"$f":"Thistelgorm!M18","v":0}]
[null,null,null,null,null,null,null,null,null,null,null,null,{"$f":"Thistelgorm!M19","v":0}]
[null,null,null,null,null,null,null,null,null,null,null,null,{"$f":"Thistelgorm!M20","v":0}]
[null,null,null,null,null,null,null,null,null,null,null,null,{"$f":"Thistelgorm!M21","v":0}]
[null,null,null,null,null,null,null,null,null,null,null,null,{"$f":"Thistelgorm!M22","v":0}]
[null,null,null,null,null,null,null,null,null,null,null,null,{"$f":"Thistelgorm!M23","v":0}]
[null,null,null,null,null,null,null,null,null,null,null,null,{"$f":"Thistelgorm!M24","v":0}]
[null,null,null,null,null,null,null,null,null,null,null,null,{"$f":"Thistelgorm!M25","v":0}]
[null,null,null,null,null,null,null,null,null,null,null,null,{"$f":"Thistelgorm!M26","v":0}]
[null,null,null,null,null,null,null,null,null,null,null,null,{"$f":"Thistelgorm!M27","v":0}]
[null,null,null,null,null,null,null,null,null,null,null,null,{"$f":"Thistelgorm!M28","v":0}]
[null,null,null,null,null,null,null,null,null,null,null,null,{"$f":"Thistelgorm!M29","v":0}]
[null,null,null,null,null,null,null,null,null,null,null,null,{"$f":"Thistelgorm!M30","v":0}]
[null,null,null,null,null,null,null,null,null,null,null,null,{"$f":"Thistelgorm!M31","v":0}]
[null,null,null,null,null,null,null,null,null,null,null,null,{"$f":"Thistelgorm!M32","v":0}]
[null,null,null,null,null,null,null,null,null,null,null,null,{"$f":"Thistelgorm!M33","v":0}]
[null,null,null,null,null,null,null,null,null,null,null,null,{"$f":"Thistelgorm!M34","v":0}]
[null,null,null,null,null,null,null,null,null,null,null,null,{"$f":"Thistelgorm!M35","v":0}]
[null,null,null,null,null,null,null,null,null,null,null,null,{"$f":"Thistelgorm!M36","v":0}]
[null,null,null,null,null,null,null,null,null,null,null,null,{"$f":"Thistelgorm!M37","v":0}]
[null,null,null,null,null,null,null,null,null,null,null,null,{"$f":"Thistelgorm!M38","v":0}]
[null,null,null,null,null,null,null,null,null,null,null,null,{"$f":"Thistelgorm!M39","v":0}]
[null,null,null,null,null,null,null,null,null,null,null,null,{"$f":"Thistelgorm!M40","v":0}]
[null,null,null,null,null,null,null,null,null,null,null,null,{"$f":"Thistelgorm!M41","v":0}]
[null,null,null,null,null,null,null,null,null,null,null,null,{"$f":"Thistelgorm!M42","v":0}]
[null,null,null,null,null,null,null,null,null,null,null,null,{"$f":"Thistelgorm!M43","v":0}]
[null,null,null,null,null,null,null,null,null,null,null,null,{"$f":"Thistelgorm!M44","v":0}]
[null,null,null,null,null,null,null,null,null,null,null,null,{"$f":"Thistelgorm!M45","v":0}]
[null,null,null,null,null,null,null,null,null,null,null,null,{"$f":"Thistelgorm!M46","v":0}]
[null,null,null,null,null,null,null,null,null,null,null,null,{"$f":"Thistelgorm!M47","v":0}]
[null,null,null,null,null,null,null,null,null,null,null,null,{"$f":"Thistelgorm!M48","v":0}]
[null,null,null,null,null,null,null,null,null,null,null,null,"sharks bay"]
[null,null,null,null,null,null,null,null,null,null,null,null,{"$f":"'Sharks bay'!M15","v":0}]
[null,null,null,null,null,null,null,null,null,null,null,null,{"$f":"'Sharks bay'!M16","v":0}]
[null,null,null,null,null,null,null,null,null,null,null,null,{"$f":"'Sharks bay'!M17","v":0}]
[null,null,null,null,null,null,null,null,null,null,null,null,{"$f":"'Sharks bay'!M18","v":0}]
[null,null,null,null,null,null,null,null,null,null,null,null,{"$f":"'Sharks bay'!M19","v":0}]
[null,null,null,null,null,null,null,null,null,null,null,null,{"$f":"'Sharks bay'!M20","v":0}]
[null,null,null,null,null,null,null,null,null,null,null,null,{"$f":"'Sharks bay'!M21","v":0}]
[null,null,null,null,null,null,null,null,null,null,null,null,{"$f":"'Sharks bay'!M22","v":0}]
[null,null,null,null,null,null,null,null,null,null,null,null,{"$f":"'Sharks bay'!M23","v":0}]
[null,null,null,null,null,null,null,null,null,null,null,null,{"$f":"'Sharks bay'!M24","v":0}]
[null,null,null,null,null,null,null,null,null,null,null,null,{"$f":"'Sharks bay'!M25","v":0}]
[null,null,null,null,null,null,null,null,null,null,null,null,{"$f":"'Sharks bay'!M26","v":0}]
[null,null,null,null,null,null,null,null,null,null,null,null,{"$f":"'Sharks bay'!M27","v":0}]
[null,null,null,null,null,null,null,null,null,null,null,null,{"$f":"'Sharks bay'!M28","v":0}]
[null,null,null,null,null,null,null,null,null,null,null,null,{"$f":"'Sharks bay'!M29","v":0}]
[null,null,null,null,null,null,null,null,null,null,null,null,{"$f":"'Sharks bay'!M30","v":0}]
[null,null,null,null,null,null,null,null,null,null,null,null,{"$f":"'Sharks bay'!M31","v":0}]
[null,null,null,null,null,null,null,null,null,null,null,null,{"$f":"'Sharks bay'!M32","v":0}]
[null,null,null,null,null,null,null,null,null,null,null,null,{"$f":"'Sharks bay'!M33","v":0}]
[null,null,null,null,null,null,null,null,null,null,null,null,{"$f":"'Sharks bay'!M34","v":0}]
[null,null,null,null,null,null,null,null,null,null,null,null,{"$f":"'Sharks bay'!M35","v":0}]
[null,null,null,null,null,null,null,null,null,null,null,null,{"$f":"'Sharks bay'!M36","v":0}]
[null,null,null,null,null,null,null,null,null,null,null,null,{"$f":"'Sharks bay'!M37","v":0}]
[null,null,null,null,null,null,null,null,null,null,null,null,{"$f":"'Sharks bay'!M38","v":0}]
[null,null,null,null,null,null,null,null,null,null,null,null,{"$f":"'Sharks bay'!M39","v":0}]
[null,null,null,null,null,null,null,null,null,null,null,null,{"$f":"'Sharks bay'!M40","v":0}]
[null,null,null,null,null,null,null,null,null,null,null,null,{"$f":"'Sharks bay'!M41","v":0}]
[null,null,null,null,null,null,null,null,null,null,null,null,{"$f":"'Sharks bay'!M42","v":0}]
[null,null,null,null,null,null,null,null,null,null,null,null,{"$f":"'Sharks bay'!M43","v":0}]
[null,null,null,null,null,null,null,null,null,null,null,null,{"$f":"'Sharks bay'!M44","v":0}]
[null,null,null,null,null,null,null,null,null,null,null,null,{"$f":"'Sharks bay'!M45","v":0}]
[null,null,null,null,null,null,null,null,null,null,null,null,{"$f":"'Sharks bay'!M46","v":0}]
[null,null,null,null,null,null,null,null,null,null,null,null,{"$f":"'Sharks bay'!M47","v":0}]
[null,null,null,null,null,null,null,null,null,null,null,null,{"$f":"'Sharks bay'!M48","v":0}]
[null,null,null,null,null,null,null,null,null,null,null,null,"stella"]
[null,null,null,null,null,null,null,null,null,null,null,null,{"$f":"Stella!M15","v":0}]
[null,null,null,null,null,null,null,null,null,null,null,null,{"$f":"Stella!M16","v":0}]
[null,null,null,null,null,null,null,null,null,null,null,null,{"$f":"Stella!M17","v":0}]
[null,null,null,null,null,null,null,null,null,null,null,null,{"$f":"Stella!M18","v":0}]
[null,null,null,null,null,null,null,null,null,null,null,null,{"$f":"Stella!M19","v":0}]
[null,null,null,null,null,null,null,null,null,null,null,null,{"$f":"Stella!M20","v":0}]
[null,null,null,null,null,null,null,null,null,null,null,null,{"$f":"Stella!M21","v":0}]
[null,null,null,null,null,null,null,null,null,null,null,null,{"$f":"Stella!M22","v":0}]
[null,null,null,null,null,null,null,null,null,null,null,null,{"$f":"Stella!M23","v":0}]
[null,null,null,null,null,null,null,null,null,null,null,null,{"$f":"Stella!M24","v":0}]
[null,null,null,null,null,null,null,null,null,null,null,null,{"$f":"Stella!M25","v":0}]
[null,null,null,null,null,null,null,null,null,null,null,null,{"$f":"Stella!M26","v":0}]
[null,null,null,null,null,null,null,null,null,null,null,null,{"$f":"Stella!M27","v":0}]
[null,null,null,null,null,null,null,null,null,null,null,null,{"$f":"Stella!M28","v":0}]
[null,null,null,null,null,null,null,null,null,null,null,null,{"$f":"Stella!M29","v":0}]
[null,null,null,null,null,null,null,null,null,null,null,null,{"$f":"Stella!M30","v":0}]
[null,null,null,null,null,null,null,null,null,null,null,null,{"$f":"Stella!M31","v":0}]
[null,null,null,null,null,null,null,null,null,null,null,null,{"$f":"Stella!M32","v":0}]
[null,null,null,null,null,null,null,null,null,null,null,null,{"$f":"Stella!M33","v":0}]
[null,null,null,null,null,null,null,null,null,null,null,null,{"$f":"Stella!M34","v":0}]
[null,null,null,null,null,null,null,null,null,null,null,null,{"$f":"Stella!M35","v":0}]
[null,null,null,null,null,null,null,null,null,null,null,null,{"$f":"Stella!M36","v":0}]
[null,null,null,null,null,null,null,null,null,null,null,null,{"$f":"Stella!M37","v":0}]
[null,null,null,null,null,null,null,null,null,null,null,null,{"$f":"Stella!M38","v":0}]
[null,null,null,null,null,null,null,null,null,null,null,null,{"$f":"Stella!M39","v":0}]
[null,null,null,null,null,null,null,null,null,null,null,null,{"$f":"Stella!M40","v":0}]
[null,null,null,null,null,null,null,null,null,null,null,null,{"$f":"Stella!M41","v":0}]
[null,null,null,null,null,null,null,null,null,null,null,null,{"$f":"Stella!M42","v":0}]
[null,null,null,null,null,null,null,null,null,null,null,null,{"$f":"Stella!M43","v":0}]
[null,null,null,null,null,null,null,null,null,null,null,null,{"$f":"Stella!M44","v":0}]
[null,null,null,null,null,null,null,null,null,null,null,null,{"$f":"Stella!M45","v":0}]
[null,null,null,null,null,null,null,null,null,null,null,null,{"$f":"Stella!M46","v":0}]
[null,null,null,null,null,null,null,null,null,null,null,null,{"$f":"Stella!M47","v":0}]
[null,null,null,null,null,null,null,null,null,null,null,null,{"$f":"Stella!M48","v":0}]
[null,null,null,null,null,null,null,null,null,null,null,null,"fanar"]
[null,null,null,null,null,null,null,null,null,null,null,null,{"$f":"Fanar!M15","v":0}]
[null,null,null,null,null,null,null,null,null,null,null,null,{"$f":"Fanar!M16","v":0}]
[null,null,null,null,null,null,null,null,null,null,null,null,{"$f":"Fanar!M17","v":0}]
[null,null,null,null,null,null,null,null,null,null,null,null,{"$f":"Fanar!M18","v":0}]
[null,null,null,null,null,null,null,null,null,null,null,null,{"$f":"Fanar!M19","v":0}]
[null,null,null,null,null,null,null,null,null,null,null,null,{"$f":"Fanar!M20","v":0}]
[null,null,null,null,null,null,null,null,null,null,null,null,{"$f":"Fanar!M21","v":0}]
[null,null,null,null,null,null,null,null,null,null,null,null,{"$f":"Fanar!M22","v":0}]
[null,null,null,null,null,null,null,null,null,null,null,null,{"$f":"Fanar!M23","v":0}]
[null,null,null,null,null,null,null,null,null,null,null,null,{"$f":"Fanar!M24","v":0}]
[null,null,null,null,null,null,null,null,null,null,null,null,{"$f":"Fanar!M25","v":0}]
[null,null,null,null,null,null,null,null,null,null,null,null,{"$f":"Fanar!M26","v":0}]
[null,null,null,null,null,null,null,null,null,null,null,null,{"$f":"Fanar!M27","v":0}]
[null,null,null,null,null,null,null,null,null,null,null,null,{"$f":"Fanar!M28","v":0}]
[null,null,null,null,null,null,null,null,null,null,null,null,{"$f":"Fanar!M29","v":0}]
[null,null,null,null,null,null,null,null,null,null,null,null,{"$f":"Fanar!M30","v":0}]
[null,null,null,null,null,null,null,null,null,null,null,null,{"$f":"Fanar!M31","v":0}]
[null,null,null,null,null,null,null,null,null,null,null,null,{"$f":"Fanar!M32","v":0}]
[null,null,null,null,null,null,null,null,null,null,null,null,{"$f":"Fanar!M33","v":0}]
[null,null,null,null,null,null,null,null,null,null,null,null,{"$f":"Fanar!M34","v":0}]
[null,null,null,null,null,null,null,null,null,null,null,null,{"$f":"Fanar!M35","v":0}]
[null,null,null,null,null,null,null,null,null,null,null,null,{"$f":"Fanar!M36","v":0}]
[null,null,null,null,null,null,null,null,null,null,null,null,{"$f":"Fanar!M37","v":0}]
[null,null,null,null,null,null,null,null,null,null,null,null,{"$f":"Fanar!M38","v":0}]
[null,null,null,null,null,null,null,null,null,null,null,null,{"$f":"Fanar!M39","v":0}]
[null,null,null,null,null,null,null,null,null,null,null,null,{"$f":"Fanar!M40","v":0}]
[null,null,null,null,null,null,null,null,null,null,null,null,{"$f":"Fanar!M41","v":0}]
[null,null,null,null,null,null,null,null,null,null,null,null,{"$f":"Fanar!M42","v":0}]
[null,null,null,null,null,null,null,null,null,null,null,null,{"$f":"Fanar!M43","v":0}]
[null,null,null,null,null,null,null,null,null,null,null,null,{"$f":"Fanar!M44","v":0}]
[null,null,null,null,null,null,null,null,null,null,null,null,{"$f":"Fanar!M45","v":0}]
[null,null,null,null,null,null,null,null,null,null,null,null,{"$f":"Fanar!M46","v":0}]
[null,null,null,null,null,null,null,null,null,null,null,null,{"$f":"Fanar!M47","v":0}]
[null,null,null,null,null,null,null,null,null,null,null,null,{"$f":"Fanar!M48","v":0}]

{"sheet":"Thistelgorm","index":4,"n_rows":303,"n_cols":28,"rows_kept":303,"cut":false,"hidden":false,"merged":[[51,13,51,17],[52,6,52,7],[52,13,56,17],[53,6,53,7],[54,6,54,7],[54,10,54,11],[55,6,55,7],[56,6,56,7],[9,7,9,8],[9,10,9,11],[10,7,10,8],[10,10,10,11],[51,1,51,7],[51,10,51,11],[11,7,11,8],[11,10,11,11],[0,13,1,14],[2,7,2,8],[2,10,2,11],[2,13,2,14],[50,1,50,7],[4,7,4,8],[4,10,4,11],[5,7,5,8],[5,10,5,11],[6,0,9,1],[6,7,6,8],[6,10,6,11],[7,7,7,8],[7,10,7,11],[8,7,8,8],[8,10,8,11],[3,2,3,5],[3,6,3,11],[0,2,1,2],[0,3,1,3],[0,4,1,4],[0,5,0,6],[0,7,1,8],[0,9,1,9],[0,10,1,11]]}
[null,null,"التاريخ","اتجاه الرحله","ميناء القيام","الحموله",null,"تاريخ انتهاء الترخيص",null,"رقم التسجيل","اسم اللنش",null,null,"تليفون اللنش"]
[null,null,null,null,null,"عدد الركاب","عدد الطقم"]
[null,null,{"$f":"Boat1!C3","v":"2022-08-01"},"Thistelgorm","وطنيه",{"$f":"VLOOKUP($K$3,#REF!,4,FALSE)","v":{"$error":"#REF!"}},{"$f":"VLOOKUP($K$3,#REF!,5,FALSE)","v":{"$error":"#REF!"}},{"$f":"VLOOKUP($K$3,#REF!,3,FALSE)","v":{"$error":"#REF!"}},null,{"$f":"VLOOKUP($K$3,#REF!,2,FALSE)","v":{"$error":"#REF!"}},"وند كي",null,null,{"$f":"VLOOKUP($K$3,#REF!,6,FALSE)","v":{"$error":"#REF!"}},{"$f":"VLOOKUP($K$3,#REF!,2,FALSE)","v":{"$error":"#REF!"}}]
[null,null,"طاقم المركب",null,null,null,"المدربين/المرشدين/المصورين",null,null,null,null,null,null,"GUIDING","3RD"]
[null,null,"تليفون","رقم مزاوله المهنه","الوظيفه","اسماء الطاقم","تليفون","رقم مزاوله المهنه",null,"الوظيفه","الاسماء"]
[null,null,{"$f":"VLOOKUP($K$3,#REF!,10,FALSE)","v":{"$error":"#REF!"}},{"$f":"VLOOKUP($K$3,#REF!,9,FALSE)","v":{"$error":"#REF!"}},{"$f":"VLOOKUP($K$3,#REF!,8,FALSE)","v":{"$error":"#REF!"}},{"$f":"VLOOKUP($K$3,#REF!,7,FALSE)","v":{"$error":"#REF!"}},{"$f":"VLOOKUP($K6,#REF!,4,FALSE)","v":{"$error":"#REF!"}},{"$f":"VLOOKUP($K6,#REF!,3,FALSE)","v":{"$error":"#REF!"}},null,{"$f":"VLOOKUP($K6,#REF!,2,FALSE)","v":{"$error":"#REF!"}}]
["مركز غوص ديزرت روز \n رخصه 341 \n تليفون:01220004757",null,{"$f":"VLOOKUP($K$3,#REF!,14,FALSE)","v":{"$error":"#REF!"}},{"$f":"VLOOKUP($K$3,#REF!,13,FALSE)","v":{"$error":"#REF!"}},{"$f":"VLOOKUP($K$3,#REF!,12,FALSE)","v":{"$error":"#REF!"}},{"$f":"VLOOKUP($K$3,#REF!,11,FALSE)","v":{"$error":"#REF!"}},{"$f":"VLOOKUP($K7,#REF!,4,FALSE)","v":{"$error":"#REF!"}},{"$f":"VLOOKUP($K7,#REF!,3,FALSE)","v":{"$error":"#REF!"}},null,{"$f":"VLOOKUP($K7,#REF!,2,FALSE)","v":{"$error":"#REF!"}}]
[null,null,{"$f":"VLOOKUP($K$3,#REF!,18,FALSE)","v":{"$error":"#REF!"}},{"$f":"VLOOKUP($K$3,#REF!,17,FALSE)","v":{"$error":"#REF!"}},{"$f":"VLOOKUP($K$3,#REF!,16,FALSE)","v":{"$error":"#REF!"}},{"$f":"VLOOKUP($K$3,#REF!,15,FALSE)","v":{"$error":"#REF!"}},{"$f":"VLOOKUP($K8,#REF!,4,FALSE)","v":{"$error":"#REF!"}},{"$f":"VLOOKUP($K8,#REF!,3,FALSE)","v":{"$error":"#REF!"}},null,{"$f":"VLOOKUP($K8,#REF!,2,FALSE)","v":{"$error":"#REF!"}}]
[null,null,{"$f":"VLOOKUP($K$3,#REF!,22,FALSE)","v":{"$error":"#REF!"}},{"$f":"VLOOKUP($K$3,#REF!,21,FALSE)","v":{"$error":"#REF!"}},{"$f":"VLOOKUP($K$3,#REF!,20,FALSE)","v":{"$error":"#REF!"}},{"$f":"VLOOKUP($K$3,#REF!,19,FALSE)","v":{"$error":"#REF!"}},{"$f":"VLOOKUP($K9,#REF!,4,FALSE)","v":{"$error":"#REF!"}},{"$f":"VLOOKUP($K9,#REF!,3,FALSE)","v":{"$error":"#REF!"}},null,{"$f":"VLOOKUP($K9,#REF!,2,FALSE)","v":{"$error":"#REF!"}}]
[null,null,null,null,null,null,{"$f":"VLOOKUP($K10,#REF!,4,FALSE)","v":{"$error":"#REF!"}},{"$f":"VLOOKUP($K10,#REF!,3,FALSE)","v":{"$error":"#REF!"}},null,{"$f":"VLOOKUP($K10,#REF!,2,FALSE)","v":{"$error":"#REF!"}}]
[null,null,null,null,null,null,{"$f":"VLOOKUP($K11,#REF!,4,FALSE)","v":{"$error":"#REF!"}},{"$f":"VLOOKUP($K11,#REF!,3,FALSE)","v":{"$error":"#REF!"}},null,{"$f":"VLOOKUP($K11,#REF!,2,FALSE)","v":{"$error":"#REF!"}}]
[null,null,"Sharing Company",null,{"$f":"VLOOKUP($D$12,#REF!,2,FALSE)","v":{"$error":"#REF!"}},null,{"$f":"VLOOKUP($K12,#REF!,4,FALSE)","v":{"$error":"#REF!"}},{"$f":"VLOOKUP($K12,#REF!,3,FALSE)","v":{"$error":"#REF!"}},null,{"$f":"VLOOKUP($K12,#REF!,2,FALSE)","v":{"$error":"#REF!"}}]
[]
["NO","Name\nالاسم","Last Name\nالعائلي","Nationality\nالجنسيه","Passport\nجواز السفر","Hotel\nالفندق","Room No.\nالحجره","Adult\nكبير","CHD\nطفل","Activity\nالنشاط","LEVEL\nرخصه ","Eval\nمستوي","Box\nصندوق","Fins\nزعانف","Com\nملاحظات","Check in","Bill","Time","Transf","Rest","Guide","Reg#","BCD#","Suit#","Fins#","Mask#","BOOT","Partner"]
[1]
[2]
[3]
[4]
[5]
[6]
[7]
[8]
[9]
[10]
[11]
[12]
[13]
[14]
[15]
[16]
[17]
[18]
[19]
[20]
[21]
[22]
[23]
[24]
[25]
[26]
[27]
[28]
[29]
[30]
[31]
[32]
[33]
[34]
[null,null,null,null,null,null,null,{"$f":"SUM(H15:H48)","v":0},{"$f":"SUM(I15:I48)","v":0},"Total\nاجمالي"]
[]
[null,"PLEASE DON’T FORGET PASSPORT "]
[null,"PICK UP ",null,null,null,null,null,null,null,null,"Nitrox 32%",null,null,"NOTE"]
[null,"Guide","Assembly time","Place of assembly","Carrier","Tel.","DRIVER",null,null,null,"12 L"]
[null,null,null,null,{"$f":"VLOOKUP($G54,#REF!,2,FALSE)","v":{"$error":"#REF!"}},{"$f":"VLOOKUP($G54,#REF!,3,FALSE)","v":{"$error":"#REF!"}},null,null,null,null,"15 L"]
[null,null,null,null,{"$f":"VLOOKUP($G55,#REF!,2,FALSE)","v":{"$error":"#REF!"}},{"$f":"VLOOKUP($G55,#REF!,3,FALSE)","v":{"$error":"#REF!"}},null,null,null,null,"Air"]
[null,null,null,null,{"$f":"VLOOKUP($G56,#REF!,2,FALSE)","v":{"$error":"#REF!"}},{"$f":"VLOOKUP($G56,#REF!,3,FALSE)","v":{"$error":"#REF!"}},null,null,null,null,"8 L"]
[null,null,null,null,{"$f":"VLOOKUP($G57,#REF!,2,FALSE)","v":{"$error":"#REF!"}},{"$f":"VLOOKUP($G57,#REF!,3,FALSE)","v":{"$error":"#REF!"}},null,null,null,null,"15 L"]
[]
[]
[null,null,null,null,null,null,null,null,null,null,null,null,{"$f":"Boat1!M15","v":3}]
[null,null,null,null,null,null,null,null,null,null,null,null,{"$f":"Boat1!M16","v":0}]
[null,null,null,null,null,null,null,null,null,null,null,null,{"$f":"Boat1!M17","v":0}]
[]
[null,null,null,null,null,null,null,null,null,null,null,null,{"$f":"Boat1!M19","v":0}]
[null,null,null,null,null,null,null,null,null,null,null,null,{"$f":"Boat1!M20","v":0}]
[null,null,null,null,null,null,null,null,null,null,null,null,{"$f":"Boat1!M21","v":0}]
[null,null,null,null,null,null,null,null,null,null,null,null,{"$f":"Boat1!M22","v":0}]
[null,null,null,null,null,null,null,null,null,null,null,null,{"$f":"Boat1!M23","v":0}]
[null,null,null,null,null,null,null,null,null,null,null,null,{"$f":"Boat1!M24","v":0}]
[null,null,null,null,null,null,null,null,null,null,null,null,{"$f":"Boat1!M25","v":0}]
[null,null,null,null,null,null,null,null,null,null,null,null,{"$f":"Boat1!M26","v":0}]
[null,null,null,null,null,null,null,null,null,null,null,null,{"$f":"Boat1!M27","v":0}]
[null,null,null,null,null,null,null,null,null,null,null,null,{"$f":"Boat1!M28","v":0}]
[null,null,null,null,null,null,null,null,null,null,null,null,{"$f":"Boat1!M29","v":0}]
[null,null,null,null,null,null,null,null,null,null,null,null,{"$f":"Boat1!M30","v":0}]
[null,null,null,null,null,null,null,null,null,null,null,null,{"$f":"Boat1!M31","v":0}]
[null,null,null,null,null,null,null,null,null,null,null,null,{"$f":"Boat1!M32","v":0}]
[null,null,null,null,null,null,null,null,null,null,null,null,{"$f":"Boat1!M33","v":0}]
[null,null,null,null,null,null,null,null,null,null,null,null,{"$f":"Boat1!M34","v":0}]
[null,null,null,null,null,null,null,null,null,null,null,null,{"$f":"Boat1!M35","v":0}]
[null,null,null,null,null,null,null,null,null,null,null,null,{"$f":"Boat1!M36","v":0}]
[null,null,null,null,null,null,null,null,null,null,null,null,{"$f":"Boat1!M37","v":0}]
[null,null,null,null,null,null,null,null,null,null,null,null,{"$f":"Boat1!M38","v":0}]
[null,null,null,null,null,null,null,null,null,null,null,null,{"$f":"Boat1!M39","v":0}]
[null,null,null,null,null,null,null,null,null,null,null,null,{"$f":"Boat1!M40","v":0}]
[null,null,null,null,null,null,null,null,null,null,null,null,{"$f":"Boat1!M41","v":0}]
[null,null,null,null,null,null,null,null,null,null,null,null,{"$f":"Boat1!M42","v":0}]
[null,null,null,null,null,null,null,null,null,null,null,null,{"$f":"Boat1!M43","v":0}]
[null,null,null,null,null,null,null,null,null,null,null,null,{"$f":"Boat1!M44","v":0}]
[null,null,null,null,null,null,null,null,null,null,null,null,{"$f":"Boat1!M45","v":0}]
[null,null,null,null,null,null,null,null,null,null,null,null,{"$f":"Boat1!M46","v":0}]
[null,null,null,null,null,null,null,null,null,null,null,null,{"$f":"Boat1!M47","v":0}]
[null,null,null,null,null,null,null,null,null,null,null,null,{"$f":"Boat1!M48","v":0}]
[null,null,null,null,null,null,null,null,null,null,null,null,"boat2"]
[null,null,null,null,null,null,null,null,null,null,null,null,{"$f":"Boat2!M15","v":5}]
[null,null,null,null,null,null,null,null,null,null,null,null,{"$f":"Boat2!M16","v":3}]
[null,null,null,null,null,null,null,null,null,null,null,null,{"$f":"Boat2!M17","v":0}]
[null,null,null,null,null,null,null,null,null,null,null,null,{"$f":"Boat2!M18","v":0}]
[null,null,null,null,null,null,null,null,null,null,null,null,{"$f":"Boat2!M19","v":0}]
[null,null,null,null,null,null,null,null,null,null,null,null,{"$f":"Boat2!M20","v":0}]
[null,null,null,null,null,null,null,null,null,null,null,null,{"$f":"Boat2!M21","v":0}]
[null,null,null,null,null,null,null,null,null,null,null,null,{"$f":"Boat2!M22","v":0}]
[null,null,null,null,null,null,null,null,null,null,null,null,{"$f":"Boat2!M23","v":0}]
[null,null,null,null,null,null,null,null,null,null,null,null,{"$f":"Boat2!M24","v":0}]
[null,null,null,null,null,null,null,null,null,null,null,null,{"$f":"Boat2!M25","v":0}]
[null,null,null,null,null,null,null,null,null,null,null,null,{"$f":"Boat2!M26","v":0}]
[null,null,null,null,null,null,null,null,null,null,null,null,{"$f":"Boat2!M27","v":0}]
[null,null,null,null,null,null,null,null,null,null,null,null,{"$f":"Boat2!M28","v":0}]
[null,null,null,null,null,null,null,null,null,null,null,null,{"$f":"Boat2!M29","v":0}]
[null,null,null,null,null,null,null,null,null,null,null,null,{"$f":"Boat2!M30","v":0}]
[null,null,null,null,null,null,null,null,null,null,null,null,{"$f":"Boat2!M31","v":0}]
[null,null,null,null,null,null,null,null,null,null,null,null,{"$f":"Boat2!M32","v":0}]
[null,null,null,null,null,null,null,null,null,null,null,null,{"$f":"Boat2!M33","v":0}]
[null,null,null,null,null,null,null,null,null,null,null,null,{"$f":"Boat2!M34","v":0}]
[null,null,null,null,null,null,null,null,null,null,null,null,{"$f":"Boat2!M35","v":0}]
[null,null,null,null,null,null,null,null,null,null,null,null,{"$f":"Boat2!M36","v":0}]
[null,null,null,null,null,null,null,null,null,null,null,null,{"$f":"Boat2!M37","v":0}]
[null,null,null,null,null,null,null,null,null,null,null,null,{"$f":"Boat2!M38","v":0}]
[null,null,null,null,null,null,null,null,null,null,null,null,{"$f":"Boat2!M39","v":0}]
[null,null,null,null,null,null,null,null,null,null,null,null,{"$f":"Boat2!M40","v":0}]
[null,null,null,null,null,null,null,null,null,null,null,null,{"$f":"Boat2!M41","v":0}]
[null,null,null,null,null,null,null,null,null,null,null,null,{"$f":"Boat2!M42","v":0}]
[null,null,null,null,null,null,null,null,null,null,null,null,{"$f":"Boat2!M43","v":0}]
[null,null,null,null,null,null,null,null,null,null,null,null,{"$f":"Boat2!M44","v":0}]
[null,null,null,null,null,null,null,null,null,null,null,null,{"$f":"Boat2!M45","v":0}]
[null,null,null,null,null,null,null,null,null,null,null,null,{"$f":"Boat2!M46","v":0}]
[null,null,null,null,null,null,null,null,null,null,null,null,{"$f":"Boat2!M47","v":0}]
[null,null,null,null,null,null,null,null,null,null,null,null,{"$f":"Boat2!M48","v":0}]
[null,null,null,null,null,null,null,null,null,null,null,null,"boat3"]
[null,null,null,null,null,null,null,null,null,null,null,null,{"$f":"Boat3!M15","v":2}]
[null,null,null,null,null,null,null,null,null,null,null,null,{"$f":"Boat3!M16","v":0}]
[null,null,null,null,null,null,null,null,null,null,null,null,{"$f":"Boat3!M17","v":0}]
[null,null,null,null,null,null,null,null,null,null,null,null,{"$f":"Boat3!M18","v":0}]
[null,null,null,null,null,null,null,null,null,null,null,null,{"$f":"Boat3!M19","v":0}]
[null,null,null,null,null,null,null,null,null,null,null,null,{"$f":"Boat3!M20","v":0}]
[null,null,null,null,null,null,null,null,null,null,null,null,{"$f":"Boat3!M21","v":0}]
[null,null,null,null,null,null,null,null,null,null,null,null,{"$f":"Boat3!M22","v":0}]
[null,null,null,null,null,null,null,null,null,null,null,null,{"$f":"Boat3!M23","v":0}]
[null,null,null,null,null,null,null,null,null,null,null,null,{"$f":"Boat3!M24","v":0}]
[null,null,null,null,null,null,null,null,null,null,null,null,{"$f":"Boat3!M25","v":0}]
[null,null,null,null,null,null,null,null,null,null,null,null,{"$f":"Boat3!M26","v":0}]
[null,null,null,null,null,null,null,null,null,null,null,null,{"$f":"Boat3!M27","v":0}]
[null,null,null,null,null,null,null,null,null,null,null,null,{"$f":"Boat3!M28","v":0}]
[null,null,null,null,null,null,null,null,null,null,null,null,{"$f":"Boat3!M29","v":0}]
[null,null,null,null,null,null,null,null,null,null,null,null,{"$f":"Boat3!M30","v":0}]
[null,null,null,null,null,null,null,null,null,null,null,null,{"$f":"Boat3!M31","v":0}]
[null,null,null,null,null,null,null,null,null,null,null,null,{"$f":"Boat3!M32","v":0}]
[null,null,null,null,null,null,null,null,null,null,null,null,{"$f":"Boat3!M33","v":0}]
[null,null,null,null,null,null,null,null,null,null,null,null,{"$f":"Boat3!M34","v":0}]
[null,null,null,null,null,null,null,null,null,null,null,null,{"$f":"Boat3!M35","v":0}]
[null,null,null,null,null,null,null,null,null,null,null,null,{"$f":"Boat3!M36","v":0}]
[null,null,null,null,null,null,null,null,null,null,null,null,{"$f":"Boat3!M37","v":0}]
[null,null,null,null,null,null,null,null,null,null,null,null,{"$f":"Boat3!M38","v":0}]
[null,null,null,null,null,null,null,null,null,null,null,null,{"$f":"Boat3!M39","v":0}]
[null,null,null,null,null,null,null,null,null,null,null,null,{"$f":"Boat3!M40","v":0}]
[null,null,null,null,null,null,null,null,null,null,null,null,{"$f":"Boat3!M41","v":0}]
[null,null,null,null,null,null,null,null,null,null,null,null,{"$f":"Boat3!M42","v":0}]
[null,null,null,null,null,null,null,null,null,null,null,null,{"$f":"Boat3!M43","v":0}]
[null,null,null,null,null,null,null,null,null,null,null,null,{"$f":"Boat3!M44","v":0}]
[null,null,null,null,null,null,null,null,null,null,null,null,{"$f":"Boat3!M45","v":0}]
[null,null,null,null,null,null,null,null,null,null,null,null,{"$f":"Boat3!M46","v":0}]
[null,null,null,null,null,null,null,null,null,null,null,null,{"$f":"Boat3!M47","v":0}]
[null,null,null,null,null,null,null,null,null,null,null,null,{"$f":"Boat3!M48","v":0}]
[null,null,null,null,null,null,null,null,null,null,null,null,"dahab"]
[null,null,null,null,null,null,null,null,null,null,null,null,{"$f":"Dahab!M15","v":2}]
[null,null,null,null,null,null,null,null,null,null,null,null,{"$f":"Dahab!M16","v":0}]
[null,null,null,null,null,null,null,null,null,null,null,null,{"$f":"Dahab!M17","v":0}]
[null,null,null,null,null,null,null,null,null,null,null,null,{"$f":"Dahab!M18","v":0}]
[null,null,null,null,null,null,null,null,null,null,null,null,{"$f":"Dahab!M19","v":0}]
[null,null,null,null,null,null,null,null,null,null,null,null,{"$f":"Dahab!M20","v":0}]
[null,null,null,null,null,null,null,null,null,null,null,null,{"$f":"Dahab!M21","v":0}]
[null,null,null,null,null,null,null,null,null,null,null,null,{"$f":"Dahab!M22","v":0}]
[null,null,null,null,null,null,null,null,null,null,null,null,{"$f":"Dahab!M23","v":0}]
[null,null,null,null,null,null,null,null,null,null,null,null,{"$f":"Dahab!M24","v":0}]
[null,null,null,null,null,null,null,null,null,null,null,null,{"$f":"Dahab!M25","v":0}]
[null,null,null,null,null,null,null,null,null,null,null,null,{"$f":"Dahab!M26","v":0}]
[null,null,null,null,null,null,null,null,null,null,null,null,{"$f":"Dahab!M27","v":0}]
[null,null,null,null,null,null,null,null,null,null,null,null,{"$f":"Dahab!M28","v":0}]
[null,null,null,null,null,null,null,null,null,null,null,null,{"$f":"Dahab!M29","v":0}]
[null,null,null,null,null,null,null,null,null,null,null,null,{"$f":"Dahab!M30","v":0}]
[null,null,null,null,null,null,null,null,null,null,null,null,{"$f":"Dahab!M31","v":0}]
[null,null,null,null,null,null,null,null,null,null,null,null,{"$f":"Dahab!M32","v":0}]
[null,null,null,null,null,null,null,null,null,null,null,null,{"$f":"Dahab!M33","v":0}]
[null,null,null,null,null,null,null,null,null,null,null,null,{"$f":"Dahab!M34","v":0}]
[null,null,null,null,null,null,null,null,null,null,null,null,{"$f":"Dahab!M35","v":0}]
[null,null,null,null,null,null,null,null,null,null,null,null,{"$f":"Dahab!M36","v":0}]
[null,null,null,null,null,null,null,null,null,null,null,null,{"$f":"Dahab!M37","v":0}]
[null,null,null,null,null,null,null,null,null,null,null,null,{"$f":"Dahab!M38","v":0}]
[null,null,null,null,null,null,null,null,null,null,null,null,{"$f":"Dahab!M39","v":0}]
[null,null,null,null,null,null,null,null,null,null,null,null,{"$f":"Dahab!M40","v":0}]
[null,null,null,null,null,null,null,null,null,null,null,null,{"$f":"Dahab!M41","v":0}]
[null,null,null,null,null,null,null,null,null,null,null,null,{"$f":"Dahab!M42","v":0}]
[null,null,null,null,null,null,null,null,null,null,null,null,{"$f":"Dahab!M43","v":0}]
[null,null,null,null,null,null,null,null,null,null,null,null,{"$f":"Dahab!M44","v":0}]
[null,null,null,null,null,null,null,null,null,null,null,null,{"$f":"Dahab!M45","v":0}]
[null,null,null,null,null,null,null,null,null,null,null,null,{"$f":"Dahab!M46","v":0}]
[null,null,null,null,null,null,null,null,null,null,null,null,{"$f":"Dahab!M47","v":0}]
[null,null,null,null,null,null,null,null,null,null,null,null,{"$f":"Dahab!M48","v":0}]
[null,null,null,null,null,null,null,null,null,null,null,null,"sharks bay"]
[null,null,null,null,null,null,null,null,null,null,null,null,{"$f":"'Sharks bay'!M15","v":0}]
[null,null,null,null,null,null,null,null,null,null,null,null,{"$f":"'Sharks bay'!M16","v":0}]
[null,null,null,null,null,null,null,null,null,null,null,null,{"$f":"'Sharks bay'!M17","v":0}]
[null,null,null,null,null,null,null,null,null,null,null,null,{"$f":"'Sharks bay'!M18","v":0}]
[null,null,null,null,null,null,null,null,null,null,null,null,{"$f":"'Sharks bay'!M19","v":0}]
[null,null,null,null,null,null,null,null,null,null,null,null,{"$f":"'Sharks bay'!M20","v":0}]
[null,null,null,null,null,null,null,null,null,null,null,null,{"$f":"'Sharks bay'!M21","v":0}]
[null,null,null,null,null,null,null,null,null,null,null,null,{"$f":"'Sharks bay'!M22","v":0}]
[null,null,null,null,null,null,null,null,null,null,null,null,{"$f":"'Sharks bay'!M23","v":0}]
[null,null,null,null,null,null,null,null,null,null,null,null,{"$f":"'Sharks bay'!M24","v":0}]
[null,null,null,null,null,null,null,null,null,null,null,null,{"$f":"'Sharks bay'!M25","v":0}]
[null,null,null,null,null,null,null,null,null,null,null,null,{"$f":"'Sharks bay'!M26","v":0}]
[null,null,null,null,null,null,null,null,null,null,null,null,{"$f":"'Sharks bay'!M27","v":0}]
[null,null,null,null,null,null,null,null,null,null,null,null,{"$f":"'Sharks bay'!M28","v":0}]
[null,null,null,null,null,null,null,null,null,null,null,null,{"$f":"'Sharks bay'!M29","v":0}]
[null,null,null,null,null,null,null,null,null,null,null,null,{"$f":"'Sharks bay'!M30","v":0}]
[null,null,null,null,null,null,null,null,null,null,null,null,{"$f":"'Sharks bay'!M31","v":0}]
[null,null,null,null,null,null,null,null,null,null,null,null,{"$f":"'Sharks bay'!M32","v":0}]
[null,null,null,null,null,null,null,null,null,null,null,null,{"$f":"'Sharks bay'!M33","v":0}]
[null,null,null,null,null,null,null,null,null,null,null,null,{"$f":"'Sharks bay'!M34","v":0}]
[null,null,null,null,null,null,null,null,null,null,null,null,{"$f":"'Sharks bay'!M35","v":0}]
[null,null,null,null,null,null,null,null,null,null,null,null,{"$f":"'Sharks bay'!M36","v":0}]
[null,null,null,null,null,null,null,null,null,null,null,null,{"$f":"'Sharks bay'!M37","v":0}]
[null,null,null,null,null,null,null,null,null,null,null,null,{"$f":"'Sharks bay'!M38","v":0}]
[null,null,null,null,null,null,null,null,null,null,null,null,{"$f":"'Sharks bay'!M39","v":0}]
[null,null,null,null,null,null,null,null,null,null,null,null,{"$f":"'Sharks bay'!M40","v":0}]
[null,null,null,null,null,null,null,null,null,null,null,null,{"$f":"'Sharks bay'!M41","v":0}]
[null,null,null,null,null,null,null,null,null,null,null,null,{"$f":"'Sharks bay'!M42","v":0}]
[null,null,null,null,null,null,null,null,null,null,null,null,{"$f":"'Sharks bay'!M43","v":0}]
[null,null,null,null,null,null,null,null,null,null,null,null,{"$f":"'Sharks bay'!M44","v":0}]
[null,null,null,null,null,null,null,null,null,null,null,null,{"$f":"'Sharks bay'!M45","v":0}]
[null,null,null,null,null,null,null,null,null,null,null,null,{"$f":"'Sharks bay'!M46","v":0}]
[null,null,null,null,null,null,null,null,null,null,null,null,{"$f":"'Sharks bay'!M47","v":0}]
[null,null,null,null,null,null,null,null,null,null,null,null,{"$f":"'Sharks bay'!M48","v":0}]
[null,null,null,null,null,null,null,null,null,null,null,null,"stella"]
[null,null,null,null,null,null,null,null,null,null,null,null,{"$f":"Stella!M15","v":0}]
[null,null,null,null,null,null,null,null,null,null,null,null,{"$f":"Stella!M16","v":0}]
[null,null,null,null,null,null,null,null,null,null,null,null,{"$f":"Stella!M17","v":0}]
[null,null,null,null,null,null,null,null,null,null,null,null,{"$f":"Stella!M18","v":0}]
[null,null,null,null,null,null,null,null,null,null,null,null,{"$f":"Stella!M19","v":0}]
[null,null,null,null,null,null,null,null,null,null,null,null,{"$f":"Stella!M20","v":0}]
[null,null,null,null,null,null,null,null,null,null,null,null,{"$f":"Stella!M21","v":0}]
[null,null,null,null,null,null,null,null,null,null,null,null,{"$f":"Stella!M22","v":0}]
[null,null,null,null,null,null,null,null,null,null,null,null,{"$f":"Stella!M23","v":0}]
[null,null,null,null,null,null,null,null,null,null,null,null,{"$f":"Stella!M24","v":0}]
[null,null,null,null,null,null,null,null,null,null,null,null,{"$f":"Stella!M25","v":0}]
[null,null,null,null,null,null,null,null,null,null,null,null,{"$f":"Stella!M26","v":0}]
[null,null,null,null,null,null,null,null,null,null,null,null,{"$f":"Stella!M27","v":0}]
[null,null,null,null,null,null,null,null,null,null,null,null,{"$f":"Stella!M28","v":0}]
[null,null,null,null,null,null,null,null,null,null,null,null,{"$f":"Stella!M29","v":0}]
[null,null,null,null,null,null,null,null,null,null,null,null,{"$f":"Stella!M30","v":0}]
[null,null,null,null,null,null,null,null,null,null,null,null,{"$f":"Stella!M31","v":0}]
[null,null,null,null,null,null,null,null,null,null,null,null,{"$f":"Stella!M32","v":0}]
[null,null,null,null,null,null,null,null,null,null,null,null,{"$f":"Stella!M33","v":0}]
[null,null,null,null,null,null,null,null,null,null,null,null,{"$f":"Stella!M34","v":0}]
[null,null,null,null,null,null,null,null,null,null,null,null,{"$f":"Stella!M35","v":0}]
[null,null,null,null,null,null,null,null,null,null,null,null,{"$f":"Stella!M36","v":0}]
[null,null,null,null,null,null,null,null,null,null,null,null,{"$f":"Stella!M37","v":0}]
[null,null,null,null,null,null,null,null,null,null,null,null,{"$f":"Stella!M38","v":0}]
[null,null,null,null,null,null,null,null,null,null,null,null,{"$f":"Stella!M39","v":0}]
[null,null,null,null,null,null,null,null,null,null,null,null,{"$f":"Stella!M40","v":0}]
[null,null,null,null,null,null,null,null,null,null,null,null,{"$f":"Stella!M41","v":0}]
[null,null,null,null,null,null,null,null,null,null,null,null,{"$f":"Stella!M42","v":0}]
[null,null,null,null,null,null,null,null,null,null,null,null,{"$f":"Stella!M43","v":0}]
[null,null,null,null,null,null,null,null,null,null,null,null,{"$f":"Stella!M44","v":0}]
[null,null,null,null,null,null,null,null,null,null,null,null,{"$f":"Stella!M45","v":0}]
[null,null,null,null,null,null,null,null,null,null,null,null,{"$f":"Stella!M46","v":0}]
[null,null,null,null,null,null,null,null,null,null,null,null,{"$f":"Stella!M47","v":0}]
[null,null,null,null,null,null,null,null,null,null,null,null,{"$f":"Stella!M48","v":0}]
[null,null,null,null,null,null,null,null,null,null,null,null,"fanar"]
[null,null,null,null,null,null,null,null,null,null,null,null,{"$f":"Fanar!M15","v":0}]
[null,null,null,null,null,null,null,null,null,null,null,null,{"$f":"Fanar!M16","v":0}]
[null,null,null,null,null,null,null,null,null,null,null,null,{"$f":"Fanar!M17","v":0}]
[null,null,null,null,null,null,null,null,null,null,null,null,{"$f":"Fanar!M18","v":0}]
[null,null,null,null,null,null,null,null,null,null,null,null,{"$f":"Fanar!M19","v":0}]
[null,null,null,null,null,null,null,null,null,null,null,null,{"$f":"Fanar!M20","v":0}]
[null,null,null,null,null,null,null,null,null,null,null,null,{"$f":"Fanar!M21","v":0}]
[null,null,null,null,null,null,null,null,null,null,null,null,{"$f":"Fanar!M22","v":0}]
[null,null,null,null,null,null,null,null,null,null,null,null,{"$f":"Fanar!M23","v":0}]
[null,null,null,null,null,null,null,null,null,null,null,null,{"$f":"Fanar!M24","v":0}]
[null,null,null,null,null,null,null,null,null,null,null,null,{"$f":"Fanar!M25","v":0}]
[null,null,null,null,null,null,null,null,null,null,null,null,{"$f":"Fanar!M26","v":0}]
[null,null,null,null,null,null,null,null,null,null,null,null,{"$f":"Fanar!M27","v":0}]
[null,null,null,null,null,null,null,null,null,null,null,null,{"$f":"Fanar!M28","v":0}]
[null,null,null,null,null,null,null,null,null,null,null,null,{"$f":"Fanar!M29","v":0}]
[null,null,null,null,null,null,null,null,null,null,null,null,{"$f":"Fanar!M30","v":0}]
[null,null,null,null,null,null,null,null,null,null,null,null,{"$f":"Fanar!M31","v":0}]
[null,null,null,null,null,null,null,null,null,null,null,null,{"$f":"Fanar!M32","v":0}]
[null,null,null,null,null,null,null,null,null,null,null,null,{"$f":"Fanar!M33","v":0}]
[null,null,null,null,null,null,null,null,null,null,null,null,{"$f":"Fanar!M34","v":0}]
[null,null,null,null,null,null,null,null,null,null,null,null,{"$f":"Fanar!M35","v":0}]
[null,null,null,null,null,null,null,null,null,null,null,null,{"$f":"Fanar!M36","v":0}]
[null,null,null,null,null,null,null,null,null,null,null,null,{"$f":"Fanar!M37","v":0}]
[null,null,null,null,null,null,null,null,null,null,null,null,{"$f":"Fanar!M38","v":0}]
[null,null,null,null,null,null,null,null,null,null,null,null,{"$f":"Fanar!M39","v":0}]
[null,null,null,null,null,null,null,null,null,null,null,null,{"$f":"Fanar!M40","v":0}]
[null,null,null,null,null,null,null,null,null,null,null,null,{"$f":"Fanar!M41","v":0}]
[null,null,null,null,null,null,null,null,null,null,null,null,{"$f":"Fanar!M42","v":0}]
[null,null,null,null,null,null,null,null,null,null,null,null,{"$f":"Fanar!M43","v":0}]
[null,null,null,null,null,null,null,null,null,null,null,null,{"$f":"Fanar!M44","v":0}]
[null,null,null,null,null,null,null,null,null,null,null,null,{"$f":"Fanar!M45","v":0}]
[null,null,null,null,null,null,null,null,null,null,null,null,{"$f":"Fanar!M46","v":0}]
[null,null,null,null,null,null,null,null,null,null,null,null,{"$f":"Fanar!M47","v":0}]
[null,null,null,null,null,null,null,null,null,null,null,null,{"$f":"Fanar!M48","v":0}]

{"sheet":"Sharks bay","index":5,"n_rows":303,"n_cols":28,"rows_kept":303,"cut":false,"hidden":false,"merged":[[51,13,51,17],[52,6,52,7],[52,13,56,17],[53,6,53,7],[54,6,54,7],[54,10,54,11],[55,6,55,7],[56,6,56,7],[9,7,9,8],[9,10,9,11],[10,7,10,8],[10,10,10,11],[51,1,51,7],[51,10,51,11],[11,7,11,8],[11,10,11,11],[0,13,1,14],[2,7,2,8],[2,10,2,11],[2,13,2,14],[50,1,50,7],[4,7,4,8],[4,10,4,11],[5,7,5,8],[5,10,5,11],[6,0,9,1],[6,7,6,8],[6,10,6,11],[7,7,7,8],[7,10,7,11],[8,7,8,8],[8,10,8,11],[3,2,3,5],[3,6,3,11],[0,2,1,2],[0,3,1,3],[0,4,1,4],[0,5,0,6],[0,7,1,8],[0,9,1,9],[0,10,1,11]]}
[null,null,"التاريخ","اتجاه الرحله","ميناء القيام","الحموله",null,"تاريخ انتهاء الترخيص",null,"رقم التسجيل","اسم اللنش",null,null,"تليفون اللنش"]
[null,null,null,null,null,"عدد الركاب","عدد الطقم"]
[null,null,{"$f":"Boat1!C3","v":"2022-08-01"},"Sharks Bay ",null,{"$f":"VLOOKUP($K$3,#REF!,4,FALSE)","v":{"$error":"#REF!"}},{"$f":"VLOOKUP($K$3,#REF!,5,FALSE)","v":{"$error":"#REF!"}},{"$f":"VLOOKUP($K$3,#REF!,3,FALSE)","v":{"$error":"#REF!"}},null,{"$f":"VLOOKUP($K$3,#REF!,2,FALSE)","v":{"$error":"#REF!"}},null,null,null,{"$f":"VLOOKUP($K$3,#REF!,6,FALSE)","v":{"$error":"#REF!"}},{"$f":"VLOOKUP($K$3,#REF!,2,FALSE)","v":{"$error":"#REF!"}}]
[null,null,"طاقم المركب",null,null,null,"المدربين/المرشدين/المصورين",null,null,null,null,null,null,"GUIDING"]
[null,null,"تليفون","رقم مزاوله المهنه","الوظيفه","اسماء الطاقم","تليفون","رقم مزاوله المهنه",null,"الوظيفه","الاسماء"]
[null,null,{"$f":"VLOOKUP($K$3,#REF!,10,FALSE)","v":{"$error":"#REF!"}},{"$f":"VLOOKUP($K$3,#REF!,9,FALSE)","v":{"$error":"#REF!"}},{"$f":"VLOOKUP($K$3,#REF!,8,FALSE)","v":{"$error":"#REF!"}},{"$f":"VLOOKUP($K$3,#REF!,7,FALSE)","v":{"$error":"#REF!"}},{"$f":"VLOOKUP($K6,#REF!,4,FALSE)","v":{"$error":"#REF!"}},{"$f":"VLOOKUP($K6,#REF!,3,FALSE)","v":{"$error":"#REF!"}},null,{"$f":"VLOOKUP($K6,#REF!,2,FALSE)","v":{"$error":"#REF!"}}]
["مركز غوص ديزرت روز \n رخصه 341 \n تليفون:01220004757",null,{"$f":"VLOOKUP($K$3,#REF!,14,FALSE)","v":{"$error":"#REF!"}},{"$f":"VLOOKUP($K$3,#REF!,13,FALSE)","v":{"$error":"#REF!"}},{"$f":"VLOOKUP($K$3,#REF!,12,FALSE)","v":{"$error":"#REF!"}},{"$f":"VLOOKUP($K$3,#REF!,11,FALSE)","v":{"$error":"#REF!"}},{"$f":"VLOOKUP($K7,#REF!,4,FALSE)","v":{"$error":"#REF!"}},{"$f":"VLOOKUP($K7,#REF!,3,FALSE)","v":{"$error":"#REF!"}},null,{"$f":"VLOOKUP($K7,#REF!,2,FALSE)","v":{"$error":"#REF!"}}]
[null,null,{"$f":"VLOOKUP($K$3,#REF!,18,FALSE)","v":{"$error":"#REF!"}},{"$f":"VLOOKUP($K$3,#REF!,17,FALSE)","v":{"$error":"#REF!"}},{"$f":"VLOOKUP($K$3,#REF!,16,FALSE)","v":{"$error":"#REF!"}},{"$f":"VLOOKUP($K$3,#REF!,15,FALSE)","v":{"$error":"#REF!"}},{"$f":"VLOOKUP($K8,#REF!,4,FALSE)","v":{"$error":"#REF!"}},{"$f":"VLOOKUP($K8,#REF!,3,FALSE)","v":{"$error":"#REF!"}},null,{"$f":"VLOOKUP($K8,#REF!,2,FALSE)","v":{"$error":"#REF!"}}]
[null,null,{"$f":"VLOOKUP($K$3,#REF!,22,FALSE)","v":{"$error":"#REF!"}},{"$f":"VLOOKUP($K$3,#REF!,21,FALSE)","v":{"$error":"#REF!"}},{"$f":"VLOOKUP($K$3,#REF!,20,FALSE)","v":{"$error":"#REF!"}},{"$f":"VLOOKUP($K$3,#REF!,19,FALSE)","v":{"$error":"#REF!"}},{"$f":"VLOOKUP($K9,#REF!,4,FALSE)","v":{"$error":"#REF!"}},{"$f":"VLOOKUP($K9,#REF!,3,FALSE)","v":{"$error":"#REF!"}},null,{"$f":"VLOOKUP($K9,#REF!,2,FALSE)","v":{"$error":"#REF!"}}]
[null,null,null,null,null,null,{"$f":"VLOOKUP($K10,#REF!,4,FALSE)","v":{"$error":"#REF!"}},{"$f":"VLOOKUP($K10,#REF!,3,FALSE)","v":{"$error":"#REF!"}},null,{"$f":"VLOOKUP($K10,#REF!,2,FALSE)","v":{"$error":"#REF!"}}]
[null,null,null,null,null,null,{"$f":"VLOOKUP($K11,#REF!,4,FALSE)","v":{"$error":"#REF!"}},{"$f":"VLOOKUP($K11,#REF!,3,FALSE)","v":{"$error":"#REF!"}},null,{"$f":"VLOOKUP($K11,#REF!,2,FALSE)","v":{"$error":"#REF!"}}]
[null,null,"Sharing Company",null,{"$f":"VLOOKUP($D$12,#REF!,2,FALSE)","v":{"$error":"#REF!"}},null,{"$f":"VLOOKUP($K12,#REF!,4,FALSE)","v":{"$error":"#REF!"}},{"$f":"VLOOKUP($K12,#REF!,3,FALSE)","v":{"$error":"#REF!"}},null,{"$f":"VLOOKUP($K12,#REF!,2,FALSE)","v":{"$error":"#REF!"}}]
[]
["NO","Name\nالاسم","Last Name\nالعائلي","Nationality\nالجنسيه","Passport\nجواز السفر","Hotel\nالفندق","Room No.\nالحجره","Adult\nكبير","CHD\nطفل","Activity\nالنشاط","LEVEL\nرخصه ","Eval\nمستوي","Box\nصندوق","Fins\nزعانف","Com\nملاحظات","Check in","Bill","Time","Transf","Rest","Guide","Reg#","BCD#","Suit#","Fins#","Mask#","BOOT","Partner"]
[1]
[2]
[3]
[4]
[5]
[6]
[7]
[8]
[9]
[10]
[11]
[12]
[13]
[14]
[15]
[16]
[17]
[18]
[19]
[20]
[21]
[22]
[23]
[24]
[25]
[26]
[27]
[28]
[29]
[30]
[31]
[32]
[33]
[34]
[null,null,null,null,null,null,null,{"$f":"SUM(H15:H48)","v":0},{"$f":"SUM(I15:I48)","v":0},"Total\nاجمالي"]
[]
[null,"PLEASE DON’T FORGET PASSPORT "]
[null,"PICK UP ",null,null,null,null,null,null,null,null,"Nitrox 32%",null,null,"NOTE"]
[null,"Guide","Assembly time","Place of assembly","Carrier","Tel.","DRIVER",null,null,null,"12 L"]
[null,null,null,null,{"$f":"VLOOKUP($G54,#REF!,2,FALSE)","v":{"$error":"#REF!"}},{"$f":"VLOOKUP($G54,#REF!,3,FALSE)","v":{"$error":"#REF!"}},null,null,null,null,"15 L"]
[null,null,null,null,{"$f":"VLOOKUP($G55,#REF!,2,FALSE)","v":{"$error":"#REF!"}},{"$f":"VLOOKUP($G55,#REF!,3,FALSE)","v":{"$error":"#REF!"}},null,null,null,null,"Air"]
[null,null,null,null,{"$f":"VLOOKUP($G56,#REF!,2,FALSE)","v":{"$error":"#REF!"}},{"$f":"VLOOKUP($G56,#REF!,3,FALSE)","v":{"$error":"#REF!"}},null,null,null,null,"8 L"]
[null,null,null,null,{"$f":"VLOOKUP($G57,#REF!,2,FALSE)","v":{"$error":"#REF!"}},{"$f":"VLOOKUP($G57,#REF!,3,FALSE)","v":{"$error":"#REF!"}},null,null,null,null,"15 L"]
[]
[]
[]
[]
[]
[]
[null,null,null,null,null,null,null,null,null,null,null,null,{"$f":"Boat1!M19","v":0}]
[null,null,null,null,null,null,null,null,null,null,null,null,{"$f":"Boat1!M20","v":0}]
[null,null,null,null,null,null,null,null,null,null,null,null,{"$f":"Boat1!M21","v":0}]
[null,null,null,null,null,null,null,null,null,null,null,null,{"$f":"Boat1!M22","v":0}]
[null,null,null,null,null,null,null,null,null,null,null,null,{"$f":"Boat1!M23","v":0}]
[null,null,null,null,null,null,null,null,null,null,null,null,{"$f":"Boat1!M24","v":0}]
[null,null,null,null,null,null,null,null,null,null,null,null,{"$f":"Boat1!M25","v":0}]
[null,null,null,null,null,null,null,null,null,null,null,null,{"$f":"Boat1!M26","v":0}]
[null,null,null,null,null,null,null,null,null,null,null,null,{"$f":"Boat1!M27","v":0}]
[null,null,null,null,null,null,null,null,null,null,null,null,{"$f":"Boat1!M28","v":0}]
[null,null,null,null,null,null,null,null,null,null,null,null,{"$f":"Boat1!M29","v":0}]
[null,null,null,null,null,null,null,null,null,null,null,null,{"$f":"Boat1!M30","v":0}]
[null,null,null,null,null,null,null,null,null,null,null,null,{"$f":"Boat1!M31","v":0}]
[null,null,null,null,null,null,null,null,null,null,null,null,{"$f":"Boat1!M32","v":0}]
[null,null,null,null,null,null,null,null,null,null,null,null,{"$f":"Boat1!M33","v":0}]
[null,null,null,null,null,null,null,null,null,null,null,null,{"$f":"Boat1!M34","v":0}]
[null,null,null,null,null,null,null,null,null,null,null,null,{"$f":"Boat1!M35","v":0}]
[null,null,null,null,null,null,null,null,null,null,null,null,{"$f":"Boat1!M36","v":0}]
[null,null,null,null,null,null,null,null,null,null,null,null,{"$f":"Boat1!M37","v":0}]
[null,null,null,null,null,null,null,null,null,null,null,null,{"$f":"Boat1!M38","v":0}]
[null,null,null,null,null,null,null,null,null,null,null,null,{"$f":"Boat1!M39","v":0}]
[null,null,null,null,null,null,null,null,null,null,null,null,{"$f":"Boat1!M40","v":0}]
[null,null,null,null,null,null,null,null,null,null,null,null,{"$f":"Boat1!M41","v":0}]
[null,null,null,null,null,null,null,null,null,null,null,null,{"$f":"Boat1!M42","v":0}]
[null,null,null,null,null,null,null,null,null,null,null,null,{"$f":"Boat1!M43","v":0}]
[null,null,null,null,null,null,null,null,null,null,null,null,{"$f":"Boat1!M44","v":0}]
[null,null,null,null,null,null,null,null,null,null,null,null,{"$f":"Boat1!M45","v":0}]
[null,null,null,null,null,null,null,null,null,null,null,null,{"$f":"Boat1!M46","v":0}]
[null,null,null,null,null,null,null,null,null,null,null,null,{"$f":"Boat1!M47","v":0}]
[null,null,null,null,null,null,null,null,null,null,null,null,{"$f":"Boat1!M48","v":0}]
[null,null,null,null,null,null,null,null,null,null,null,null,"boat2"]
[null,null,null,null,null,null,null,null,null,null,null,null,{"$f":"Boat2!M15","v":5}]
[null,null,null,null,null,null,null,null,null,null,null,null,{"$f":"Boat2!M16","v":3}]
[null,null,null,null,null,null,null,null,null,null,null,null,{"$f":"Boat2!M17","v":0}]
[null,null,null,null,null,null,null,null,null,null,null,null,{"$f":"Boat2!M18","v":0}]
[null,null,null,null,null,null,null,null,null,null,null,null,{"$f":"Boat2!M19","v":0}]
[null,null,null,null,null,null,null,null,null,null,null,null,{"$f":"Boat2!M20","v":0}]
[null,null,null,null,null,null,null,null,null,null,null,null,{"$f":"Boat2!M21","v":0}]
[null,null,null,null,null,null,null,null,null,null,null,null,{"$f":"Boat2!M22","v":0}]
[null,null,null,null,null,null,null,null,null,null,null,null,{"$f":"Boat2!M23","v":0}]
[null,null,null,null,null,null,null,null,null,null,null,null,{"$f":"Boat2!M24","v":0}]
[null,null,null,null,null,null,null,null,null,null,null,null,{"$f":"Boat2!M25","v":0}]
[null,null,null,null,null,null,null,null,null,null,null,null,{"$f":"Boat2!M26","v":0}]
[null,null,null,null,null,null,null,null,null,null,null,null,{"$f":"Boat2!M27","v":0}]
[null,null,null,null,null,null,null,null,null,null,null,null,{"$f":"Boat2!M28","v":0}]
[null,null,null,null,null,null,null,null,null,null,null,null,{"$f":"Boat2!M29","v":0}]
[null,null,null,null,null,null,null,null,null,null,null,null,{"$f":"Boat2!M30","v":0}]
[null,null,null,null,null,null,null,null,null,null,null,null,{"$f":"Boat2!M31","v":0}]
[null,null,null,null,null,null,null,null,null,null,null,null,{"$f":"Boat2!M32","v":0}]
[null,null,null,null,null,null,null,null,null,null,null,null,{"$f":"Boat2!M33","v":0}]
[null,null,null,null,null,null,null,null,null,null,null,null,{"$f":"Boat2!M34","v":0}]
[null,null,null,null,null,null,null,null,null,null,null,null,{"$f":"Boat2!M35","v":0}]
[null,null,null,null,null,null,null,null,null,null,null,null,{"$f":"Boat2!M36","v":0}]
[null,null,null,null,null,null,null,null,null,null,null,null,{"$f":"Boat2!M37","v":0}]
[null,null,null,null,null,null,null,null,null,null,null,null,{"$f":"Boat2!M38","v":0}]
[null,null,null,null,null,null,null,null,null,null,null,null,{"$f":"Boat2!M39","v":0}]
[null,null,null,null,null,null,null,null,null,null,null,null,{"$f":"Boat2!M40","v":0}]
[null,null,null,null,null,null,null,null,null,null,null,null,{"$f":"Boat2!M41","v":0}]
[null,null,null,null,null,null,null,null,null,null,null,null,{"$f":"Boat2!M42","v":0}]
[null,null,null,null,null,null,null,null,null,null,null,null,{"$f":"Boat2!M43","v":0}]
[null,null,null,null,null,null,null,null,null,null,null,null,{"$f":"Boat2!M44","v":0}]
[null,null,null,null,null,null,null,null,null,null,null,null,{"$f":"Boat2!M45","v":0}]
[null,null,null,null,null,null,null,null,null,null,null,null,{"$f":"Boat2!M46","v":0}]
[null,null,null,null,null,null,null,null,null,null,null,null,{"$f":"Boat2!M47","v":0}]
[null,null,null,null,null,null,null,null,null,null,null,null,{"$f":"Boat2!M48","v":0}]
[null,null,null,null,null,null,null,null,null,null,null,null,"boat3"]
[null,null,null,null,null,null,null,null,null,null,null,null,{"$f":"Boat3!M15","v":2}]
[null,null,null,null,null,null,null,null,null,null,null,null,{"$f":"Boat3!M16","v":0}]
[null,null,null,null,null,null,null,null,null,null,null,null,{"$f":"Boat3!M17","v":0}]
[null,null,null,null,null,null,null,null,null,null,null,null,{"$f":"Boat3!M18","v":0}]
[null,null,null,null,null,null,null,null,null,null,null,null,{"$f":"Boat3!M19","v":0}]
[null,null,null,null,null,null,null,null,null,null,null,null,{"$f":"Boat3!M20","v":0}]
[null,null,null,null,null,null,null,null,null,null,null,null,{"$f":"Boat3!M21","v":0}]
[null,null,null,null,null,null,null,null,null,null,null,null,{"$f":"Boat3!M22","v":0}]
[null,null,null,null,null,null,null,null,null,null,null,null,{"$f":"Boat3!M23","v":0}]
[null,null,null,null,null,null,null,null,null,null,null,null,{"$f":"Boat3!M24","v":0}]
[null,null,null,null,null,null,null,null,null,null,null,null,{"$f":"Boat3!M25","v":0}]
[null,null,null,null,null,null,null,null,null,null,null,null,{"$f":"Boat3!M26","v":0}]
[null,null,null,null,null,null,null,null,null,null,null,null,{"$f":"Boat3!M27","v":0}]
[null,null,null,null,null,null,null,null,null,null,null,null,{"$f":"Boat3!M28","v":0}]
[null,null,null,null,null,null,null,null,null,null,null,null,{"$f":"Boat3!M29","v":0}]
[null,null,null,null,null,null,null,null,null,null,null,null,{"$f":"Boat3!M30","v":0}]
[null,null,null,null,null,null,null,null,null,null,null,null,{"$f":"Boat3!M31","v":0}]
[null,null,null,null,null,null,null,null,null,null,null,null,{"$f":"Boat3!M32","v":0}]
[null,null,null,null,null,null,null,null,null,null,null,null,{"$f":"Boat3!M33","v":0}]
[null,null,null,null,null,null,null,null,null,null,null,null,{"$f":"Boat3!M34","v":0}]
[null,null,null,null,null,null,null,null,null,null,null,null,{"$f":"Boat3!M35","v":0}]
[null,null,null,null,null,null,null,null,null,null,null,null,{"$f":"Boat3!M36","v":0}]
[null,null,null,null,null,null,null,null,null,null,null,null,{"$f":"Boat3!M37","v":0}]
[null,null,null,null,null,null,null,null,null,null,null,null,{"$f":"Boat3!M38","v":0}]
[null,null,null,null,null,null,null,null,null,null,null,null,{"$f":"Boat3!M39","v":0}]
[null,null,null,null,null,null,null,null,null,null,null,null,{"$f":"Boat3!M40","v":0}]
[null,null,null,null,null,null,null,null,null,null,null,null,{"$f":"Boat3!M41","v":0}]
[null,null,null,null,null,null,null,null,null,null,null,null,{"$f":"Boat3!M42","v":0}]
[null,null,null,null,null,null,null,null,null,null,null,null,{"$f":"Boat3!M43","v":0}]
[null,null,null,null,null,null,null,null,null,null,null,null,{"$f":"Boat3!M44","v":0}]
[null,null,null,null,null,null,null,null,null,null,null,null,{"$f":"Boat3!M45","v":0}]
[null,null,null,null,null,null,null,null,null,null,null,null,{"$f":"Boat3!M46","v":0}]
[null,null,null,null,null,null,null,null,null,null,null,null,{"$f":"Boat3!M47","v":0}]
[null,null,null,null,null,null,null,null,null,null,null,null,{"$f":"Boat3!M48","v":0}]
[null,null,null,null,null,null,null,null,null,null,null,null,"dahab"]
[null,null,null,null,null,null,null,null,null,null,null,null,{"$f":"Dahab!M15","v":2}]
[null,null,null,null,null,null,null,null,null,null,null,null,{"$f":"Dahab!M16","v":0}]
[null,null,null,null,null,null,null,null,null,null,null,null,{"$f":"Dahab!M17","v":0}]
[null,null,null,null,null,null,null,null,null,null,null,null,{"$f":"Dahab!M18","v":0}]
[null,null,null,null,null,null,null,null,null,null,null,null,{"$f":"Dahab!M19","v":0}]
[null,null,null,null,null,null,null,null,null,null,null,null,{"$f":"Dahab!M20","v":0}]
[null,null,null,null,null,null,null,null,null,null,null,null,{"$f":"Dahab!M21","v":0}]
[null,null,null,null,null,null,null,null,null,null,null,null,{"$f":"Dahab!M22","v":0}]
[null,null,null,null,null,null,null,null,null,null,null,null,{"$f":"Dahab!M23","v":0}]
[null,null,null,null,null,null,null,null,null,null,null,null,{"$f":"Dahab!M24","v":0}]
[null,null,null,null,null,null,null,null,null,null,null,null,{"$f":"Dahab!M25","v":0}]
[null,null,null,null,null,null,null,null,null,null,null,null,{"$f":"Dahab!M26","v":0}]
[null,null,null,null,null,null,null,null,null,null,null,null,{"$f":"Dahab!M27","v":0}]
[null,null,null,null,null,null,null,null,null,null,null,null,{"$f":"Dahab!M28","v":0}]
[null,null,null,null,null,null,null,null,null,null,null,null,{"$f":"Dahab!M29","v":0}]
[null,null,null,null,null,null,null,null,null,null,null,null,{"$f":"Dahab!M30","v":0}]
[null,null,null,null,null,null,null,null,null,null,null,null,{"$f":"Dahab!M31","v":0}]
[null,null,null,null,null,null,null,null,null,null,null,null,{"$f":"Dahab!M32","v":0}]
[null,null,null,null,null,null,null,null,null,null,null,null,{"$f":"Dahab!M33","v":0}]
[null,null,null,null,null,null,null,null,null,null,null,null,{"$f":"Dahab!M34","v":0}]
[null,null,null,null,null,null,null,null,null,null,null,null,{"$f":"Dahab!M35","v":0}]
[null,null,null,null,null,null,null,null,null,null,null,null,{"$f":"Dahab!M36","v":0}]
[null,null,null,null,null,null,null,null,null,null,null,null,{"$f":"Dahab!M37","v":0}]
[null,null,null,null,null,null,null,null,null,null,null,null,{"$f":"Dahab!M38","v":0}]
[null,null,null,null,null,null,null,null,null,null,null,null,{"$f":"Dahab!M39","v":0}]
[null,null,null,null,null,null,null,null,null,null,null,null,{"$f":"Dahab!M40","v":0}]
[null,null,null,null,null,null,null,null,null,null,null,null,{"$f":"Dahab!M41","v":0}]
[null,null,null,null,null,null,null,null,null,null,null,null,{"$f":"Dahab!M42","v":0}]
[null,null,null,null,null,null,null,null,null,null,null,null,{"$f":"Dahab!M43","v":0}]
[null,null,null,null,null,null,null,null,null,null,null,null,{"$f":"Dahab!M44","v":0}]
[null,null,null,null,null,null,null,null,null,null,null,null,{"$f":"Dahab!M45","v":0}]
[null,null,null,null,null,null,null,null,null,null,null,null,{"$f":"Dahab!M46","v":0}]
[null,null,null,null,null,null,null,null,null,null,null,null,{"$f":"Dahab!M47","v":0}]
[null,null,null,null,null,null,null,null,null,null,null,null,{"$f":"Dahab!M48","v":0}]
[null,null,null,null,null,null,null,null,null,null,null,null,"thistlegorm"]
[null,null,null,null,null,null,null,null,null,null,null,null,{"$f":"Thistelgorm!M15","v":0}]
[null,null,null,null,null,null,null,null,null,null,null,null,{"$f":"Thistelgorm!M16","v":0}]
[null,null,null,null,null,null,null,null,null,null,null,null,{"$f":"Thistelgorm!M17","v":0}]
[null,null,null,null,null,null,null,null,null,null,null,null,{"$f":"Thistelgorm!M18","v":0}]
[null,null,null,null,null,null,null,null,null,null,null,null,{"$f":"Thistelgorm!M19","v":0}]
[null,null,null,null,null,null,null,null,null,null,null,null,{"$f":"Thistelgorm!M20","v":0}]
[null,null,null,null,null,null,null,null,null,null,null,null,{"$f":"Thistelgorm!M21","v":0}]
[null,null,null,null,null,null,null,null,null,null,null,null,{"$f":"Thistelgorm!M22","v":0}]
[null,null,null,null,null,null,null,null,null,null,null,null,{"$f":"Thistelgorm!M23","v":0}]
[null,null,null,null,null,null,null,null,null,null,null,null,{"$f":"Thistelgorm!M24","v":0}]
[null,null,null,null,null,null,null,null,null,null,null,null,{"$f":"Thistelgorm!M25","v":0}]
[null,null,null,null,null,null,null,null,null,null,null,null,{"$f":"Thistelgorm!M26","v":0}]
[null,null,null,null,null,null,null,null,null,null,null,null,{"$f":"Thistelgorm!M27","v":0}]
[null,null,null,null,null,null,null,null,null,null,null,null,{"$f":"Thistelgorm!M28","v":0}]
[null,null,null,null,null,null,null,null,null,null,null,null,{"$f":"Thistelgorm!M29","v":0}]
[null,null,null,null,null,null,null,null,null,null,null,null,{"$f":"Thistelgorm!M30","v":0}]
[null,null,null,null,null,null,null,null,null,null,null,null,{"$f":"Thistelgorm!M31","v":0}]
[null,null,null,null,null,null,null,null,null,null,null,null,{"$f":"Thistelgorm!M32","v":0}]
[null,null,null,null,null,null,null,null,null,null,null,null,{"$f":"Thistelgorm!M33","v":0}]
[null,null,null,null,null,null,null,null,null,null,null,null,{"$f":"Thistelgorm!M34","v":0}]
[null,null,null,null,null,null,null,null,null,null,null,null,{"$f":"Thistelgorm!M35","v":0}]
[null,null,null,null,null,null,null,null,null,null,null,null,{"$f":"Thistelgorm!M36","v":0}]
[null,null,null,null,null,null,null,null,null,null,null,null,{"$f":"Thistelgorm!M37","v":0}]
[null,null,null,null,null,null,null,null,null,null,null,null,{"$f":"Thistelgorm!M38","v":0}]
[null,null,null,null,null,null,null,null,null,null,null,null,{"$f":"Thistelgorm!M39","v":0}]
[null,null,null,null,null,null,null,null,null,null,null,null,{"$f":"Thistelgorm!M40","v":0}]
[null,null,null,null,null,null,null,null,null,null,null,null,{"$f":"Thistelgorm!M41","v":0}]
[null,null,null,null,null,null,null,null,null,null,null,null,{"$f":"Thistelgorm!M42","v":0}]
[null,null,null,null,null,null,null,null,null,null,null,null,{"$f":"Thistelgorm!M43","v":0}]
[null,null,null,null,null,null,null,null,null,null,null,null,{"$f":"Thistelgorm!M44","v":0}]
[null,null,null,null,null,null,null,null,null,null,null,null,{"$f":"Thistelgorm!M45","v":0}]
[null,null,null,null,null,null,null,null,null,null,null,null,{"$f":"Thistelgorm!M46","v":0}]
[null,null,null,null,null,null,null,null,null,null,null,null,{"$f":"Thistelgorm!M47","v":0}]
[null,null,null,null,null,null,null,null,null,null,null,null,{"$f":"Thistelgorm!M48","v":0}]
[null,null,null,null,null,null,null,null,null,null,null,null,"stella"]
[null,null,null,null,null,null,null,null,null,null,null,null,{"$f":"Stella!M15","v":0}]
[null,null,null,null,null,null,null,null,null,null,null,null,{"$f":"Stella!M16","v":0}]
[null,null,null,null,null,null,null,null,null,null,null,null,{"$f":"Stella!M17","v":0}]
[null,null,null,null,null,null,null,null,null,null,null,null,{"$f":"Stella!M18","v":0}]
[null,null,null,null,null,null,null,null,null,null,null,null,{"$f":"Stella!M19","v":0}]
[null,null,null,null,null,null,null,null,null,null,null,null,{"$f":"Stella!M20","v":0}]
[null,null,null,null,null,null,null,null,null,null,null,null,{"$f":"Stella!M21","v":0}]
[null,null,null,null,null,null,null,null,null,null,null,null,{"$f":"Stella!M22","v":0}]
[null,null,null,null,null,null,null,null,null,null,null,null,{"$f":"Stella!M23","v":0}]
[null,null,null,null,null,null,null,null,null,null,null,null,{"$f":"Stella!M24","v":0}]
[null,null,null,null,null,null,null,null,null,null,null,null,{"$f":"Stella!M25","v":0}]
[null,null,null,null,null,null,null,null,null,null,null,null,{"$f":"Stella!M26","v":0}]
[null,null,null,null,null,null,null,null,null,null,null,null,{"$f":"Stella!M27","v":0}]
[null,null,null,null,null,null,null,null,null,null,null,null,{"$f":"Stella!M28","v":0}]
[null,null,null,null,null,null,null,null,null,null,null,null,{"$f":"Stella!M29","v":0}]
[null,null,null,null,null,null,null,null,null,null,null,null,{"$f":"Stella!M30","v":0}]
[null,null,null,null,null,null,null,null,null,null,null,null,{"$f":"Stella!M31","v":0}]
[null,null,null,null,null,null,null,null,null,null,null,null,{"$f":"Stella!M32","v":0}]
[null,null,null,null,null,null,null,null,null,null,null,null,{"$f":"Stella!M33","v":0}]
[null,null,null,null,null,null,null,null,null,null,null,null,{"$f":"Stella!M34","v":0}]
[null,null,null,null,null,null,null,null,null,null,null,null,{"$f":"Stella!M35","v":0}]
[null,null,null,null,null,null,null,null,null,null,null,null,{"$f":"Stella!M36","v":0}]
[null,null,null,null,null,null,null,null,null,null,null,null,{"$f":"Stella!M37","v":0}]
[null,null,null,null,null,null,null,null,null,null,null,null,{"$f":"Stella!M38","v":0}]
[null,null,null,null,null,null,null,null,null,null,null,null,{"$f":"Stella!M39","v":0}]
[null,null,null,null,null,null,null,null,null,null,null,null,{"$f":"Stella!M40","v":0}]
[null,null,null,null,null,null,null,null,null,null,null,null,{"$f":"Stella!M41","v":0}]
[null,null,null,null,null,null,null,null,null,null,null,null,{"$f":"Stella!M42","v":0}]
[null,null,null,null,null,null,null,null,null,null,null,null,{"$f":"Stella!M43","v":0}]
[null,null,null,null,null,null,null,null,null,null,null,null,{"$f":"Stella!M44","v":0}]
[null,null,null,null,null,null,null,null,null,null,null,null,{"$f":"Stella!M45","v":0}]
[null,null,null,null,null,null,null,null,null,null,null,null,{"$f":"Stella!M46","v":0}]
[null,null,null,null,null,null,null,null,null,null,null,null,{"$f":"Stella!M47","v":0}]
[null,null,null,null,null,null,null,null,null,null,null,null,{"$f":"Stella!M48","v":0}]
[null,null,null,null,null,null,null,null,null,null,null,null,"fanar"]
[null,null,null,null,null,null,null,null,null,null,null,null,{"$f":"Fanar!M15","v":0}]
[null,null,null,null,null,null,null,null,null,null,null,null,{"$f":"Fanar!M16","v":0}]
[null,null,null,null,null,null,null,null,null,null,null,null,{"$f":"Fanar!M17","v":0}]
[null,null,null,null,null,null,null,null,null,null,null,null,{"$f":"Fanar!M18","v":0}]
[null,null,null,null,null,null,null,null,null,null,null,null,{"$f":"Fanar!M19","v":0}]
[null,null,null,null,null,null,null,null,null,null,null,null,{"$f":"Fanar!M20","v":0}]
[null,null,null,null,null,null,null,null,null,null,null,null,{"$f":"Fanar!M21","v":0}]
[null,null,null,null,null,null,null,null,null,null,null,null,{"$f":"Fanar!M22","v":0}]
[null,null,null,null,null,null,null,null,null,null,null,null,{"$f":"Fanar!M23","v":0}]
[null,null,null,null,null,null,null,null,null,null,null,null,{"$f":"Fanar!M24","v":0}]
[null,null,null,null,null,null,null,null,null,null,null,null,{"$f":"Fanar!M25","v":0}]
[null,null,null,null,null,null,null,null,null,null,null,null,{"$f":"Fanar!M26","v":0}]
[null,null,null,null,null,null,null,null,null,null,null,null,{"$f":"Fanar!M27","v":0}]
[null,null,null,null,null,null,null,null,null,null,null,null,{"$f":"Fanar!M28","v":0}]
[null,null,null,null,null,null,null,null,null,null,null,null,{"$f":"Fanar!M29","v":0}]
[null,null,null,null,null,null,null,null,null,null,null,null,{"$f":"Fanar!M30","v":0}]
[null,null,null,null,null,null,null,null,null,null,null,null,{"$f":"Fanar!M31","v":0}]
[null,null,null,null,null,null,null,null,null,null,null,null,{"$f":"Fanar!M32","v":0}]
[null,null,null,null,null,null,null,null,null,null,null,null,{"$f":"Fanar!M33","v":0}]
[null,null,null,null,null,null,null,null,null,null,null,null,{"$f":"Fanar!M34","v":0}]
[null,null,null,null,null,null,null,null,null,null,null,null,{"$f":"Fanar!M35","v":0}]
[null,null,null,null,null,null,null,null,null,null,null,null,{"$f":"Fanar!M36","v":0}]
[null,null,null,null,null,null,null,null,null,null,null,null,{"$f":"Fanar!M37","v":0}]
[null,null,null,null,null,null,null,null,null,null,null,null,{"$f":"Fanar!M38","v":0}]
[null,null,null,null,null,null,null,null,null,null,null,null,{"$f":"Fanar!M39","v":0}]
[null,null,null,null,null,null,null,null,null,null,null,null,{"$f":"Fanar!M40","v":0}]
[null,null,null,null,null,null,null,null,null,null,null,null,{"$f":"Fanar!M41","v":0}]
[null,null,null,null,null,null,null,null,null,null,null,null,{"$f":"Fanar!M42","v":0}]
[null,null,null,null,null,null,null,null,null,null,null,null,{"$f":"Fanar!M43","v":0}]
[null,null,null,null,null,null,null,null,null,null,null,null,{"$f":"Fanar!M44","v":0}]
[null,null,null,null,null,null,null,null,null,null,null,null,{"$f":"Fanar!M45","v":0}]
[null,null,null,null,null,null,null,null,null,null,null,null,{"$f":"Fanar!M46","v":0}]
[null,null,null,null,null,null,null,null,null,null,null,null,{"$f":"Fanar!M47","v":0}]
[null,null,null,null,null,null,null,null,null,null,null,null,{"$f":"Fanar!M48","v":0}]

{"sheet":"Stella","index":6,"n_rows":303,"n_cols":28,"rows_kept":303,"cut":false,"hidden":false,"merged":[[51,13,51,17],[52,6,52,7],[52,13,56,17],[53,6,53,7],[54,6,54,7],[54,10,54,11],[55,6,55,7],[56,6,56,7],[9,7,9,8],[9,10,9,11],[10,7,10,8],[10,10,10,11],[51,1,51,7],[51,10,51,11],[11,7,11,8],[11,10,11,11],[0,13,1,14],[2,7,2,8],[2,10,2,11],[2,13,2,14],[50,1,50,7],[4,7,4,8],[4,10,4,11],[5,7,5,8],[5,10,5,11],[6,0,9,1],[6,7,6,8],[6,10,6,11],[7,7,7,8],[7,10,7,11],[8,7,8,8],[8,10,8,11],[3,2,3,5],[3,6,3,11],[0,2,1,2],[0,3,1,3],[0,4,1,4],[0,5,0,6],[0,7,1,8],[0,9,1,9],[0,10,1,11]]}
[null,null,"التاريخ","اتجاه الرحله","ميناء القيام","الحموله",null,"تاريخ انتهاء الترخيص",null,"رقم التسجيل","اسم اللنش",null,null,"تليفون اللنش"]
[null,null,null,null,null,"عدد الركاب","عدد الطقم"]
[null,null,{"$f":"Boat1!C3","v":"2022-08-01"},"Stella Beach",null,{"$f":"VLOOKUP($K$3,#REF!,4,FALSE)","v":{"$error":"#REF!"}},{"$f":"VLOOKUP($K$3,#REF!,5,FALSE)","v":{"$error":"#REF!"}},{"$f":"VLOOKUP($K$3,#REF!,3,FALSE)","v":{"$error":"#REF!"}},null,{"$f":"VLOOKUP($K$3,#REF!,2,FALSE)","v":{"$error":"#REF!"}},null,null,null,{"$f":"VLOOKUP($K$3,#REF!,6,FALSE)","v":{"$error":"#REF!"}},{"$f":"VLOOKUP($K$3,#REF!,2,FALSE)","v":{"$error":"#REF!"}}]
[null,null,"طاقم المركب",null,null,null,"المدربين/المرشدين/المصورين"]
[null,null,"تليفون","رقم مزاوله المهنه","الوظيفه","اسماء الطاقم","تليفون","رقم مزاوله المهنه",null,"الوظيفه","الاسماء",null,null,{"$f":"COUNTIF(boat217[Activity\nالنشاط],N4)","v":0},{"$f":"COUNTIF(boat217[Activity\nالنشاط],O4)","v":0},{"$f":"COUNTIF(boat217[Activity\nالنشاط],P4)","v":0},{"$f":"COUNTIF(boat217[Activity\nالنشاط],Q4)","v":0},{"$f":"COUNTIF(boat217[Activity\nالنشاط],R4)","v":0},{"$f":"COUNTIF(boat217[Activity\nالنشاط],S4)","v":0},{"$f":"COUNTIF(boat217[Activity\nالنشاط],T4)","v":0},{"$f":"COUNTIF(boat217[Activity\nالنشاط],U4)","v":0},{"$f":"COUNTIF(boat217[Activity\nالنشاط],\"*DIVE*\")","v":0},{"$f":"COUNTIF(boat217[Activity\nالنشاط],\"*3 DIVES*\")","v":0}]
[null,null,{"$f":"VLOOKUP($K$3,#REF!,10,FALSE)","v":{"$error":"#REF!"}},{"$f":"VLOOKUP($K$3,#REF!,9,FALSE)","v":{"$error":"#REF!"}},{"$f":"VLOOKUP($K$3,#REF!,8,FALSE)","v":{"$error":"#REF!"}},{"$f":"VLOOKUP($K$3,#REF!,7,FALSE)","v":{"$error":"#REF!"}},{"$f":"VLOOKUP($K6,#REF!,4,FALSE)","v":{"$error":"#REF!"}},{"$f":"VLOOKUP($K6,#REF!,3,FALSE)","v":{"$error":"#REF!"}},null,{"$f":"VLOOKUP($K6,#REF!,2,FALSE)","v":{"$error":"#REF!"}}]
["مركز غوص ديزرت روز \n رخصه 341 \n تليفون:01220004757",null,{"$f":"VLOOKUP($K$3,#REF!,14,FALSE)","v":{"$error":"#REF!"}},{"$f":"VLOOKUP($K$3,#REF!,13,FALSE)","v":{"$error":"#REF!"}},{"$f":"VLOOKUP($K$3,#REF!,12,FALSE)","v":{"$error":"#REF!"}},{"$f":"VLOOKUP($K$3,#REF!,11,FALSE)","v":{"$error":"#REF!"}},{"$f":"VLOOKUP($K7,#REF!,4,FALSE)","v":{"$error":"#REF!"}},{"$f":"VLOOKUP($K7,#REF!,3,FALSE)","v":{"$error":"#REF!"}},null,{"$f":"VLOOKUP($K7,#REF!,2,FALSE)","v":{"$error":"#REF!"}}]
[null,null,{"$f":"VLOOKUP($K$3,#REF!,18,FALSE)","v":{"$error":"#REF!"}},{"$f":"VLOOKUP($K$3,#REF!,17,FALSE)","v":{"$error":"#REF!"}},{"$f":"VLOOKUP($K$3,#REF!,16,FALSE)","v":{"$error":"#REF!"}},{"$f":"VLOOKUP($K$3,#REF!,15,FALSE)","v":{"$error":"#REF!"}},{"$f":"VLOOKUP($K8,#REF!,4,FALSE)","v":{"$error":"#REF!"}},{"$f":"VLOOKUP($K8,#REF!,3,FALSE)","v":{"$error":"#REF!"}},null,{"$f":"VLOOKUP($K8,#REF!,2,FALSE)","v":{"$error":"#REF!"}}]
[null,null,{"$f":"VLOOKUP($K$3,#REF!,22,FALSE)","v":{"$error":"#REF!"}},{"$f":"VLOOKUP($K$3,#REF!,21,FALSE)","v":{"$error":"#REF!"}},{"$f":"VLOOKUP($K$3,#REF!,20,FALSE)","v":{"$error":"#REF!"}},{"$f":"VLOOKUP($K$3,#REF!,19,FALSE)","v":{"$error":"#REF!"}},{"$f":"VLOOKUP($K9,#REF!,4,FALSE)","v":{"$error":"#REF!"}},{"$f":"VLOOKUP($K9,#REF!,3,FALSE)","v":{"$error":"#REF!"}},null,{"$f":"VLOOKUP($K9,#REF!,2,FALSE)","v":{"$error":"#REF!"}}]
[null,null,null,null,null,null,{"$f":"VLOOKUP($K10,#REF!,4,FALSE)","v":{"$error":"#REF!"}},{"$f":"VLOOKUP($K10,#REF!,3,FALSE)","v":{"$error":"#REF!"}},null,{"$f":"VLOOKUP($K10,#REF!,2,FALSE)","v":{"$error":"#REF!"}}]
[null,null,null,null,null,null,{"$f":"VLOOKUP($K11,#REF!,4,FALSE)","v":{"$error":"#REF!"}},{"$f":"VLOOKUP($K11,#REF!,3,FALSE)","v":{"$error":"#REF!"}},null,{"$f":"VLOOKUP($K11,#REF!,2,FALSE)","v":{"$error":"#REF!"}}]
[null,null,"Sharing Company",null,{"$f":"VLOOKUP($D$12,#REF!,2,FALSE)","v":{"$error":"#REF!"}},null,{"$f":"VLOOKUP($K12,#REF!,4,FALSE)","v":{"$error":"#REF!"}},{"$f":"VLOOKUP($K12,#REF!,3,FALSE)","v":{"$error":"#REF!"}},null,{"$f":"VLOOKUP($K12,#REF!,2,FALSE)","v":{"$error":"#REF!"}}]
[]
["NO","Name\nالاسم","Last Name\nالعائلي","Nationality\nالجنسيه","Passport\nجواز السفر","Hotel\nالفندق","Room No.\nالحجره","Adult\nكبير","CHD\nطفل","Activity\nالنشاط","LEVEL\nرخصه ","Eval\nمستوي","Box\nصندوق","Fins\nزعانف","Com\nملاحظات","Check in","Bill","Time","Transf","Rest","Guide","Reg#","BCD#","Suit#","Fins#","Mask#","BOOT","Partner"]
[1]
[2]
[3]
[4]
[5]
[6]
[7]
[8]
[9]
[10]
[11]
[12]
[13]
[14]
[15]
[16]
[17]
[18]
[19]
[20]
[21]
[22]
[23]
[24]
[25]
[26]
[27]
[28]
[29]
[30]
[31]
[32]
[33]
[34]
[null,null,null,null,null,null,null,{"$f":"SUM(H15:H48)","v":0},{"$f":"SUM(I15:I48)","v":0},"Total\nاجمالي"]
[]
[null,"PLEASE DON’T FORGET PASSPORT "]
[null,"PICK UP ",null,null,null,null,null,null,null,null,"Nitrox 32%",null,null,"NOTE"]
[null,"Guide","Assembly time","Place of assembly","Carrier","Tel.","DRIVER",null,null,null,"12 L"]
[null,null,null,null,{"$f":"VLOOKUP($G54,#REF!,2,FALSE)","v":{"$error":"#REF!"}},{"$f":"VLOOKUP($G54,#REF!,3,FALSE)","v":{"$error":"#REF!"}},null,null,null,null,"15 L"]
[null,null,null,null,{"$f":"VLOOKUP($G55,#REF!,2,FALSE)","v":{"$error":"#REF!"}},{"$f":"VLOOKUP($G55,#REF!,3,FALSE)","v":{"$error":"#REF!"}},null,null,null,null,"Air"]
[null,null,null,null,{"$f":"VLOOKUP($G56,#REF!,2,FALSE)","v":{"$error":"#REF!"}},{"$f":"VLOOKUP($G56,#REF!,3,FALSE)","v":{"$error":"#REF!"}},null,null,null,null,"8 L"]
[null,null,null,null,{"$f":"VLOOKUP($G57,#REF!,2,FALSE)","v":{"$error":"#REF!"}},{"$f":"VLOOKUP($G57,#REF!,3,FALSE)","v":{"$error":"#REF!"}},null,null,null,null,"15 L"]
[]
[null,null,null,null,null,null,null,null,null,null,null,null,"boat1"]
[null,null,null,null,null,null,null,null,null,null,null,null,{"$f":"Boat1!M15","v":3}]
[null,null,null,null,null,null,null,null,null,null,null,null,{"$f":"Boat1!M16","v":0}]
[null,null,null,null,null,null,null,null,null,null,null,null,{"$f":"Boat1!M17","v":0}]
[null,null,null,null,null,null,null,null,null,null,null,null,{"$f":"Boat1!M18","v":2}]
[null,null,null,null,null,null,null,null,null,null,null,null,{"$f":"Boat1!M19","v":0}]
[null,null,null,null,null,null,null,null,null,null,null,null,{"$f":"Boat1!M20","v":0}]
[null,null,null,null,null,null,null,null,null,null,null,null,{"$f":"Boat1!M21","v":0}]
[null,null,null,null,null,null,null,null,null,null,null,null,{"$f":"Boat1!M22","v":0}]
[null,null,null,null,null,null,null,null,null,null,null,null,{"$f":"Boat1!M23","v":0}]
[null,null,null,null,null,null,null,null,null,null,null,null,{"$f":"Boat1!M24","v":0}]
[null,null,null,null,null,null,null,null,null,null,null,null,{"$f":"Boat1!M25","v":0}]
[null,null,null,null,null,null,null,null,null,null,null,null,{"$f":"Boat1!M26","v":0}]
[null,null,null,null,null,null,null,null,null,null,null,null,{"$f":"Boat1!M27","v":0}]
[null,null,null,null,null,null,null,null,null,null,null,null,{"$f":"Boat1!M28","v":0}]
[null,null,null,null,null,null,null,null,null,null,null,null,{"$f":"Boat1!M29","v":0}]
[null,null,null,null,null,null,null,null,null,null,null,null,{"$f":"Boat1!M30","v":0}]
[null,null,null,null,null,null,null,null,null,null,null,null,{"$f":"Boat1!M31","v":0}]
[null,null,null,null,null,null,null,null,null,null,null,null,{"$f":"Boat1!M32","v":0}]
[null,null,null,null,null,null,null,null,null,null,null,null,{"$f":"Boat1!M33","v":0}]
[null,null,null,null,null,null,null,null,null,null,null,null,{"$f":"Boat1!M34","v":0}]
[null,null,null,null,null,null,null,null,null,null,null,null,{"$f":"Boat1!M35","v":0}]
[null,null,null,null,null,null,null,null,null,null,null,null,{"$f":"Boat1!M36","v":0}]
[null,null,null,null,null,null,null,null,null,null,null,null,{"$f":"Boat1!M37","v":0}]
[null,null,null,null,null,null,null,null,null,null,null,null,{"$f":"Boat1!M38","v":0}]
[null,null,null,null,null,null,null,null,null,null,null,null,{"$f":"Boat1!M39","v":0}]
[null,null,null,null,null,null,null,null,null,null,null,null,{"$f":"Boat1!M40","v":0}]
[null,null,null,null,null,null,null,null,null,null,null,null,{"$f":"Boat1!M41","v":0}]
[null,null,null,null,null,null,null,null,null,null,null,null,{"$f":"Boat1!M42","v":0}]
[null,null,null,null,null,null,null,null,null,null,null,null,{"$f":"Boat1!M43","v":0}]
[null,null,null,null,null,null,null,null,null,null,null,null,{"$f":"Boat1!M44","v":0}]
[null,null,null,null,null,null,null,null,null,null,null,null,{"$f":"Boat1!M45","v":0}]
[null,null,null,null,null,null,null,null,null,null,null,null,{"$f":"Boat1!M46","v":0}]
[null,null,null,null,null,null,null,null,null,null,null,null,{"$f":"Boat1!M47","v":0}]
[]
[]
[]
[]
[]
[null,null,null,null,null,null,null,null,null,null,null,null,{"$f":"Boat2!M18","v":0}]
[null,null,null,null,null,null,null,null,null,null,null,null,{"$f":"Boat2!M19","v":0}]
[null,null,null,null,null,null,null,null,null,null,null,null,{"$f":"Boat2!M20","v":0}]
[null,null,null,null,null,null,null,null,null,null,null,null,{"$f":"Boat2!M21","v":0}]
[null,null,null,null,null,null,null,null,null,null,null,null,{"$f":"Boat2!M22","v":0}]
[null,null,null,null,null,null,null,null,null,null,null,null,{"$f":"Boat2!M23","v":0}]
[null,null,null,null,null,null,null,null,null,null,null,null,{"$f":"Boat2!M24","v":0}]
[null,null,null,null,null,null,null,null,null,null,null,null,{"$f":"Boat2!M25","v":0}]
[null,null,null,null,null,null,null,null,null,null,null,null,{"$f":"Boat2!M26","v":0}]
[null,null,null,null,null,null,null,null,null,null,null,null,{"$f":"Boat2!M27","v":0}]
[null,null,null,null,null,null,null,null,null,null,null,null,{"$f":"Boat2!M28","v":0}]
[null,null,null,null,null,null,null,null,null,null,null,null,{"$f":"Boat2!M29","v":0}]
[null,null,null,null,null,null,null,null,null,null,null,null,{"$f":"Boat2!M30","v":0}]
[null,null,null,null,null,null,null,null,null,null,null,null,{"$f":"Boat2!M31","v":0}]
[null,null,null,null,null,null,null,null,null,null,null,null,{"$f":"Boat2!M32","v":0}]
[null,null,null,null,null,null,null,null,null,null,null,null,{"$f":"Boat2!M33","v":0}]
[null,null,null,null,null,null,null,null,null,null,null,null,{"$f":"Boat2!M34","v":0}]
[null,null,null,null,null,null,null,null,null,null,null,null,{"$f":"Boat2!M35","v":0}]
[null,null,null,null,null,null,null,null,null,null,null,null,{"$f":"Boat2!M36","v":0}]
[null,null,null,null,null,null,null,null,null,null,null,null,{"$f":"Boat2!M37","v":0}]
[null,null,null,null,null,null,null,null,null,null,null,null,{"$f":"Boat2!M38","v":0}]
[null,null,null,null,null,null,null,null,null,null,null,null,{"$f":"Boat2!M39","v":0}]
[null,null,null,null,null,null,null,null,null,null,null,null,{"$f":"Boat2!M40","v":0}]
[null,null,null,null,null,null,null,null,null,null,null,null,{"$f":"Boat2!M41","v":0}]
[null,null,null,null,null,null,null,null,null,null,null,null,{"$f":"Boat2!M42","v":0}]
[null,null,null,null,null,null,null,null,null,null,null,null,{"$f":"Boat2!M43","v":0}]
[null,null,null,null,null,null,null,null,null,null,null,null,{"$f":"Boat2!M44","v":0}]
[null,null,null,null,null,null,null,null,null,null,null,null,{"$f":"Boat2!M45","v":0}]
[null,null,null,null,null,null,null,null,null,null,null,null,{"$f":"Boat2!M46","v":0}]
[null,null,null,null,null,null,null,null,null,null,null,null,{"$f":"Boat2!M47","v":0}]
[null,null,null,null,null,null,null,null,null,null,null,null,{"$f":"Boat2!M48","v":0}]
[null,null,null,null,null,null,null,null,null,null,null,null,"boat3"]
[null,null,null,null,null,null,null,null,null,null,null,null,{"$f":"Boat3!M15","v":2}]
[null,null,null,null,null,null,null,null,null,null,null,null,{"$f":"Boat3!M16","v":0}]
[null,null,null,null,null,null,null,null,null,null,null,null,{"$f":"Boat3!M17","v":0}]
[null,null,null,null,null,null,null,null,null,null,null,null,{"$f":"Boat3!M18","v":0}]
[null,null,null,null,null,null,null,null,null,null,null,null,{"$f":"Boat3!M19","v":0}]
[null,null,null,null,null,null,null,null,null,null,null,null,{"$f":"Boat3!M20","v":0}]
[null,null,null,null,null,null,null,null,null,null,null,null,{"$f":"Boat3!M21","v":0}]
[null,null,null,null,null,null,null,null,null,null,null,null,{"$f":"Boat3!M22","v":0}]
[null,null,null,null,null,null,null,null,null,null,null,null,{"$f":"Boat3!M23","v":0}]
[null,null,null,null,null,null,null,null,null,null,null,null,{"$f":"Boat3!M24","v":0}]
[null,null,null,null,null,null,null,null,null,null,null,null,{"$f":"Boat3!M25","v":0}]
[null,null,null,null,null,null,null,null,null,null,null,null,{"$f":"Boat3!M26","v":0}]
[null,null,null,null,null,null,null,null,null,null,null,null,{"$f":"Boat3!M27","v":0}]
[null,null,null,null,null,null,null,null,null,null,null,null,{"$f":"Boat3!M28","v":0}]
[null,null,null,null,null,null,null,null,null,null,null,null,{"$f":"Boat3!M29","v":0}]
[null,null,null,null,null,null,null,null,null,null,null,null,{"$f":"Boat3!M30","v":0}]
[null,null,null,null,null,null,null,null,null,null,null,null,{"$f":"Boat3!M31","v":0}]
[null,null,null,null,null,null,null,null,null,null,null,null,{"$f":"Boat3!M32","v":0}]
[null,null,null,null,null,null,null,null,null,null,null,null,{"$f":"Boat3!M33","v":0}]
[null,null,null,null,null,null,null,null,null,null,null,null,{"$f":"Boat3!M34","v":0}]
[null,null,null,null,null,null,null,null,null,null,null,null,{"$f":"Boat3!M35","v":0}]
[null,null,null,null,null,null,null,null,null,null,null,null,{"$f":"Boat3!M36","v":0}]
[null,null,null,null,null,null,null,null,null,null,null,null,{"$f":"Boat3!M37","v":0}]
[null,null,null,null,null,null,null,null,null,null,null,null,{"$f":"Boat3!M38","v":0}]
[null,null,null,null,null,null,null,null,null,null,null,null,{"$f":"Boat3!M39","v":0}]
[null,null,null,null,null,null,null,null,null,null,null,null,{"$f":"Boat3!M40","v":0}]
[null,null,null,null,null,null,null,null,null,null,null,null,{"$f":"Boat3!M41","v":0}]
[null,null,null,null,null,null,null,null,null,null,null,null,{"$f":"Boat3!M42","v":0}]
[null,null,null,null,null,null,null,null,null,null,null,null,{"$f":"Boat3!M43","v":0}]
[null,null,null,null,null,null,null,null,null,null,null,null,{"$f":"Boat3!M44","v":0}]
[null,null,null,null,null,null,null,null,null,null,null,null,{"$f":"Boat3!M45","v":0}]
[null,null,null,null,null,null,null,null,null,null,null,null,{"$f":"Boat3!M46","v":0}]
[null,null,null,null,null,null,null,null,null,null,null,null,{"$f":"Boat3!M47","v":0}]
[null,null,null,null,null,null,null,null,null,null,null,null,{"$f":"Boat3!M48","v":0}]
[null,null,null,null,null,null,null,null,null,null,null,null,"dahab"]
[null,null,null,null,null,null,null,null,null,null,null,null,{"$f":"Dahab!M15","v":2}]
[null,null,null,null,null,null,null,null,null,null,null,null,{"$f":"Dahab!M16","v":0}]
[null,null,null,null,null,null,null,null,null,null,null,null,{"$f":"Dahab!M17","v":0}]
[null,null,null,null,null,null,null,null,null,null,null,null,{"$f":"Dahab!M18","v":0}]
[null,null,null,null,null,null,null,null,null,null,null,null,{"$f":"Dahab!M19","v":0}]
[null,null,null,null,null,null,null,null,null,null,null,null,{"$f":"Dahab!M20","v":0}]
[null,null,null,null,null,null,null,null,null,null,null,null,{"$f":"Dahab!M21","v":0}]
[null,null,null,null,null,null,null,null,null,null,null,null,{"$f":"Dahab!M22","v":0}]
[null,null,null,null,null,null,null,null,null,null,null,null,{"$f":"Dahab!M23","v":0}]
[null,null,null,null,null,null,null,null,null,null,null,null,{"$f":"Dahab!M24","v":0}]
[null,null,null,null,null,null,null,null,null,null,null,null,{"$f":"Dahab!M25","v":0}]
[null,null,null,null,null,null,null,null,null,null,null,null,{"$f":"Dahab!M26","v":0}]
[null,null,null,null,null,null,null,null,null,null,null,null,{"$f":"Dahab!M27","v":0}]
[null,null,null,null,null,null,null,null,null,null,null,null,{"$f":"Dahab!M28","v":0}]
[null,null,null,null,null,null,null,null,null,null,null,null,{"$f":"Dahab!M29","v":0}]
[null,null,null,null,null,null,null,null,null,null,null,null,{"$f":"Dahab!M30","v":0}]
[null,null,null,null,null,null,null,null,null,null,null,null,{"$f":"Dahab!M31","v":0}]
[null,null,null,null,null,null,null,null,null,null,null,null,{"$f":"Dahab!M32","v":0}]
[null,null,null,null,null,null,null,null,null,null,null,null,{"$f":"Dahab!M33","v":0}]
[null,null,null,null,null,null,null,null,null,null,null,null,{"$f":"Dahab!M34","v":0}]
[null,null,null,null,null,null,null,null,null,null,null,null,{"$f":"Dahab!M35","v":0}]
[null,null,null,null,null,null,null,null,null,null,null,null,{"$f":"Dahab!M36","v":0}]
[null,null,null,null,null,null,null,null,null,null,null,null,{"$f":"Dahab!M37","v":0}]
[null,null,null,null,null,null,null,null,null,null,null,null,{"$f":"Dahab!M38","v":0}]
[null,null,null,null,null,null,null,null,null,null,null,null,{"$f":"Dahab!M39","v":0}]
[null,null,null,null,null,null,null,null,null,null,null,null,{"$f":"Dahab!M40","v":0}]
[null,null,null,null,null,null,null,null,null,null,null,null,{"$f":"Dahab!M41","v":0}]
[null,null,null,null,null,null,null,null,null,null,null,null,{"$f":"Dahab!M42","v":0}]
[null,null,null,null,null,null,null,null,null,null,null,null,{"$f":"Dahab!M43","v":0}]
[null,null,null,null,null,null,null,null,null,null,null,null,{"$f":"Dahab!M44","v":0}]
[null,null,null,null,null,null,null,null,null,null,null,null,{"$f":"Dahab!M45","v":0}]
[null,null,null,null,null,null,null,null,null,null,null,null,{"$f":"Dahab!M46","v":0}]
[null,null,null,null,null,null,null,null,null,null,null,null,{"$f":"Dahab!M47","v":0}]
[null,null,null,null,null,null,null,null,null,null,null,null,{"$f":"Dahab!M48","v":0}]
[null,null,null,null,null,null,null,null,null,null,null,null,"thistlegorm"]
[null,null,null,null,null,null,null,null,null,null,null,null,{"$f":"Thistelgorm!M15","v":0}]
[null,null,null,null,null,null,null,null,null,null,null,null,{"$f":"Thistelgorm!M16","v":0}]
[null,null,null,null,null,null,null,null,null,null,null,null,{"$f":"Thistelgorm!M17","v":0}]
[null,null,null,null,null,null,null,null,null,null,null,null,{"$f":"Thistelgorm!M18","v":0}]
[null,null,null,null,null,null,null,null,null,null,null,null,{"$f":"Thistelgorm!M19","v":0}]
[null,null,null,null,null,null,null,null,null,null,null,null,{"$f":"Thistelgorm!M20","v":0}]
[null,null,null,null,null,null,null,null,null,null,null,null,{"$f":"Thistelgorm!M21","v":0}]
[null,null,null,null,null,null,null,null,null,null,null,null,{"$f":"Thistelgorm!M22","v":0}]
[null,null,null,null,null,null,null,null,null,null,null,null,{"$f":"Thistelgorm!M23","v":0}]
[null,null,null,null,null,null,null,null,null,null,null,null,{"$f":"Thistelgorm!M24","v":0}]
[null,null,null,null,null,null,null,null,null,null,null,null,{"$f":"Thistelgorm!M25","v":0}]
[null,null,null,null,null,null,null,null,null,null,null,null,{"$f":"Thistelgorm!M26","v":0}]
[null,null,null,null,null,null,null,null,null,null,null,null,{"$f":"Thistelgorm!M27","v":0}]
[null,null,null,null,null,null,null,null,null,null,null,null,{"$f":"Thistelgorm!M28","v":0}]
[null,null,null,null,null,null,null,null,null,null,null,null,{"$f":"Thistelgorm!M29","v":0}]
[null,null,null,null,null,null,null,null,null,null,null,null,{"$f":"Thistelgorm!M30","v":0}]
[null,null,null,null,null,null,null,null,null,null,null,null,{"$f":"Thistelgorm!M31","v":0}]
[null,null,null,null,null,null,null,null,null,null,null,null,{"$f":"Thistelgorm!M32","v":0}]
[null,null,null,null,null,null,null,null,null,null,null,null,{"$f":"Thistelgorm!M33","v":0}]
[null,null,null,null,null,null,null,null,null,null,null,null,{"$f":"Thistelgorm!M34","v":0}]
[null,null,null,null,null,null,null,null,null,null,null,null,{"$f":"Thistelgorm!M35","v":0}]
[null,null,null,null,null,null,null,null,null,null,null,null,{"$f":"Thistelgorm!M36","v":0}]
[null,null,null,null,null,null,null,null,null,null,null,null,{"$f":"Thistelgorm!M37","v":0}]
[null,null,null,null,null,null,null,null,null,null,null,null,{"$f":"Thistelgorm!M38","v":0}]
[null,null,null,null,null,null,null,null,null,null,null,null,{"$f":"Thistelgorm!M39","v":0}]
[null,null,null,null,null,null,null,null,null,null,null,null,{"$f":"Thistelgorm!M40","v":0}]
[null,null,null,null,null,null,null,null,null,null,null,null,{"$f":"Thistelgorm!M41","v":0}]
[null,null,null,null,null,null,null,null,null,null,null,null,{"$f":"Thistelgorm!M42","v":0}]
[null,null,null,null,null,null,null,null,null,null,null,null,{"$f":"Thistelgorm!M43","v":0}]
[null,null,null,null,null,null,null,null,null,null,null,null,{"$f":"Thistelgorm!M44","v":0}]
[null,null,null,null,null,null,null,null,null,null,null,null,{"$f":"Thistelgorm!M45","v":0}]
[null,null,null,null,null,null,null,null,null,null,null,null,{"$f":"Thistelgorm!M46","v":0}]
[null,null,null,null,null,null,null,null,null,null,null,null,{"$f":"Thistelgorm!M47","v":0}]
[null,null,null,null,null,null,null,null,null,null,null,null,{"$f":"Thistelgorm!M48","v":0}]
[null,null,null,null,null,null,null,null,null,null,null,null,"sharks bay"]
[null,null,null,null,null,null,null,null,null,null,null,null,{"$f":"'Sharks bay'!M15","v":0}]
[null,null,null,null,null,null,null,null,null,null,null,null,{"$f":"'Sharks bay'!M16","v":0}]
[null,null,null,null,null,null,null,null,null,null,null,null,{"$f":"'Sharks bay'!M17","v":0}]
[null,null,null,null,null,null,null,null,null,null,null,null,{"$f":"'Sharks bay'!M18","v":0}]
[null,null,null,null,null,null,null,null,null,null,null,null,{"$f":"'Sharks bay'!M19","v":0}]
[null,null,null,null,null,null,null,null,null,null,null,null,{"$f":"'Sharks bay'!M20","v":0}]
[null,null,null,null,null,null,null,null,null,null,null,null,{"$f":"'Sharks bay'!M21","v":0}]
[null,null,null,null,null,null,null,null,null,null,null,null,{"$f":"'Sharks bay'!M22","v":0}]
[null,null,null,null,null,null,null,null,null,null,null,null,{"$f":"'Sharks bay'!M23","v":0}]
[null,null,null,null,null,null,null,null,null,null,null,null,{"$f":"'Sharks bay'!M24","v":0}]
[null,null,null,null,null,null,null,null,null,null,null,null,{"$f":"'Sharks bay'!M25","v":0}]
[null,null,null,null,null,null,null,null,null,null,null,null,{"$f":"'Sharks bay'!M26","v":0}]
[null,null,null,null,null,null,null,null,null,null,null,null,{"$f":"'Sharks bay'!M27","v":0}]
[null,null,null,null,null,null,null,null,null,null,null,null,{"$f":"'Sharks bay'!M28","v":0}]
[null,null,null,null,null,null,null,null,null,null,null,null,{"$f":"'Sharks bay'!M29","v":0}]
[null,null,null,null,null,null,null,null,null,null,null,null,{"$f":"'Sharks bay'!M30","v":0}]
[null,null,null,null,null,null,null,null,null,null,null,null,{"$f":"'Sharks bay'!M31","v":0}]
[null,null,null,null,null,null,null,null,null,null,null,null,{"$f":"'Sharks bay'!M32","v":0}]
[null,null,null,null,null,null,null,null,null,null,null,null,{"$f":"'Sharks bay'!M33","v":0}]
[null,null,null,null,null,null,null,null,null,null,null,null,{"$f":"'Sharks bay'!M34","v":0}]
[null,null,null,null,null,null,null,null,null,null,null,null,{"$f":"'Sharks bay'!M35","v":0}]
[null,null,null,null,null,null,null,null,null,null,null,null,{"$f":"'Sharks bay'!M36","v":0}]
[null,null,null,null,null,null,null,null,null,null,null,null,{"$f":"'Sharks bay'!M37","v":0}]
[null,null,null,null,null,null,null,null,null,null,null,null,{"$f":"'Sharks bay'!M38","v":0}]
[null,null,null,null,null,null,null,null,null,null,null,null,{"$f":"'Sharks bay'!M39","v":0}]
[null,null,null,null,null,null,null,null,null,null,null,null,{"$f":"'Sharks bay'!M40","v":0}]
[null,null,null,null,null,null,null,null,null,null,null,null,{"$f":"'Sharks bay'!M41","v":0}]
[null,null,null,null,null,null,null,null,null,null,null,null,{"$f":"'Sharks bay'!M42","v":0}]
[null,null,null,null,null,null,null,null,null,null,null,null,{"$f":"'Sharks bay'!M43","v":0}]
[null,null,null,null,null,null,null,null,null,null,null,null,{"$f":"'Sharks bay'!M44","v":0}]
[null,null,null,null,null,null,null,null,null,null,null,null,{"$f":"'Sharks bay'!M45","v":0}]
[null,null,null,null,null,null,null,null,null,null,null,null,{"$f":"'Sharks bay'!M46","v":0}]
[null,null,null,null,null,null,null,null,null,null,null,null,{"$f":"'Sharks bay'!M47","v":0}]
[null,null,null,null,null,null,null,null,null,null,null,null,{"$f":"'Sharks bay'!M48","v":0}]
[null,null,null,null,null,null,null,null,null,null,null,null,"fanar"]
[null,null,null,null,null,null,null,null,null,null,null,null,{"$f":"Fanar!M15","v":0}]
[null,null,null,null,null,null,null,null,null,null,null,null,{"$f":"Fanar!M16","v":0}]
[null,null,null,null,null,null,null,null,null,null,null,null,{"$f":"Fanar!M17","v":0}]
[null,null,null,null,null,null,null,null,null,null,null,null,{"$f":"Fanar!M18","v":0}]
[null,null,null,null,null,null,null,null,null,null,null,null,{"$f":"Fanar!M19","v":0}]
[null,null,null,null,null,null,null,null,null,null,null,null,{"$f":"Fanar!M20","v":0}]
[null,null,null,null,null,null,null,null,null,null,null,null,{"$f":"Fanar!M21","v":0}]
[null,null,null,null,null,null,null,null,null,null,null,null,{"$f":"Fanar!M22","v":0}]
[null,null,null,null,null,null,null,null,null,null,null,null,{"$f":"Fanar!M23","v":0}]
[null,null,null,null,null,null,null,null,null,null,null,null,{"$f":"Fanar!M24","v":0}]
[null,null,null,null,null,null,null,null,null,null,null,null,{"$f":"Fanar!M25","v":0}]
[null,null,null,null,null,null,null,null,null,null,null,null,{"$f":"Fanar!M26","v":0}]
[null,null,null,null,null,null,null,null,null,null,null,null,{"$f":"Fanar!M27","v":0}]
[null,null,null,null,null,null,null,null,null,null,null,null,{"$f":"Fanar!M28","v":0}]
[null,null,null,null,null,null,null,null,null,null,null,null,{"$f":"Fanar!M29","v":0}]
[null,null,null,null,null,null,null,null,null,null,null,null,{"$f":"Fanar!M30","v":0}]
[null,null,null,null,null,null,null,null,null,null,null,null,{"$f":"Fanar!M31","v":0}]
[null,null,null,null,null,null,null,null,null,null,null,null,{"$f":"Fanar!M32","v":0}]
[null,null,null,null,null,null,null,null,null,null,null,null,{"$f":"Fanar!M33","v":0}]
[null,null,null,null,null,null,null,null,null,null,null,null,{"$f":"Fanar!M34","v":0}]
[null,null,null,null,null,null,null,null,null,null,null,null,{"$f":"Fanar!M35","v":0}]
[null,null,null,null,null,null,null,null,null,null,null,null,{"$f":"Fanar!M36","v":0}]
[null,null,null,null,null,null,null,null,null,null,null,null,{"$f":"Fanar!M37","v":0}]
[null,null,null,null,null,null,null,null,null,null,null,null,{"$f":"Fanar!M38","v":0}]
[null,null,null,null,null,null,null,null,null,null,null,null,{"$f":"Fanar!M39","v":0}]
[null,null,null,null,null,null,null,null,null,null,null,null,{"$f":"Fanar!M40","v":0}]
[null,null,null,null,null,null,null,null,null,null,null,null,{"$f":"Fanar!M41","v":0}]
[null,null,null,null,null,null,null,null,null,null,null,null,{"$f":"Fanar!M42","v":0}]
[null,null,null,null,null,null,null,null,null,null,null,null,{"$f":"Fanar!M43","v":0}]
[null,null,null,null,null,null,null,null,null,null,null,null,{"$f":"Fanar!M44","v":0}]
[null,null,null,null,null,null,null,null,null,null,null,null,{"$f":"Fanar!M45","v":0}]
[null,null,null,null,null,null,null,null,null,null,null,null,{"$f":"Fanar!M46","v":0}]
[null,null,null,null,null,null,null,null,null,null,null,null,{"$f":"Fanar!M47","v":0}]
[null,null,null,null,null,null,null,null,null,null,null,null,{"$f":"Fanar!M48","v":0}]

{"sheet":"H.W.F","index":7,"n_rows":57,"n_cols":28,"rows_kept":57,"cut":false,"hidden":true,"merged":[[51,13,51,17],[52,6,52,7],[52,13,56,17],[53,6,53,7],[54,6,54,7],[54,10,54,11],[55,6,55,7],[56,6,56,7],[9,7,9,8],[9,10,9,11],[10,7,10,8],[10,10,10,11],[51,1,51,7],[51,10,51,11],[11,7,11,8],[11,10,11,11],[0,13,1,14],[2,7,2,8],[2,10,2,11],[2,13,2,14],[50,1,50,7],[4,7,4,8],[4,10,4,11],[5,7,5,8],[5,10,5,11],[6,0,9,1],[6,7,6,8],[6,10,6,11],[7,7,7,8],[7,10,7,11],[8,7,8,8],[8,10,8,11],[3,2,3,5],[3,6,3,11],[0,2,1,2],[0,3,1,3],[0,4,1,4],[0,5,0,6],[0,7,1,8],[0,9,1,9],[0,10,1,11]]}
[null,null,"التاريخ","اتجاه الرحله","ميناء القيام","الحموله",null,"تاريخ انتهاء الترخيص",null,"رقم التسجيل","اسم اللنش",null,null,"تليفون اللنش"]
[null,null,null,null,null,"عدد الركاب","عدد الطقم"]
[null,null,{"$f":"Boat1!C3","v":"2022-08-01"},"H.W.F Beach",null,{"$f":"VLOOKUP($K$3,#REF!,4,FALSE)","v":{"$error":"#REF!"}},{"$f":"VLOOKUP($K$3,#REF!,5,FALSE)","v":{"$error":"#REF!"}},{"$f":"VLOOKUP($K$3,#REF!,3,FALSE)","v":{"$error":"#REF!"}},null,{"$f":"VLOOKUP($K$3,#REF!,2,FALSE)","v":{"$error":"#REF!"}},null,null,null,{"$f":"VLOOKUP($K$3,#REF!,6,FALSE)","v":{"$error":"#REF!"}},{"$f":"VLOOKUP($K$3,#REF!,2,FALSE)","v":{"$error":"#REF!"}}]
[null,null,"طاقم المركب",null,null,null,"المدربين/المرشدين/المصورين",null,null,null,null,null,null,"GUIDING"]
[null,null,"تليفون","رقم مزاوله المهنه","الوظيفه","اسماء الطاقم","تليفون","رقم مزاوله المهنه",null,"الوظيفه","الاسماء"]
[null,null,{"$f":"VLOOKUP($K$3,#REF!,10,FALSE)","v":{"$error":"#REF!"}},{"$f":"VLOOKUP($K$3,#REF!,9,FALSE)","v":{"$error":"#REF!"}},{"$f":"VLOOKUP($K$3,#REF!,8,FALSE)","v":{"$error":"#REF!"}},{"$f":"VLOOKUP($K$3,#REF!,7,FALSE)","v":{"$error":"#REF!"}},{"$f":"VLOOKUP($K6,#REF!,4,FALSE)","v":{"$error":"#REF!"}},{"$f":"VLOOKUP($K6,#REF!,3,FALSE)","v":{"$error":"#REF!"}},null,{"$f":"VLOOKUP($K6,#REF!,2,FALSE)","v":{"$error":"#REF!"}}]
["مركز غوص ديزرت روز \n رخصه 341 \n تليفون:01220004757",null,{"$f":"VLOOKUP($K$3,#REF!,14,FALSE)","v":{"$error":"#REF!"}},{"$f":"VLOOKUP($K$3,#REF!,13,FALSE)","v":{"$error":"#REF!"}},{"$f":"VLOOKUP($K$3,#REF!,12,FALSE)","v":{"$error":"#REF!"}},{"$f":"VLOOKUP($K$3,#REF!,11,FALSE)","v":{"$error":"#REF!"}},{"$f":"VLOOKUP($K7,#REF!,4,FALSE)","v":{"$error":"#REF!"}},{"$f":"VLOOKUP($K7,#REF!,3,FALSE)","v":{"$error":"#REF!"}},null,{"$f":"VLOOKUP($K7,#REF!,2,FALSE)","v":{"$error":"#REF!"}}]
[null,null,{"$f":"VLOOKUP($K$3,#REF!,18,FALSE)","v":{"$error":"#REF!"}},{"$f":"VLOOKUP($K$3,#REF!,17,FALSE)","v":{"$error":"#REF!"}},{"$f":"VLOOKUP($K$3,#REF!,16,FALSE)","v":{"$error":"#REF!"}},{"$f":"VLOOKUP($K$3,#REF!,15,FALSE)","v":{"$error":"#REF!"}},{"$f":"VLOOKUP($K8,#REF!,4,FALSE)","v":{"$error":"#REF!"}},{"$f":"VLOOKUP($K8,#REF!,3,FALSE)","v":{"$error":"#REF!"}},null,{"$f":"VLOOKUP($K8,#REF!,2,FALSE)","v":{"$error":"#REF!"}}]
[null,null,{"$f":"VLOOKUP($K$3,#REF!,22,FALSE)","v":{"$error":"#REF!"}},{"$f":"VLOOKUP($K$3,#REF!,21,FALSE)","v":{"$error":"#REF!"}},{"$f":"VLOOKUP($K$3,#REF!,20,FALSE)","v":{"$error":"#REF!"}},{"$f":"VLOOKUP($K$3,#REF!,19,FALSE)","v":{"$error":"#REF!"}},{"$f":"VLOOKUP($K9,#REF!,4,FALSE)","v":{"$error":"#REF!"}},{"$f":"VLOOKUP($K9,#REF!,3,FALSE)","v":{"$error":"#REF!"}},null,{"$f":"VLOOKUP($K9,#REF!,2,FALSE)","v":{"$error":"#REF!"}}]
[null,null,null,null,null,null,{"$f":"VLOOKUP($K10,#REF!,4,FALSE)","v":{"$error":"#REF!"}},{"$f":"VLOOKUP($K10,#REF!,3,FALSE)","v":{"$error":"#REF!"}},null,{"$f":"VLOOKUP($K10,#REF!,2,FALSE)","v":{"$error":"#REF!"}}]
[null,null,null,null,null,null,{"$f":"VLOOKUP($K11,#REF!,4,FALSE)","v":{"$error":"#REF!"}},{"$f":"VLOOKUP($K11,#REF!,3,FALSE)","v":{"$error":"#REF!"}},null,{"$f":"VLOOKUP($K11,#REF!,2,FALSE)","v":{"$error":"#REF!"}}]
[null,null,"Sharing Company",null,{"$f":"VLOOKUP($D$12,#REF!,2,FALSE)","v":{"$error":"#REF!"}},null,{"$f":"VLOOKUP($K12,#REF!,4,FALSE)","v":{"$error":"#REF!"}},{"$f":"VLOOKUP($K12,#REF!,3,FALSE)","v":{"$error":"#REF!"}},null,{"$f":"VLOOKUP($K12,#REF!,2,FALSE)","v":{"$error":"#REF!"}}]
[]
["NO","Name\nالاسم","Last Name\nالعائلي","Nationality\nالجنسيه","Passport\nجواز السفر","Hotel\nالفندق","Room No.\nالحجره","Adult\nكبير","CHD\nطفل","Activity\nالنشاط","LEVEL\nرخصه ","Eval\nمستوي","Box\nصندوق","Fins\nزعانف","Com\nملاحظات","Check in","Bill","Time","Transf","Rest","Guide","Reg#","BCD#","Suit#","Fins#","Mask#","BOOT","Partner"]
[1]
[2]
[3]
[4]
[5]
[6]
[7]
[8]
[9]
[10]
[11]
[12]
[13]
[14]
[15]
[16]
[17]
[18]
[19]
[20]
[21]
[22]
[23]
[24]
[25]
[26]
[27]
[28]
[29]
[30]
[31]
[32]
[33]
[34]
[null,null,null,null,null,null,null,{"$f":"SUM(H15:H48)","v":0},{"$f":"SUM(I15:I48)","v":0},"Total\nاجمالي"]
[]
[null,"PLEASE DON’T FORGET PASSPORT "]
[null,"PICK UP ",null,null,null,null,null,null,null,null,"Nitrox 32%",null,null,"NOTE"]
[null,"Guide","Assembly time","Place of assembly","Carrier","Tel.","DRIVER",null,null,null,"12 L"]
[null,null,null,null,{"$f":"VLOOKUP($G54,#REF!,2,FALSE)","v":{"$error":"#REF!"}},{"$f":"VLOOKUP($G54,#REF!,3,FALSE)","v":{"$error":"#REF!"}},null,null,null,null,"15 L"]
[null,null,null,null,{"$f":"VLOOKUP($G55,#REF!,2,FALSE)","v":{"$error":"#REF!"}},{"$f":"VLOOKUP($G55,#REF!,3,FALSE)","v":{"$error":"#REF!"}},null,null,null,null,"Air"]
[null,null,null,null,{"$f":"VLOOKUP($G56,#REF!,2,FALSE)","v":{"$error":"#REF!"}},{"$f":"VLOOKUP($G56,#REF!,3,FALSE)","v":{"$error":"#REF!"}},null,null,null,null,"8 L"]
[null,null,null,null,{"$f":"VLOOKUP($G57,#REF!,2,FALSE)","v":{"$error":"#REF!"}},{"$f":"VLOOKUP($G57,#REF!,3,FALSE)","v":{"$error":"#REF!"}},null,null,null,null,"15 L"]

{"sheet":"Fanar","index":8,"n_rows":92,"n_cols":28,"rows_kept":92,"cut":false,"hidden":false,"merged":[[51,13,51,17],[52,6,52,7],[52,13,56,17],[53,6,53,7],[54,6,54,7],[54,10,54,11],[55,6,55,7],[56,6,56,7],[9,7,9,8],[9,10,9,11],[10,7,10,8],[10,10,10,11],[51,1,51,7],[51,10,51,11],[11,7,11,8],[11,10,11,11],[0,13,1,14],[2,7,2,8],[2,10,2,11],[2,13,2,14],[50,1,50,7],[4,7,4,8],[4,10,4,11],[5,7,5,8],[5,10,5,11],[6,0,9,1],[6,7,6,8],[6,10,6,11],[7,7,7,8],[7,10,7,11],[8,7,8,8],[8,10,8,11],[3,2,3,5],[3,6,3,11],[0,2,1,2],[0,3,1,3],[0,4,1,4],[0,5,0,6],[0,7,1,8],[0,9,1,9],[0,10,1,11]]}
[null,null,"التاريخ","اتجاه الرحله","ميناء القيام","الحموله",null,"تاريخ انتهاء الترخيص",null,"رقم التسجيل","اسم اللنش",null,null,"تليفون اللنش"]
[null,null,null,null,null,"عدد الركاب","عدد الطقم"]
[null,null,{"$f":"Boat1!C3","v":"2022-08-01"},"Fanar",null,{"$f":"VLOOKUP($K$3,#REF!,4,FALSE)","v":{"$error":"#REF!"}},{"$f":"VLOOKUP($K$3,#REF!,5,FALSE)","v":{"$error":"#REF!"}},{"$f":"VLOOKUP($K$3,#REF!,3,FALSE)","v":{"$error":"#REF!"}},null,{"$f":"VLOOKUP($K$3,#REF!,2,FALSE)","v":{"$error":"#REF!"}},null,null,null,{"$f":"VLOOKUP($K$3,#REF!,6,FALSE)","v":{"$error":"#REF!"}},{"$f":"VLOOKUP($K$3,#REF!,2,FALSE)","v":{"$error":"#REF!"}}]
[null,null,"طاقم المركب",null,null,null,"المدربين/المرشدين/المصورين"]
[null,null,"تليفون","رقم مزاوله المهنه","الوظيفه","اسماء الطاقم","تليفون","رقم مزاوله المهنه",null,"الوظيفه","الاسماء",null,null,{"$f":"COUNTIF(boat219[Activity\nالنشاط],N4)","v":0},null,null,null,null,null,null,null,{"$f":"COUNTIF(boat219[Activity\nالنشاط],\"*DIVE*\")","v":0}]
[null,null,{"$f":"VLOOKUP($K$3,#REF!,10,FALSE)","v":{"$error":"#REF!"}},{"$f":"VLOOKUP($K$3,#REF!,9,FALSE)","v":{"$error":"#REF!"}},{"$f":"VLOOKUP($K$3,#REF!,8,FALSE)","v":{"$error":"#REF!"}},{"$f":"VLOOKUP($K$3,#REF!,7,FALSE)","v":{"$error":"#REF!"}},{"$f":"VLOOKUP($K6,#REF!,4,FALSE)","v":{"$error":"#REF!"}},{"$f":"VLOOKUP($K6,#REF!,3,FALSE)","v":{"$error":"#REF!"}},null,{"$f":"VLOOKUP($K6,#REF!,2,FALSE)","v":{"$error":"#REF!"}}]
["مركز غوص ديزرت روز \n رخصه 341 \n تليفون:01220004757",null,{"$f":"VLOOKUP($K$3,#REF!,14,FALSE)","v":{"$error":"#REF!"}},{"$f":"VLOOKUP($K$3,#REF!,13,FALSE)","v":{"$error":"#REF!"}},{"$f":"VLOOKUP($K$3,#REF!,12,FALSE)","v":{"$error":"#REF!"}},{"$f":"VLOOKUP($K$3,#REF!,11,FALSE)","v":{"$error":"#REF!"}},{"$f":"VLOOKUP($K7,#REF!,4,FALSE)","v":{"$error":"#REF!"}},{"$f":"VLOOKUP($K7,#REF!,3,FALSE)","v":{"$error":"#REF!"}},null,{"$f":"VLOOKUP($K7,#REF!,2,FALSE)","v":{"$error":"#REF!"}}]
[null,null,{"$f":"VLOOKUP($K$3,#REF!,18,FALSE)","v":{"$error":"#REF!"}},{"$f":"VLOOKUP($K$3,#REF!,17,FALSE)","v":{"$error":"#REF!"}},{"$f":"VLOOKUP($K$3,#REF!,16,FALSE)","v":{"$error":"#REF!"}},{"$f":"VLOOKUP($K$3,#REF!,15,FALSE)","v":{"$error":"#REF!"}},{"$f":"VLOOKUP($K8,#REF!,4,FALSE)","v":{"$error":"#REF!"}},{"$f":"VLOOKUP($K8,#REF!,3,FALSE)","v":{"$error":"#REF!"}},null,{"$f":"VLOOKUP($K8,#REF!,2,FALSE)","v":{"$error":"#REF!"}}]
[null,null,{"$f":"VLOOKUP($K$3,#REF!,22,FALSE)","v":{"$error":"#REF!"}},{"$f":"VLOOKUP($K$3,#REF!,21,FALSE)","v":{"$error":"#REF!"}},{"$f":"VLOOKUP($K$3,#REF!,20,FALSE)","v":{"$error":"#REF!"}},{"$f":"VLOOKUP($K$3,#REF!,19,FALSE)","v":{"$error":"#REF!"}},{"$f":"VLOOKUP($K9,#REF!,4,FALSE)","v":{"$error":"#REF!"}},{"$f":"VLOOKUP($K9,#REF!,3,FALSE)","v":{"$error":"#REF!"}},null,{"$f":"VLOOKUP($K9,#REF!,2,FALSE)","v":{"$error":"#REF!"}}]
[null,null,null,null,null,null,{"$f":"VLOOKUP($K10,#REF!,4,FALSE)","v":{"$error":"#REF!"}},{"$f":"VLOOKUP($K10,#REF!,3,FALSE)","v":{"$error":"#REF!"}},null,{"$f":"VLOOKUP($K10,#REF!,2,FALSE)","v":{"$error":"#REF!"}}]
[null,null,null,null,null,null,{"$f":"VLOOKUP($K11,#REF!,4,FALSE)","v":{"$error":"#REF!"}},{"$f":"VLOOKUP($K11,#REF!,3,FALSE)","v":{"$error":"#REF!"}},null,{"$f":"VLOOKUP($K11,#REF!,2,FALSE)","v":{"$error":"#REF!"}}]
[null,null,"Sharing Company",null,{"$f":"VLOOKUP($D$12,#REF!,2,FALSE)","v":{"$error":"#REF!"}},null,{"$f":"VLOOKUP($K12,#REF!,4,FALSE)","v":{"$error":"#REF!"}},{"$f":"VLOOKUP($K12,#REF!,3,FALSE)","v":{"$error":"#REF!"}},null,{"$f":"VLOOKUP($K12,#REF!,2,FALSE)","v":{"$error":"#REF!"}}]
[]
["NO","Name\nالاسم","Last Name\nالعائلي","Nationality\nالجنسيه","Passport\nجواز السفر","Hotel\nالفندق","Room No.\nالحجره","Adult\nكبير","CHD\nطفل","Activity\nالنشاط","LEVEL\nرخصه ","Eval\nمستوي","Box\nصندوق","Fins\nزعانف","Com\nملاحظات","Check in","Bill","Time","Transf","Rest","Guide","Reg#","BCD#","Suit#","Fins#","Mask#","BOOT","Partner"]
[1]
[2]
[3]
[4]
[5]
[6]
[7]
[8]
[9]
[10]
[11]
[12]
[13]
[14]
[15]
[16]
[17]
[18]
[19]
[20]
[21]
[22]
[23]
[24]
[25]
[26]
[27]
[28]
[29]
[30]
[31]
[32]
[33]
[34]
[null,null,null,null,null,null,null,{"$f":"SUM(H15:H48)","v":0},{"$f":"SUM(I15:I48)","v":0},"Total\nاجمالي"]
[]
[null,"PLEASE DON’T FORGET PASSPORT "]
[null,"PICK UP ",null,null,null,null,null,null,null,null,"Nitrox 32%",null,null,"NOTE"]
[null,"Guide","Assembly time","Place of assembly","Carrier","Tel.","DRIVER",null,null,null,"12 L"]
[null,null,null,null,{"$f":"VLOOKUP($G54,#REF!,2,FALSE)","v":{"$error":"#REF!"}},{"$f":"VLOOKUP($G54,#REF!,3,FALSE)","v":{"$error":"#REF!"}},null,null,null,null,"15 L"]
[null,null,null,null,{"$f":"VLOOKUP($G55,#REF!,2,FALSE)","v":{"$error":"#REF!"}},{"$f":"VLOOKUP($G55,#REF!,3,FALSE)","v":{"$error":"#REF!"}},null,null,null,null,"Air"]
[null,null,null,null,{"$f":"VLOOKUP($G56,#REF!,2,FALSE)","v":{"$error":"#REF!"}},{"$f":"VLOOKUP($G56,#REF!,3,FALSE)","v":{"$error":"#REF!"}},null,null,null,null,"8 L"]
[null,null,null,null,{"$f":"VLOOKUP($G57,#REF!,2,FALSE)","v":{"$error":"#REF!"}},{"$f":"VLOOKUP($G57,#REF!,3,FALSE)","v":{"$error":"#REF!"}},null,null,null,null,"15 L"]
[]
[]
[]
[]
[]
[]
[null,null,null,null,null,null,null,null,null,null,null,null,{"$f":"Boat1!M19","v":0}]
[null,null,null,null,null,null,null,null,null,null,null,null,{"$f":"Boat1!M20","v":0}]
[null,null,null,null,null,null,null,null,null,null,null,null,{"$f":"Boat1!M21","v":0}]
[null,null,null,null,null,null,null,null,null,null,null,null,{"$f":"Boat1!M22","v":0}]
[null,null,null,null,null,null,null,null,null,null,null,null,{"$f":"Boat1!M23","v":0}]
[null,null,null,null,null,null,null,null,null,null,null,null,{"$f":"Boat1!M24","v":0}]
[null,null,null,null,null,null,null,null,null,null,null,null,{"$f":"Boat1!M25","v":0}]
[null,null,null,null,null,null,null,null,null,null,null,null,{"$f":"Boat1!M26","v":0}]
[null,null,null,null,null,null,null,null,null,null,null,null,{"$f":"Boat1!M27","v":0}]
[null,null,null,null,null,null,null,null,null,null,null,null,{"$f":"Boat1!M28","v":0}]
[null,null,null,null,null,null,null,null,null,null,null,null,{"$f":"Boat1!M29","v":0}]
[null,null,null,null,null,null,null,null,null,null,null,null,{"$f":"Boat1!M30","v":0}]
[null,null,null,null,null,null,null,null,null,null,null,null,{"$f":"Boat1!M31","v":0}]
[null,null,null,null,null,null,null,null,null,null,null,null,{"$f":"Boat1!M32","v":0}]
[null,null,null,null,null,null,null,null,null,null,null,null,{"$f":"Boat1!M33","v":0}]
[null,null,null,null,null,null,null,null,null,null,null,null,{"$f":"Boat1!M34","v":0}]
[null,null,null,null,null,null,null,null,null,null,null,null,{"$f":"Boat1!M35","v":0}]
[null,null,null,null,null,null,null,null,null,null,null,null,{"$f":"Boat1!M36","v":0}]
[null,null,null,null,null,null,null,null,null,null,null,null,{"$f":"Boat1!M37","v":0}]
[null,null,null,null,null,null,null,null,null,null,null,null,{"$f":"Boat1!M38","v":0}]
[null,null,null,null,null,null,null,null,null,null,null,null,{"$f":"Boat1!M39","v":0}]
[null,null,null,null,null,null,null,null,null,null,null,null,{"$f":"Boat1!M40","v":0}]
[null,null,null,null,null,null,null,null,null,null,null,null,{"$f":"Boat1!M41","v":0}]
[null,null,null,null,null,null,null,null,null,null,null,null,{"$f":"Boat1!M42","v":0}]
[null,null,null,null,null,null,null,null,null,null,null,null,{"$f":"Boat1!M43","v":0}]
[null,null,null,null,null,null,null,null,null,null,null,null,{"$f":"Boat1!M44","v":0}]
[null,null,null,null,null,null,null,null,null,null,null,null,{"$f":"Boat1!M45","v":0}]
[null,null,null,null,null,null,null,null,null,null,null,null,{"$f":"Boat1!M46","v":0}]
[null,null,null,null,null,null,null,null,null,null,null,null,{"$f":"Boat1!M47","v":0}]

{"sheet":"Milton","index":9,"n_rows":57,"n_cols":28,"rows_kept":57,"cut":false,"hidden":true,"merged":[[51,13,51,17],[52,6,52,7],[52,13,56,17],[53,6,53,7],[54,6,54,7],[54,10,54,11],[55,6,55,7],[56,6,56,7],[9,7,9,8],[9,10,9,11],[10,7,10,8],[10,10,10,11],[51,1,51,7],[51,10,51,11],[11,7,11,8],[11,10,11,11],[0,13,1,14],[2,7,2,8],[2,10,2,11],[2,13,2,14],[50,1,50,7],[4,7,4,8],[4,10,4,11],[5,7,5,8],[5,10,5,11],[6,0,9,1],[6,7,6,8],[6,10,6,11],[7,7,7,8],[7,10,7,11],[8,7,8,8],[8,10,8,11],[3,2,3,5],[3,6,3,11],[0,2,1,2],[0,3,1,3],[0,4,1,4],[0,5,0,6],[0,7,1,8],[0,9,1,9],[0,10,1,11]]}
[null,null,"التاريخ","اتجاه الرحله","ميناء القيام","الحموله",null,"تاريخ انتهاء الترخيص",null,"رقم التسجيل","اسم اللنش",null,null,"تليفون اللنش"]
[null,null,null,null,null,"عدد الركاب","عدد الطقم"]
[null,null,{"$f":"Boat1!C3","v":"2022-08-01"},"Milton Beach",null,{"$f":"VLOOKUP($K$3,#REF!,4,FALSE)","v":{"$error":"#REF!"}},{"$f":"VLOOKUP($K$3,#REF!,5,FALSE)","v":{"$error":"#REF!"}},{"$f":"VLOOKUP($K$3,#REF!,3,FALSE)","v":{"$error":"#REF!"}},null,{"$f":"VLOOKUP($K$3,#REF!,2,FALSE)","v":{"$error":"#REF!"}},null,null,null,{"$f":"VLOOKUP($K$3,#REF!,6,FALSE)","v":{"$error":"#REF!"}},{"$f":"VLOOKUP($K$3,#REF!,2,FALSE)","v":{"$error":"#REF!"}}]
[null,null,"طاقم المركب",null,null,null,"المدربين/المرشدين/المصورين",null,null,null,null,null,null,"GUIDING"]
[null,null,"تليفون","رقم مزاوله المهنه","الوظيفه","اسماء الطاقم","تليفون","رقم مزاوله المهنه",null,"الوظيفه","الاسماء"]
[null,null,{"$f":"VLOOKUP($K$3,#REF!,10,FALSE)","v":{"$error":"#REF!"}},{"$f":"VLOOKUP($K$3,#REF!,9,FALSE)","v":{"$error":"#REF!"}},{"$f":"VLOOKUP($K$3,#REF!,8,FALSE)","v":{"$error":"#REF!"}},{"$f":"VLOOKUP($K$3,#REF!,7,FALSE)","v":{"$error":"#REF!"}},{"$f":"VLOOKUP($K6,#REF!,4,FALSE)","v":{"$error":"#REF!"}},{"$f":"VLOOKUP($K6,#REF!,3,FALSE)","v":{"$error":"#REF!"}},null,{"$f":"VLOOKUP($K6,#REF!,2,FALSE)","v":{"$error":"#REF!"}}]
["مركز غوص ديزرت روز \n رخصه 341 \n تليفون:01220004757",null,{"$f":"VLOOKUP($K$3,#REF!,14,FALSE)","v":{"$error":"#REF!"}},{"$f":"VLOOKUP($K$3,#REF!,13,FALSE)","v":{"$error":"#REF!"}},{"$f":"VLOOKUP($K$3,#REF!,12,FALSE)","v":{"$error":"#REF!"}},{"$f":"VLOOKUP($K$3,#REF!,11,FALSE)","v":{"$error":"#REF!"}},{"$f":"VLOOKUP($K7,#REF!,4,FALSE)","v":{"$error":"#REF!"}},{"$f":"VLOOKUP($K7,#REF!,3,FALSE)","v":{"$error":"#REF!"}},null,{"$f":"VLOOKUP($K7,#REF!,2,FALSE)","v":{"$error":"#REF!"}}]
[null,null,{"$f":"VLOOKUP($K$3,#REF!,18,FALSE)","v":{"$error":"#REF!"}},{"$f":"VLOOKUP($K$3,#REF!,17,FALSE)","v":{"$error":"#REF!"}},{"$f":"VLOOKUP($K$3,#REF!,16,FALSE)","v":{"$error":"#REF!"}},{"$f":"VLOOKUP($K$3,#REF!,15,FALSE)","v":{"$error":"#REF!"}},{"$f":"VLOOKUP($K8,#REF!,4,FALSE)","v":{"$error":"#REF!"}},{"$f":"VLOOKUP($K8,#REF!,3,FALSE)","v":{"$error":"#REF!"}},null,{"$f":"VLOOKUP($K8,#REF!,2,FALSE)","v":{"$error":"#REF!"}}]
[null,null,{"$f":"VLOOKUP($K$3,#REF!,22,FALSE)","v":{"$error":"#REF!"}},{"$f":"VLOOKUP($K$3,#REF!,21,FALSE)","v":{"$error":"#REF!"}},{"$f":"VLOOKUP($K$3,#REF!,20,FALSE)","v":{"$error":"#REF!"}},{"$f":"VLOOKUP($K$3,#REF!,19,FALSE)","v":{"$error":"#REF!"}},{"$f":"VLOOKUP($K9,#REF!,4,FALSE)","v":{"$error":"#REF!"}},{"$f":"VLOOKUP($K9,#REF!,3,FALSE)","v":{"$error":"#REF!"}},null,{"$f":"VLOOKUP($K9,#REF!,2,FALSE)","v":{"$error":"#REF!"}}]
[null,null,null,null,null,null,{"$f":"VLOOKUP($K10,#REF!,4,FALSE)","v":{"$error":"#REF!"}},{"$f":"VLOOKUP($K10,#REF!,3,FALSE)","v":{"$error":"#REF!"}},null,{"$f":"VLOOKUP($K10,#REF!,2,FALSE)","v":{"$error":"#REF!"}}]
[null,null,null,null,null,null,{"$f":"VLOOKUP($K11,#REF!,4,FALSE)","v":{"$error":"#REF!"}},{"$f":"VLOOKUP($K11,#REF!,3,FALSE)","v":{"$error":"#REF!"}},null,{"$f":"VLOOKUP($K11,#REF!,2,FALSE)","v":{"$error":"#REF!"}}]
[null,null,"Sharing Company",null,{"$f":"VLOOKUP($D$12,#REF!,2,FALSE)","v":{"$error":"#REF!"}},null,{"$f":"VLOOKUP($K12,#REF!,4,FALSE)","v":{"$error":"#REF!"}},{"$f":"VLOOKUP($K12,#REF!,3,FALSE)","v":{"$error":"#REF!"}},null,{"$f":"VLOOKUP($K12,#REF!,2,FALSE)","v":{"$error":"#REF!"}}]
[]
["NO","Name\nالاسم","Last Name\nالعائلي","Nationality\nالجنسيه","Passport\nجواز السفر","Hotel\nالفندق","Room No.\nالحجره","Adult\nكبير","CHD\nطفل","Activity\nالنشاط","LEVEL\nرخصه ","Eval\nمستوي","Box\nصندوق","Fins\nزعانف","Com\nملاحظات","Check in","Bill","Time","Transf","Rest","Guide","Reg#","BCD#","Suit#","Fins#","Mask#","BOOT","Partner"]
[1]
[2]
[3]
[4]
[5]
[6]
[7]
[8]
[9]
[10]
[11]
[12]
[13]
[14]
[15]
[16]
[17]
[18]
[19]
[20]
[21]
[22]
[23]
[24]
[25]
[26]
[27]
[28]
[29]
[30]
[31]
[32]
[33]
[34]
[null,null,null,null,null,null,null,{"$f":"SUM(H15:H48)","v":0},{"$f":"SUM(I15:I48)","v":0},"Total\nاجمالي"]
[]
[null,"PLEASE DON’T FORGET PASSPORT "]
[null,"PICK UP ",null,null,null,null,null,null,null,null,"Nitrox 32%",null,null,"NOTE"]
[null,"Guide","Assembly time","Place of assembly","Carrier","Tel.","DRIVER",null,null,null,"12 L"]
[null,null,null,null,{"$f":"VLOOKUP($G54,#REF!,2,FALSE)","v":{"$error":"#REF!"}},{"$f":"VLOOKUP($G54,#REF!,3,FALSE)","v":{"$error":"#REF!"}},null,null,null,null,"15 L"]
[null,null,null,null,{"$f":"VLOOKUP($G55,#REF!,2,FALSE)","v":{"$error":"#REF!"}},{"$f":"VLOOKUP($G55,#REF!,3,FALSE)","v":{"$error":"#REF!"}},null,null,null,null,"Air"]
[null,null,null,null,{"$f":"VLOOKUP($G56,#REF!,2,FALSE)","v":{"$error":"#REF!"}},{"$f":"VLOOKUP($G56,#REF!,3,FALSE)","v":{"$error":"#REF!"}},null,null,null,null,"8 L"]
[null,null,null,null,{"$f":"VLOOKUP($G57,#REF!,2,FALSE)","v":{"$error":"#REF!"}},{"$f":"VLOOKUP($G57,#REF!,3,FALSE)","v":{"$error":"#REF!"}},null,null,null,null,"15 L"]